{"text_format":"1","workbook":"xlsx","n_sheets":3,"sheets":["A","RTEs","CAPs"],"not_rendered":{"charts":0,"images":0,"macros":1,"external_links":0,"defined_names":49,"comments":0,"pivot_tables":0},"unopened":[],"bounds":{"document_bytes":16777216,"sheet_cells":100000,"rows_first":2000,"rows_last":500,"rows_between":2000,"halvings":0,"cell_chars":16384,"cell_head_chars":4096},"cells_cut":0,"cells_raw":0,"read":"whole","date_system":"1900"}

{"sheet":"A","index":0,"n_rows":380,"n_cols":81,"rows_kept":380,"cut":false,"hidden":false,"merged":[]}
["Filing Date (enter w/leading '):",null,null,"06/16/2020","2020 Annual Filing"]
["Tariff Entity (4 character COSA code):",null,null,null,null,null,null,null,null,null,null,"EOPYDate (enter w/leading ')","6/30/2020"]
["Transmittal Number (enter w/leading '):",null,null,null,null,null,null,null,null,null,null,"Total # Juris ",1]
["Filing Name:",null,null,null,null,null,null,null,null,null,null,"Date of Last PCI Update","10/01/2019"]
[]
["1) Uses multiplicative SBI Upper limits",null,null,null,"Jurisdictional SLCs?"]
["2) ANALYZER starts in column BT",null,null,null,"Jurisdictional PICCs?"]
[null,null,null,null,"Jurisdictional MOU?"]
[null,null,null,null,"Jurisdictional Targeting?"]
[null,null,null,null,"Mixed Jurisdictional SPM?"]
["IND-1 chart, Page 1.  Arrow right for next chart.",null,null,null,null,null,null,null,null,null,null,null,null,null,null,null,"PCI-1 chart.     Arrow right for next chart.",null,null,null,null,null,null,null,null,null,"SUM-1 chart.  Arrow right for next chart. ",null,null,null,null,null,null,null,null,null,null,"EXG-1 chart, Page 1.  Arrow down for next page and EXG-2 chart.  Arrow right for next chart.",null,null,null,null,null,null,null,null,null,null,null,"RTE-1 chart, Pages 1-10.  Arrow right for Pages 1-6.",null,null,null,null,null,null,null,null,null,null,"CAP-1 chart.  Arrow down for additional CAP charts and FOOTNOTES pages.   Arrow right for  ANALYZER.",null,null,null,null,null,null,null,null,"ANALYZER, Page 1 through 5."]
[null,null,null,null,null,null,null,null,null,null,null,null,null,null,null,null,null,null,null,null,null,null,null,null,null,null,null,null,null,null,null,null,null,null,null,null,null,"Page down 60 for next page.",null,null,null,null,null,null,null,null,null,null,null,"Page down 60 for next page",null,null,null,null,null,null,null,null,null,null,"Page down 60 for next page"]
["To Print, Use Manual Compression = 63% and Landscape Mode.",null,null,null,null,null,null,null,null,null,null,null,null,null,null,null,"To Print, Use Manual Compression = 63% and Landscape Mode.",null,null,null,null,null,null,null,null,null,"To Print, Use Manual Compression = 63% and Landscape Mode.",null,null,null,null,null,null,null,null,null,null,"To Print, Use Manual Compression = 63% and Landscape Mode.",null,null,null,null,null,null,null,null,null,null,null,"To Print, Use Manual Compression = 63% and Landscape Mode",null,null,null,null,null,null,null,null,null,null,"To Print, Use Manual Compression = 63% and Landscape Mode"]
[]
["IND-1",null,null,null,null,null,null,null,null,null,null,null,null,null,null,null,"PCI-1",null,null,null,null,null,null,null,null,null,"SUM-1",null,null,null,null,null,null,null,null,null,null,"EXG-1",null,null,null,null,null,null,null,null,null,null,null,"RTE-1",null,null,null,null,null,null,null,null,null,null,"CAP-1",null,null,null,null,null,null,null,null,"ANALYZER"]
[{"$f":"\"Filing Date:                \"&DATE","v":"Filing Date:                06/16/2020"},null,null,null,null,null,null,null,null,null,null,null,null,null,null,null,{"$f":"\"Filing Date:                \"&DATE","v":"Filing Date:                06/16/2020"},null,null,null,null,null,null,null,null,null,{"$f":"\"Filing Date:                \"&DATE","v":"Filing Date:                06/16/2020"},null,null,null,null,null,null,null,null,null,null,{"$f":"\"Filing Date:                \"&DATE","v":"Filing Date:                06/16/2020"},null,null,null,null,null,null,null,null,null,null,null,{"$f":"\"Filing Date:                \"&DATE","v":"Filing Date:                06/16/2020"},null,null,null,null,null,null,null,null,null,null,{"$f":"\"Filing Date:                \"&DATE","v":"Filing Date:                06/16/2020"},null,null,null,null,null,null,null,null,{"$f":"\"Filing Date:                \"&$D$1","v":"Filing Date:                06/16/2020"}]
[{"$f":"\"Filing Entity:               \"&COSA","v":"Filing Entity:               "},null,null,null,null,null,null,null,null,null,null,null,null,null,null,null,{"$f":"\"Filing Entity:               \"&COSA","v":"Filing Entity:               "},null,null,null,null,null,null,null,null,null,{"$f":"\"Filing Entity:               \"&COSA","v":"Filing Entity:               "},null,null,null,null,null,null,null,null,null,null,{"$f":"\"Filing Entity:               \"&COSA","v":"Filing Entity:               "},null,null,null,null,null,null,null,null,null,null,null,{"$f":"\"Filing Entity:               \"&COSA","v":"Filing Entity:               "},null,null,null,null,null,null,null,null,null,null,{"$f":"\"Filing Entity:               \"&COSA","v":"Filing Entity:               "},null,null,null,null,null,null,null,null,{"$f":"\"Filing Entity:               \"&$D$2","v":"Filing Entity:               "}]
[{"$f":"\"Transmittal Number:   \"&TRANSMITTAL","v":"Transmittal Number:   "},null,null,null,null,"   Price Cap Tariff Review Plan",null,null,null,null,null,null,null,null,null,null,{"$f":"\"Transmittal Number:   \"&TRANSMITTAL","v":"Transmittal Number:   "},null,null,null,null,null,null,null,null,null,{"$f":"\"Transmittal Number:   \"&TRANSMITTAL","v":"Transmittal Number:   "},null,null,null,null,null,null,null,null,null,null,{"$f":"\"Transmittal Number:   \"&TRANSMITTAL","v":"Transmittal Number:   "},null,null,null,null,null,null,null,null,null,null,null,{"$f":"\"Transmittal Number:   \"&TRANSMITTAL","v":"Transmittal Number:   "},null,null,null,null,null,null,null,null,null,null,{"$f":"\"Transmittal Number:   \"&TRANSMITTAL","v":"Transmittal Number:   "},null,null,"",null,null,null,null,null,{"$f":"\"Transmittal Number:   \"&$D$3","v":"Transmittal Number:   "}]
[{"$f":"NAME","v":0},null,null,null,null,"             Indices",null,null,null,null,null,null,null,null,null,null,{"$f":"NAME","v":0},null,null,null,"   Price Cap Tariff Review Plan",null,null,null,null,null,{"$f":"NAME","v":0},null,null,null,"Price Caps Tariff Review Plan",null,null,null,null,null,null,{"$f":"NAME","v":0},null,null,null,null,"Price Cap Tariff Review Plan",null,null,null,null,null,null,{"$f":"NAME","v":0},null,null,null,null,null,null,null,null,null,null,{"$f":"NAME","v":0},null,null,null,null,null,null,null,null,{"$f":"$D$4","v":0}]
["Page 1 of 1",null,null,"7/1/2020","7/1/2020","7/1/2020","7/1/2020","2019-10-01","2019-10-01","2019-10-01","2019-10-01","In effect on","In effect on",null,null,null,"Page 1 of 1",null,null,null,"            PCI Development",null,null,null,null,null,"Page 1 of 1",null,null,null,"      Price Out Summary",null,null,null,null,null,null,"Page 1 of 1",null,null,null,null,"  Exogenous Cost Changes",null,null,null,null,null,null,"Page 1 of 6",null,null,null,null,"Price Caps Tariff Review Plan",null,null,null,null,null,"Page 1 of 2",null,"Price Cap Tariff Review Plan",null,null,null,null,null,null,"Page 1 of 5"]
[null,null,null,"PROPOSED","PROPOSED","PROPOSED","PROPOSED","EXISTING","EXISTING","EXISTING","EXISTING",{"$f":"$M$2","v":"6/30/2020"},{"$f":"$M$2","v":"6/30/2020"},null,null,null,null,null,null,null,null,null,null,null,null,null,null,null,null,null,null,null,null,null,null,null,null,null,null,null,null,null,null,null,null,null,null,null,null,null,null,null,null,null,"Common Line Basket",null,null,null,null,null,null,null,"Calculation of EUCL Limits, PICC Rate and CCL Rates"]
[null,null,null,"PCI ","API","SBI","SBI LIMIT","PCI ","API","SBI","SBI LIMIT","PCI ","SBI",null,null,null,null,null,null,null,"",null,null,null,null,null,null,null,null,null,null,null,"BASE PER DMD x",null,null,null,null,null,null,null,null,null,null,null,"TRUEUP PRIOR",null,null,null,null,null,null,null,null,null,null,null,null,null,null,null,null,null,null,null,null,null,null,null,null,"GENERAL--------------------------------------------","-"]
[null,null,null,"(A)","(B)","(C)","(D)","(E)","(F)","(G)","(H)","(I)","(J)",null,null,null,null,null,null,null,null,null,"SPECIAL",null,null,null,null,null,null,"BASE PERIOD","","","CURR RATES minus","BASE PER DMD x",null,null,null,null,null,null,"REGULA-","EXCESS",null,"REMOVAL OF","SHARING /","CURRENT","TELECOMM.",null,null,null,null,null,null,null,null,null,"BASE PERIOD","BASE PERIOD","BASE PERIOD",null,null,null,null,"Total Jurisdiction","No Zone / Zone A","Zone B","Zone C","Zone D","Other Zone","   GDPPI",{"$f":"W29","v":0}]
["","Special Access Basket",null,null,null,null,null,null,null,null,null,null,null,null,null,null,null,null,null,null,null,null,"ACCESS",null,null,null,null,null,null,"DEMAND x","BASE PERIOD","BASE PERIOD","BASE PER DMD x","PROP RATES minus",null,null,null,null,null,"SALE OF","TORY","DEFERRED","ITC","LOW END","LOW END","LOW END","RELAY",null,null,null,null,null,"BASE","RATES AT",null,null,"DEMAND x","DEMAND x","DEMAND x",null,null,null,"Source","(a)","(b)","(c)","(d)","(e)","(f)"]
[720,"VG/WATS,Met,Tgh - Special  ",null,"          N/A","          N/A",null,null,"          N/A","          N/A",null,null,"          N/A",null,null,null,null,null,null,"Source",null,null,null,"BASKET",null,null,null,null,null,null,"RATES AT 10/1/19","DEMAND x","DEMAND x","RATES AT 10/1/19","BASE PER DMD x",null,null,null,null,null,"EXCHANGES","FEES","TAXES","AMORTIZ.","ADJUSTMENT","ADJUSTMENT","ADJUSTMENT","SERVICES","REG/NON-REG",null,null,null,null,"PERIOD","10/1/19 PCI","CURRENT","PROPOSED","RATES AT 10/1/19","CURRENT","PROPOSED","INDEX ","","EUCL Demand Inputs","",null,null,null,null,null,null,"   X for SP",{"$f":"W30","v":2}]
[730,"Audio & Video",null,"          N/A","          N/A",null,null,"          N/A","          N/A",null,null,"          N/A",null,null,null,null,null,"-","-",null,null,null,"-",null,null,null,null,null,null,"PCI UPDATE","CURRENT RATES","PROPOSED RATES","PCI UPDATE","CURRENT RATES",null,null,null,null,null,"-","-","-","-","-","-","-","-","-",null,null,null,null,"DEMAND","UPDATE","RATES","RATES","PCI UPDATE","RATES","RATES","RESULTS",100,"Total Primary Res & SLB & LifeLine Lines","RTE1: b:r102a;c:r112a;d:r122a;e:r132a;f:r142a",{"$f":"SUM(BM26:BQ26)","v":0},{"$f":"BA30","v":0},{"$f":"BA37","v":0},{"$f":"BA42","v":0},{"$f":"BA47","v":0},{"$f":"BA52","v":0}]
[740,"High Cap & DDS - Special",null,"          N/A","          N/A",null,null,"          N/A","          N/A",null,null,"          N/A",null,null,null,null,null,null,null,null,null,null,null,null,null,null,null,null,null,"(A)","(B)","(C)","(D) = (B) - (A)","(E) = (C) - (B)",null,null,null,null,null,"(A)","(B)","(C)","(D)","(E)","(F)","(G)","(H)","(I)",null,null,null,"-","-","-","-","-","-","-","-","-",110,"Total NonPrim Res & BRI ISDN Lines","RTE1: b:r104a;c:r114a;d:r124a;e:r134a;f:r144a",{"$f":"SUM(BM27:BQ27)","v":0},{"$f":"BA31","v":0},{"$f":"BA38","v":0},{"$f":"BA43","v":0},{"$f":"BA48","v":0},{"$f":"BA53","v":0},"EXOGENOUS CHANGES in thousands-------------------------","-"]
[750,"    DS-1 SubCat - Special",null,"          N/A","          N/A",null,null,"          N/A","          N/A",null,null,"          N/A",null,null,null,null,null,null,null,null,null,null,null,null,null,null,"","Common Line Basket",null,null,null,null,null,null,null,null,null,"","COMMON LINE  Revenue Effect",null,null,null,null,null,null,null,null,null,null,"","End User Common Line (EUCL)",null,"(A)","(B)","(C)","(D)","(E)","(F)","(G)","(H)",120,"Total MLB&PRI ISDN (include PRI * 5, & Include Centrex)","RTE1: b:r106a;c:r116a;d:r126a;e:r136a;f:r146a",{"$f":"SUM(BM28:BQ28)","v":0},{"$f":"BA32","v":0},{"$f":"BA39","v":0},{"$f":"BA44","v":0},{"$f":"BA49","v":0},{"$f":"BA54","v":0},"   Sale of Exchanges",{"$f":"(AN29+AN32)/1000","v":0}]
[751,"         DS1 Spec Density Zone 1",null,"          N/A","          N/A",null,null,"          N/A","          N/A",null,null,"          N/A",null,null,null,null,600,"GDP-PI","Input",null,null,null,null,null,null,null,100,"End User Common Line",null,{"$f":"SUM(BE30:BE54)","v":0},{"$f":"SUM(BF30:BF54)","v":0},{"$f":"SUM(BG30:BG54)","v":0},{"$f":"AE29-AD29","v":0},0,null,null,null,160,"Revenue Effects",null,null,null,null,null,null,null,null,null,null,"","No Zone or Zone A:",null,null,null,null,null,null,null,null,null,130,"Total Local Exchange Lines","r100+r110+r120",{"$f":"SUM(BM29:BQ29)","v":0},{"$f":"SUM(BM26:BM28)","v":0},{"$f":"SUM(BN26:BN28)","v":0},{"$f":"SUM(BO26:BO28)","v":0},{"$f":"SUM(BP26:BP28)","v":0},{"$f":"SUM(BQ26:BQ28)","v":0},"   Regulatory Fees",{"$f":"(AO29+AO32)/1000","v":0}]
[752,"         DS1 Spec Density Zone 2",null,"          N/A","          N/A",null,null,"          N/A","          N/A",null,null,"          N/A",null,null,null,null,610,"Productivity Factor (X)","col.A:3.0;  col.B:r600, exc. for COSA w/X extension",null,null,null,2,null,null,null,110,"Common Line per MOU",null,{"$f":"SUM(BE63:BE66)","v":0},{"$f":"SUM(BF63:BF66)","v":0},{"$f":"SUM(BG63:BG66)","v":0},0,0,null,null,null,"","",null,null,null,null,null,null,null,null,null,null,102,"Primary Res, Single Line Bus, Lifeline EUCL (1)",null,{"$f":"RTEs!D30","v":0},{"$f":"RTEs!E30","v":0},{"$f":"RTEs!F30","v":0},{"$f":"RTEs!G30","v":0},{"$f":"RTEs!H30","v":0},{"$f":"RTEs!I30","v":0},{"$f":"RTEs!J30","v":0},"    N/A","","","",null,null,null,null,null,null,"   Excess Deferred Taxes",{"$f":"(AP29+AP32)/1000","v":0}]
[753,"         DS1 Spec Density Zone 3",null,"          N/A","          N/A",null,null,"          N/A","          N/A",null,null,"          N/A",null,null,null,null,null,null,"",null,null,null,null,null,null,null,112,"PICC Common Line",null,{"$f":"SUM(BE59:BE60)","v":0},{"$f":"SUM(BF59:BF60)","v":0},{"$f":"SUM(BG59:BG60)","v":0},0,0,null,null,null,"","SPECIAL Access Revenue Effect",null,null,null,null,null,null,null,null,null,null,104,"NonPrimary Residence & BRI ISDN EUCL (1)",null,{"$f":"RTEs!D31","v":0},{"$f":"RTEs!E31","v":0},{"$f":"RTEs!F31","v":0},{"$f":"RTEs!G31","v":0},{"$f":"RTEs!H31","v":0},{"$f":"RTEs!I31","v":0},{"$f":"RTEs!J31","v":0},"    N/A","","PICC Demand Inputs","",null,null,null,null,null,null,"   ITC",{"$f":"(AQ29+AQ32)/1000","v":0}]
[754,"         DS1 Spec Density Zone 4",null,"          N/A","          N/A",null,null,"          N/A","          N/A",null,null,"          N/A",null,null,null,null,620,"GDP-PI - X","r600-r610",null,null,null,{"$f":"W29-W30","v":-2},null,null,null,115,"Other Common Line",null,{"$f":"BE69","v":0},0,0,0,0,null,null,null,1360,"Revenue Effects",null,null,null,null,null,null,null,null,null,null,106,"Multiline Bus, PRI ISDN, Centrex EUCL (1)",null,{"$f":"RTEs!D32","v":0},{"$f":"RTEs!E32","v":0},{"$f":"RTEs!F32","v":0},{"$f":"RTEs!G32","v":0},{"$f":"RTEs!H32","v":0},{"$f":"RTEs!I32","v":0},{"$f":"RTEs!J32","v":0},"    N/A",200,"Total MLB&PRI ISDN (include PRI * 5, & exclude Centrex)","RTE1r155a",{"$f":"BA59","v":0},"      N/A","      N/A","      N/A","      N/A","      N/A","   Removal Sharing/Low End Adj",{"$f":"(AR29+AR32)/1000","v":0}]
[755,"         DS1 Spec Density Zone 5",null,"          N/A","          N/A",null,null,"          N/A","          N/A",null,null,"          N/A",null,null,null,null,"","","",null,null,null,null,null,null,null,118,"USAC Receipts",null,0,0,0,0,0,null,null,null,null,null,null,null,null,null,null,null,null,null,null,null,108,"Special Access Surcharge",null,{"$f":"RTEs!D33","v":0},{"$f":"RTEs!E33","v":0},{"$f":"RTEs!F33","v":0},{"$f":"RTEs!G33","v":0},{"$f":"RTEs!H33","v":0},{"$f":"RTEs!I33","v":0},{"$f":"RTEs!J33","v":0},"    N/A",210,"Total Business Centrex Lines in groups with 9 or more lines","Input or Sum of Jurisdictions",{"$f":"CAPs!D33","v":0},"      N/A","      N/A","      N/A","      N/A","      N/A","   TrueUp of Sharing/Low End Adj",{"$f":"(AS29+AS32)/1000","v":0}]
[760,"    DS-3 SubCat - Special",null,"          N/A","          N/A",null,null,"          N/A","          N/A",null,null,"          N/A",null,null,null,null,680,"Existing PCI","Input",null,null,null,null,null,null,null,120,"Total Common Line",null,{"$f":"BE72","v":0},{"$f":"BF72","v":0},{"$f":"BG72","v":0},0,0,null,null,null,null,null,null,null,null,null,null,null,null,null,null,null,109,"Other EUCL",null,"          N/A","          N/A","          N/A","          N/A",{"$f":"RTEs!H34","v":0},{"$f":"RTEs!I34","v":0},{"$f":"RTEs!J34","v":0},"    N/A",220,"Total Business Groups with less than 9 lines in the group","Input or Sum of Jurisdictions",{"$f":"CAPs!D34","v":0},"      N/A","      N/A","      N/A","      N/A","      N/A","   Current Low End Adj",{"$f":"(AT29+AT32)/1000","v":0}]
[761,"         DS3 Spec Density Zone 1",null,"          N/A","          N/A",null,null,"          N/A","          N/A",null,null,"          N/A",null,null,null,null,null,null,null,null,null,null,null,null,null,null,null,null,null,null,null,null,null,null,null,null,null,null,null,null,null,null,null,null,null,null,null,null,null,"","",null,null,null,null,null,null,null,null,null,"","","",null,null,null,null,null,null,"   Telecomm.Relay Svcs.",{"$f":"(AU29+AU32)/1000","v":0}]
[762,"         DS3 Spec Density Zone 2",null,"          N/A","          N/A",null,null,"          N/A","          N/A",null,null,"          N/A",null,null,null,null,null,null,null,null,null,null,null,null,null,null,"","",null,null,null,null,null,null,null,null,null,null,null,null,null,null,null,null,null,null,null,null,null,"","Zone B:",null,null,null,null,null,null,null,null,null,"","","",null,null,null,null,null,null,"   Reg / NonReg",{"$f":"(AV29+AV32)/1000","v":0},null,null,null,null,null,null,null,null,null,""]
[763,"         DS3 Spec Density Zone 3",null,"          N/A","          N/A",null,null,"          N/A","          N/A",null,null,"          N/A",null,null,null,null,710,"Delta Z","EXG1,c.S",null,null,null,{"$f":"AW47","v":0},null,null,null,"","Special Access Basket",null,null,null,null,null,null,null,null,null,null,null,null,null,null,null,null,null,null,null,null,null,112,"Primary Res, Single Line Bus, Lifeline EUCL (1)",null,{"$f":"RTEs!D37","v":0},{"$f":"RTEs!E37","v":0},{"$f":"RTEs!F37","v":0},{"$f":"RTEs!G37","v":0},{"$f":"RTEs!H37","v":0},{"$f":"RTEs!I37","v":0},{"$f":"RTEs!J37","v":0},"    N/A","","MOU Demand Inputs","",null,null,null,null,null,null,"   Other (1) [NANPA]",{"$f":"(AN44+AN47)/1000","v":0}]
[764,"         DS3 Spec Density Zone 4",null,"          N/A","          N/A",null,null,"          N/A","          N/A",null,null,"          N/A",null,null,null,null,720,"R(t-1)","SUM1,c.A",null,null,null,{"$f":"AD42","v":0},null,null,null,300,"VoiceGrade,WATS,Met&Tgh: Special",null,{"$f":"BE98","v":0},{"$f":"BF98","v":0},{"$f":"BG98","v":0},{"$f":"AE38-AD38","v":0},0,null,null,null,null,"DESCRIPTION:","NANPA","TBNP","","","","","","","",null,114,"NonPrimary Residence & BRI ISDN EUCL (1)",null,{"$f":"RTEs!D38","v":0},{"$f":"RTEs!E38","v":0},{"$f":"RTEs!F38","v":0},{"$f":"RTEs!G38","v":0},{"$f":"RTEs!H38","v":0},{"$f":"RTEs!I38","v":0},{"$f":"RTEs!J38","v":0},"    N/A",300,"Total Terminating Premium MOU","RTE1r161a",{"$f":"BA63","v":0},"      N/A","      N/A","      N/A","      N/A","      N/A","   Other (2) [TBNP(incl. reversal)]",{"$f":"(AO44+AO47)/1000","v":0}]
[765,"         DS3 Spec Density Zone 5",null,"          N/A","          N/A",null,null,"          N/A","          N/A",null,null,"          N/A",null,null,null,null,null,null,null,null,null,null,null,null,null,null,310,"Audio & Video",null,{"$f":"BE111","v":0},{"$f":"BF111","v":0},{"$f":"BG111","v":0},0,0,null,null,null,null,null,"","(incl. reversal)","","","","","","","",null,116,"Multiline Bus, PRI ISDN, Centrex EUCL (1)",null,{"$f":"RTEs!D39","v":0},{"$f":"RTEs!E39","v":0},{"$f":"RTEs!F39","v":0},{"$f":"RTEs!G39","v":0},{"$f":"RTEs!H39","v":0},{"$f":"RTEs!I39","v":0},{"$f":"RTEs!J39","v":0},"    N/A",310,"Total Terminating Non-Premium MOU","RTE1r163a",{"$f":"BA64","v":0},"      N/A","      N/A","      N/A","      N/A","      N/A","   Other (3)",{"$f":"(AP44+AP47)/1000","v":0}]
[790,"Wideband",null,"          N/A","          N/A",null,null,"          N/A","          N/A",null,null,"          N/A",null,null,null,null,null,null,null,null,null,null,null,null,null,null,320,"High Caps & DDS: Special",null,{"$f":"BE337","v":0},{"$f":"BF337","v":0},{"$f":"BG337","v":0},0,0,null,null,null,null,null,"OTHER (1)","OTHER (2)","OTHER (3)","OTHER (4)","OTHER (5)","OTHER (6)","OTHER (7)","OTHER (8)","OTHER (9)","TOTAL","","",null,null,null,null,null,null,null,null,null,320,"Total Terminating Chargeable MOU","r300+.45*r310",{"$f":"BL38+0.45*BL39","v":0},"      N/A","      N/A","      N/A","      N/A","      N/A","   Other (4)",{"$f":"(AQ44+AQ47)/1000","v":0}]
[899,"Total Special Access",null,null,null,"          N/A","          N/A",null,null,"          N/A","          N/A",null,"          N/A",null,null,null,740,"Delta Z/R","r710/r720*100",null,null,null,{"$f":"IF(W38=0,0,W37/W38*100)","v":0},null,null,null,330,"Wideband",null,{"$f":"BE350","v":0},{"$f":"BF350","v":0},{"$f":"BG350","v":0},0,0,null,null,null,null,null,"-","-","-","-","-","-","-","-","-","-","","Zone C:",null,null,null,null,null,null,null,null,null,330,"Total Originating Premium MOU","RTE1r165a",{"$f":"BA65","v":0},"      N/A","      N/A","      N/A","      N/A","      N/A","   Other (5)",{"$f":"(AR44+AR47)/1000","v":0}]
[null,null,null,null,null,null,null,null,null,null,null,null,null,null,null,null,750,"W","100+r740",null,null,null,{"$f":"IF(W38=0,0,100+W41)","v":0},null,null,null,340,"Total Special Access",null,{"$f":"BE358","v":0},{"$f":"BF358","v":0},{"$f":"BG358","v":0},0,0,null,null,null,null,null,"(J)","(K)","(L)","(M)","(N)","(O)","(P)","(Q)","(R)","(S)",122,"Primary Res, Single Line Bus, Lifeline EUCL (1)",null,{"$f":"RTEs!D42","v":0},{"$f":"RTEs!E42","v":0},{"$f":"RTEs!F42","v":0},{"$f":"RTEs!G42","v":0},{"$f":"RTEs!H42","v":0},{"$f":"RTEs!I42","v":0},{"$f":"RTEs!J42","v":0},"    N/A",340,"Total Originating Non-Premium MOU","RTE1r167a",{"$f":"BA66","v":0},"      N/A","      N/A","      N/A","      N/A","      N/A","   Other (6)",{"$f":"(AS44+AS47)/1000","v":0}]
[null,null,null,null,null,null,null,null,null,null,null,null,null,null,null,null,760,"W*(GDP-PI - X)","r750*r620/100",null,null,null,{"$f":"(W42*W32)/100","v":0},null,null,null,null,null,null,null,null,null,null,null,null,null,null,null,"COMMON LINE  Revenue Effect",null,null,null,null,null,null,null,null,null,null,124,"NonPrimary Residence & BRI ISDN EUCL (1)",null,{"$f":"RTEs!D43","v":0},{"$f":"RTEs!E43","v":0},{"$f":"RTEs!F43","v":0},{"$f":"RTEs!G43","v":0},{"$f":"RTEs!H43","v":0},{"$f":"RTEs!I43","v":0},{"$f":"RTEs!J43","v":0},"    N/A",350,"Total Originating Chargeable MOU","r330+.45*r340",{"$f":"BL41+0.45*BL42","v":0},"      N/A","      N/A","      N/A","      N/A","      N/A","   Other (7)",{"$f":"(AT44+AT47)/1000","v":0}]
[null,null,null,null,null,null,null,null,null,null,null,null,null,null,null,null,"","","",null,null,null,null,null,null,null,null,null,null,null,null,null,null,null,null,null,null,160,"Revenue Effects",null,null,null,null,null,null,null,null,null,null,126,"Multiline Bus, PRI ISDN, Centrex EUCL (1)",null,{"$f":"RTEs!D44","v":0},{"$f":"RTEs!E44","v":0},{"$f":"RTEs!F44","v":0},{"$f":"RTEs!G44","v":0},{"$f":"RTEs!H44","v":0},{"$f":"RTEs!I44","v":0},{"$f":"RTEs!J44","v":0},"    N/A","","","",null,null,null,null,null,null,"   Other (8)",{"$f":"(AU44+AU47)/1000","v":0}]
[null,null,null,null,null,null,null,null,null,null,null,null,null,null,null,null,"","","",null,null,null,null,null,null,null,400,"Total",null,{"$f":"AD34+AD42","v":0},{"$f":"AE34+AE42","v":0},{"$f":"AF34+AF42","v":0},{"$f":"AE45-AD45","v":0},{"$f":"AF45-AE45","v":0},null,null,null,null,null,null,null,null,null,null,null,null,null,null,null,"","",null,null,null,null,null,null,null,null,null,"","SLC/PICC Caps","",null,null,null,null,null,null,"   Other (9)",{"$f":"(AV44+AV47)/1000","v":0}]
[null,null,null,null,null,null,null,null,null,null,null,null,null,null,null,null,"","",null,null,null,null,null,null,null,null,null,null,null,null,null,null,null,null,null,null,null,"","SPECIAL Access Revenue Effect",null,null,null,null,null,null,null,null,null,null,"","Zone D:",null,null,null,null,null,null,null,null,null,400,"PR, Lifeline & SLB EU Cap","Input",null,"      N/A","      N/A","      N/A","      N/A","      N/A",null,"All","Special"]
[null,null,null,null,null,null,null,null,null,null,null,null,null,null,null,null,"","",null,null,null,null,null,null,null,null,null,null,null,null,null,null,null,null,null,null,null,1360,"Revenue Effects",null,null,null,null,null,null,null,null,null,null,132,"Primary Res, Single Line Bus, Lifeline EUCL (1)",null,{"$f":"RTEs!D47","v":0},{"$f":"RTEs!E47","v":0},{"$f":"RTEs!F47","v":0},{"$f":"RTEs!G47","v":0},{"$f":"RTEs!H47","v":0},{"$f":"RTEs!I47","v":0},{"$f":"RTEs!J47","v":0},"    N/A",410,"NonPrimary Res & BRI EU Cap","Input",null,"      N/A","      N/A","      N/A","      N/A","      N/A","   TOTAL OF INDIVIDUALS",{"$f":"SUM(BS28:BS45)","v":0},{"$f":"(SUM(AN32:AV32)+SUM(AN47:AV47))/1000","v":0}]
[null,null,null,null,null,null,null,null,null,null,null,null,null,null,null,null,"","",null,null,null,null,null,null,null,null,null,null,null,null,null,null,null,null,null,null,null,"","",null,null,null,null,null,null,null,null,null,null,134,"NonPrimary Residence & BRI ISDN EUCL (1)",null,{"$f":"RTEs!D48","v":0},{"$f":"RTEs!E48","v":0},{"$f":"RTEs!F48","v":0},{"$f":"RTEs!G48","v":0},{"$f":"RTEs!H48","v":0},{"$f":"RTEs!I48","v":0},{"$f":"RTEs!J48","v":0},"    N/A",420,"MLB, PRI & Centrex EU Cap","Input",null,"      N/A","      N/A","      N/A","      N/A","      N/A","   TOTAL EXOGENOUS (EXG1)",{"$f":"(AW$44+AW$47)/1000","v":0},{"$f":"AW47/1000","v":0}]
[null,null,null,null,null,null,null,null,null,null,null,null,null,null,null,null,"","","",null,null,null,null,null,null,null,null,null,null,null,null,null,null,null,null,null,null,null,null,null,null,null,null,null,null,null,null,null,null,136,"Multiline Bus, PRI ISDN, Centrex EUCL (1)",null,{"$f":"RTEs!D49","v":0},{"$f":"RTEs!E49","v":0},{"$f":"RTEs!F49","v":0},{"$f":"RTEs!G49","v":0},{"$f":"RTEs!H49","v":0},{"$f":"RTEs!I49","v":0},{"$f":"RTEs!J49","v":0},"    N/A",430,"MLB PICC Rate as of Dec. 29, 2011","Input",null,"      N/A","      N/A","      N/A","      N/A","      N/A","   TOTAL EXOGENOUS (EXG2 - other column)",{"$f":"(N(AO85)+N(AO104))/1000","v":0},{"$f":"AO104/1000","v":0}]
[null,null,null,null,null,null,null,null,null,null,null,null,null,null,null,null,"","","",null,null,null,null,null,null,null,null,null,null,null,null,null,null,null,null,null,null,null,null,null,null,null,null,null,null,null,null,null,null,"","",null,null,null,null,null,null,null,null,null,"","",""]
[null,null,null,null,null,null,null,null,null,null,null,null,null,null,null,null,"","","",null,null,null,null,null,null,null,null,null,null,null,null,null,null,null,null,null,null,null,null,null,null,null,null,null,null,null,null,null,null,"","Zone - Other:",null,null,null,null,null,null,null,null,null,"","CMT Revenue",""]
[null,null,null,null,null,null,null,null,null,null,null,null,null,null,null,null,"","","",null,null,null,null,null,null,null,null,null,null,null,null,null,null,null,null,null,null,null,null,null,null,null,null,null,null,null,null,null,null,142,"Primary Res, Single Line Bus, Lifeline EUCL (1)",null,{"$f":"RTEs!D52","v":0},{"$f":"RTEs!E52","v":0},{"$f":"RTEs!F52","v":0},{"$f":"RTEs!G52","v":0},{"$f":"RTEs!H52","v":0},{"$f":"RTEs!I52","v":0},{"$f":"RTEs!J52","v":0},"    N/A",440,"Current MaxCMT Rev per Line (from previous filing)","Input (r460 from prev filing) or Wtd Avg of Juris",{"$f":"CAPs!D52","v":0},"      N/A","      N/A","      N/A","      N/A","      N/A"]
[null,null,null,null,null,null,null,null,null,null,null,null,null,null,null,null,"","","",null,null,null,null,null,null,null,null,null,null,null,null,null,null,null,null,null,null,null,null,null,null,null,null,null,null,null,null,null,null,144,"NonPrimary Residence & BRI ISDN EUCL (1)",null,{"$f":"RTEs!D53","v":0},{"$f":"RTEs!E53","v":0},{"$f":"RTEs!F53","v":0},{"$f":"RTEs!G53","v":0},{"$f":"RTEs!H53","v":0},{"$f":"RTEs!I53","v":0},{"$f":"RTEs!J53","v":0},"    N/A","","",""]
[null,null,null,null,null,null,null,null,null,null,null,null,null,null,null,null,970,"Prop. PCI (NonExog Only: Annual Filing","col.B: r680*(1+r620/100)",null,null,null,{"$f":"W34*(1+W32/100)","v":0},null,null,null,null,null,null,null,null,null,null,null,null,null,null,null,null,null,null,null,null,null,null,null,null,null,null,146,"Multiline Bus, PRI ISDN, Centrex EUCL (1)",null,{"$f":"RTEs!D54","v":0},{"$f":"RTEs!E54","v":0},{"$f":"RTEs!F54","v":0},{"$f":"RTEs!G54","v":0},{"$f":"RTEs!H54","v":0},{"$f":"RTEs!I54","v":0},{"$f":"RTEs!J54","v":0},"    N/A","","",""]
[null,null,null,null,null,null,null,null,null,null,null,null,null,null,null,null,"","       SBI Upper Limit calculations only)","",null,null,null,null,null,null,null,null,null,null,null,null,null,null,null,null,null,null,null,null,null,null,null,null,null,null,null,null,null,null,"","",null,null,null,null,null,null,null,null,null,"","",""]
[null,null,null,null,null,null,null,null,null,null,null,null,null,null,null,null,980,"Proposed PCI","col.A&B: r680*(1+r760/100+r740/100)",null,null,null,{"$f":"IF(AND(W34=0,BG358<>0),0,+W34*(1+W43/100+W41/100))","v":0},null,null,null,null,null,null,null,null,null,null,null,null,null,null,null,null,null,null,null,null,null,null,null,null,null,null,"","Presubscribed Interexchange Carrier Charge (PICC)",null,null,null,null,null,null,null,null,null,450,"Total CMT Exogenous Cost Factor ((R+deltaZ)/R)","((EXG1r160s/r130a)/r440a)+1",{"$f":"IF(OR(BL29=0,BL52=0),0,((AW44/BL29)/BL52)+1)","v":0},"      N/A","      N/A","      N/A","      N/A","      N/A"]
[null,null,null,null,null,null,null,null,null,null,null,null,null,null,null,null,"","","",null,null,null,null,null,null,null,null,null,null,null,null,null,null,null,null,null,null,null,null,null,null,null,null,null,null,null,null,null,null,"","",null,null,null,null,null,null,null,null,null,"","",""]
[null,null,null,null,null,null,null,null,null,null,null,null,null,null,null,null,"","",null,null,null,null,null,null,null,null,null,null,null,null,null,null,null,null,null,null,null,null,null,null,null,null,null,null,null,null,null,null,null,"","",null,null,null,null,null,null,null,null,null,460,"Proposed Maximum CMT Revenue Per Line","r440*r450",{"$f":"BL52*BL56","v":0},"      N/A","      N/A","      N/A","      N/A","      N/A"]
[null,null,null,null,null,null,null,null,null,null,null,null,null,null,null,null,null,"",null,null,null,null,null,null,null,null,null,null,null,null,null,null,null,null,null,null,null,null,null,null,null,null,null,null,null,null,null,null,null,155,"Multiline Business & PRI ISDN PICC           (1)",null,{"$f":"RTEs!D59","v":0},{"$f":"RTEs!E59","v":0},{"$f":"RTEs!F59","v":0},{"$f":"RTEs!G59","v":0},{"$f":"RTEs!H59","v":0},{"$f":"RTEs!I59","v":0},{"$f":"RTEs!J59","v":0},"    N/A","","",""]
[null,null,null,null,null,null,null,null,null,null,null,null,null,null,null,null,null,"",null,null,null,null,null,null,null,null,null,null,null,null,null,null,null,null,null,null,null,null,null,null,null,null,null,null,null,null,null,null,null,157,"Business Centrex PICC",null,{"$f":"RTEs!D60","v":0},"          N/A","          N/A","          N/A",{"$f":"RTEs!H60","v":0},{"$f":"RTEs!I60","v":0},{"$f":"RTEs!J60","v":0},"    N/A","","",""]
[null,null,null,null,null,null,null,null,null,null,null,null,null,null,null,null,null,null,null,null,null,null,null,null,null,null,null,null,null,null,null,null,null,null,null,null,null,null,null,null,null,null,null,null,null,null,null,null,null,"","",null,null,null,null,null,null,null,null,null,"","",""]
[null,null,null,null,null,null,null,null,null,null,null,null,null,null,null,null,null,null,null,null,null,null,null,null,null,null,null,null,null,null,null,null,null,null,null,null,null,null,null,null,null,null,null,null,null,null,null,null,null,"","Carrier Common Line",null,null,null,null,null,null,null,null,null,"","",""]
[null,null,null,null,null,null,null,null,null,null,null,null,null,null,null,null,null,null,null,null,null,null,null,null,null,null,null,null,null,null,null,null,null,null,null,null,null,null,null,null,null,null,null,null,null,null,null,null,null,161,"Terminating CCL Prem.",null,{"$f":"RTEs!D63","v":0},{"$f":"RTEs!E63","v":0},{"$f":"RTEs!F63","v":0},{"$f":"RTEs!G63","v":0},{"$f":"RTEs!H63","v":0},{"$f":"RTEs!I63","v":0},{"$f":"RTEs!J63","v":0},"    N/A","","",""]
[null,null,null,null,null,null,null,null,null,null,null,null,null,null,null,null,"","",null,null,null,null,null,null,null,null,null,null,null,null,null,null,null,null,null,null,null,null,null,null,null,null,null,null,null,null,null,null,null,163,"Terminating CCL Non-Prem.",null,{"$f":"RTEs!D64","v":0},{"$f":"RTEs!E64","v":0},{"$f":"RTEs!F64","v":0},{"$f":"RTEs!G64","v":0},{"$f":"RTEs!H64","v":0},{"$f":"RTEs!I64","v":0},{"$f":"RTEs!J64","v":0},"    N/A","","",""]
[null,null,null,null,null,null,null,null,null,null,null,null,null,null,null,null,"","",null,null,null,null,null,null,null,null,null,null,null,null,null,null,null,null,null,null,null,null,null,null,null,null,null,null,null,null,null,null,null,165,"Originating CCL Prem.",null,{"$f":"RTEs!D65","v":0},{"$f":"RTEs!E65","v":0},{"$f":"RTEs!F65","v":0},{"$f":"RTEs!G65","v":0},{"$f":"RTEs!H65","v":0},{"$f":"RTEs!I65","v":0},{"$f":"RTEs!J65","v":0},"    N/A","","",""]
[null,null,null,null,null,null,null,null,null,null,null,null,null,null,null,null,"","","",null,null,null,null,null,null,null,null,null,null,null,null,null,null,null,null,null,null,"","",null,null,null,null,null,null,null,null,null,null,167,"Originating CCL Non-Prem.",null,{"$f":"RTEs!D66","v":0},{"$f":"RTEs!E66","v":0},{"$f":"RTEs!F66","v":0},{"$f":"RTEs!G66","v":0},{"$f":"RTEs!H66","v":0},{"$f":"RTEs!I66","v":0},{"$f":"RTEs!J66","v":0},"    N/A",""]
[null,null,null,null,null,null,null,null,null,null,null,null,null,null,null,null,"NOTES:","",null,null,null,null,null,null,null,null,null,null,null,null,null,null,null,null,null,null,null,"NOTE:","   (1) Total may not equal sum of changes due to interactive effects.",null,null,null,null,null,null,null,null,null,null,"","",null,null,null,null,null,null,null,null,null,""]
[null,null,null,null,null,null,null,null,null,null,null,null,null,null,null,null,"","(1) Display indexes and factors as percent to four decimal places (e.g., display 100% as 100.000).",null,null,null,null,null,null,null,null,null,null,null,null,null,null,null,null,null,null,null,"","   (2) Display whole numbers.",null,null,null,null,null,null,null,null,null,null,"","",null,null,null,null,null,null,null,null,null,""]
[null,null,null,null,null,null,null,null,null,null,null,null,null,null,null,null,"","(2) Display revenues as whole numbers.",null,null,null,null,null,null,null,null,null,null,null,null,null,null,null,null,null,null,null,null,null,null,null,null,null,null,null,null,null,null,null,180,"Other Common Line",null,"          N/A","          N/A","          N/A","          N/A",{"$f":"RTEs!H69","v":0},{"$f":"RTEs!I69","v":0},{"$f":"RTEs!J69","v":0},"    N/A",""]
[null,null,null,null,null,null,null,null,null,null,null,null,null,null,null,null,null,null,null,null,null,null,null,null,null,null,null,null,null,null,null,null,null,null,null,null,null,null,null,null,null,null,null,null,null,null,null,null,null,185,"USAC Receipts",null,{"$f":"RTEs!D70","v":0},{"$f":"RTEs!E70","v":0},{"$f":"RTEs!F70","v":0},{"$f":"RTEs!G70","v":0},{"$f":"RTEs!H70","v":0},{"$f":"RTEs!I70","v":0},{"$f":"RTEs!J70","v":0},"    N/A",""]
[null,null,null,null,null,null,null,null,null,null,null,null,null,null,null,null,null,null,null,null,null,null,null,null,null,null,"Note:","Display whole numbers for rows 100 through 400.",null,null,null,null,null,null,null,null,null,null,null,null,null,null,null,null,null,null,null,null,null,"","Per Minute Revenues",null,null,null,null,null,{"$f":"SUM(BE63:BE66)","v":0},{"$f":"SUM(BF63:BF66)","v":0},{"$f":"SUM(BG63:BG66)","v":0},"    N/A",""]
[null,null,null,null,null,null,null,null,null,null,null,null,null,null,null,null,null,null,null,null,null,null,null,null,null,null,null,null,null,null,null,null,null,null,null,null,null,null,null,null,null,null,null,null,null,null,null,null,null,190,"Total Basket",null,"          N/A","          N/A","          N/A","          N/A",{"$f":"SUM(BE30:BE54)+BE59+BE60+SUM(BE62:BE66)+BE69+BE70","v":0},{"$f":"SUM(BF30:BF54)+BF59+BF60+SUM(BF62:BF66)+BF69+BF70","v":0},{"$f":"SUM(BG30:BG54)+BG59+BG60+SUM(BG62:BG66)+BG69+BG70","v":0},"    N/A",""]
[null,null,null,null,null,null,null,null,null,null,null,null,null,null,null,null,null,null,null,null,null,null,null,null,null,null,null,null,null,null,null,null,null,null,null,null,null,null,null,null,null,null,null,null,null,null,null,null,null,"","",null,null,null,null,null,null,null,null,null,"","",""]
[null,null,null,null,null,null,null,null,null,null,null,null,null,null,null,null,null,null,null,null,null,null,null,null,null,null,null,null,null,null,null,null,null,null,null,null,null,null,null,null,null,null,null,null,null,null,null,null,null,null,null,null,null,null,null,null,null,null,null,null,"","",""]
[null,null,null,null,null,null,null,null,null,null,null,null,null,null,null,null,null,null,null,null,null,null,null,null,null,null,null,null,null,null,null,null,null,null,null,null,null,"EXG-2",null,null,null,null,null,null,null,null,null,null,null,"RTE-1",null,null,null,null,null,null,null,null,null,null,"CAP-1",null,null,null,null,null,null,null,null,"ANALYZER"]
[null,null,null,null,null,null,null,null,null,null,null,null,null,null,null,null,null,null,null,null,null,null,null,null,null,null,null,null,null,null,null,null,null,null,null,null,null,{"$f":"\"Filing Date:                \"&DATE","v":"Filing Date:                06/16/2020"},null,null,null,null,null,null,null,null,null,null,null,{"$f":"\"Filing Date:                \"&DATE","v":"Filing Date:                06/16/2020"},null,null,null,null,null,null,null,null,null,null,{"$f":"\"Filing Date:                \"&DATE","v":"Filing Date:                06/16/2020"},null,null,null,null,null,null,null,null,{"$f":"\"Filing Date:                \"&$D$1","v":"Filing Date:                06/16/2020"}]
[null,null,null,null,null,null,null,null,null,null,null,null,null,null,null,null,null,null,null,null,null,null,null,null,null,null,null,null,null,null,null,null,null,null,null,null,null,{"$f":"\"Filing Entity:               \"&COSA","v":"Filing Entity:               "},null,null,null,null,null,null,null,null,null,null,null,{"$f":"\"Filing Entity:               \"&COSA","v":"Filing Entity:               "},null,null,null,null,null,null,null,null,null,null,{"$f":"\"Filing Entity:               \"&COSA","v":"Filing Entity:               "},null,null,null,null,null,null,null,null,{"$f":"\"Filing Entity:               \"&$D$2","v":"Filing Entity:               "}]
[null,null,null,null,null,null,null,null,null,null,null,null,null,null,null,null,null,null,null,null,null,null,null,null,null,null,null,null,null,null,null,null,null,null,null,null,null,{"$f":"\"Transmittal Number:   \"&TRANSMITTAL","v":"Transmittal Number:   "},null,null,null,null,null,null,null,null,null,null,null,{"$f":"\"Transmittal Number:   \"&TRANSMITTAL","v":"Transmittal Number:   "},null,null,null,null,null,null,null,null,null,null,{"$f":"\"Transmittal Number:   \"&TRANSMITTAL","v":"Transmittal Number:   "},null,null,null,null,null,null,null,null,{"$f":"\"Transmittal Number:   \"&$D$3","v":"Transmittal Number:   "}]
[null,null,null,null,null,null,null,null,null,null,null,null,null,null,null,null,null,null,null,null,null,null,null,null,null,null,null,null,null,null,null,null,null,null,null,null,null,{"$f":"NAME","v":0},null,null,null,null,"Price Cap Tariff Review Plan",null,null,null,null,null,null,{"$f":"NAME","v":0},null,null,null,null,null,null,null,null,null,null,{"$f":"NAME","v":0},null,null,null,null,null,null,null,null,{"$f":"$D$4","v":0}]
[null,null,null,null,null,null,null,null,null,null,null,null,null,null,null,null,null,null,null,null,null,null,null,null,null,null,null,null,null,null,null,null,null,null,null,null,null,"Page 1 of 1",null,null,null,null,"Special Access Net Exogenous Cost Shifts",null,null,null,null,null,null,"Page 2 of 6",null,null,null,null,"Price Caps Tariff Review Plan",null,null,null,null,null,"Page 2 of 2",null,"Price Cap Tariff Review Plan",null,null,null,null,null,null,"Page 2 of 5"]
[null,null,null,null,null,null,null,null,null,null,null,null,null,null,null,null,null,null,null,null,null,null,null,null,null,null,null,null,null,null,null,null,null,null,null,null,null,null,null,null,null,null,null,null,null,null,null,null,null,null,null,null,null,null,"Special Access Basket",null,null,null,null,null,null,null,"Calculation of EUCL Limits, PICC Rate and CCL Rates",null,null,null,null,null,null,null,null,"Flags / Notes"]
[null,null,null,null,null,null,null,null,null,null,null,null,null,null,null,null,null,null,null,null,null,null,null,null,null,null,null,null,null,null,null,null,null,null,null,null,null,null,null,null,"Other Exog",null,null,"from EXG1",null,null,null,null,null,null,null,null,null,null,null,null,null,null,null,null,null,null,null,null,null,null,null,null,null,"COMMON LINE-----------------------------------------",null,"-"]
[null,null,null,null,null,null,null,null,null,null,null,null,null,null,null,null,null,null,null,null,null,null,null,null,null,null,null,null,null,null,null,null,null,null,null,null,null,null,null,null,null,null,null,null,null,null,null,null,null,null,null,null,null,null,null,null,"BASE PERIOD","BASE PERIOD","BASE PERIOD",null,null,null,null,"Total Jurisdiction","No Zone / Zone A","Zone B","Zone C","Zone D","Other Zone"]
[null,null,null,null,null,null,null,null,null,null,null,null,null,null,null,null,null,null,null,null,null,null,null,null,null,null,null,null,null,null,null,null,null,null,null,null,null,"","Common Line  Basket",null,null,null,null,null,null,null,null,null,null,null,null,null,"BASE","RATES AT",null,null,"DEMAND x","DEMAND x","DEMAND x",null,"",null,"Source","(a)","(b)","(c)","(d)","(e)","(f)","Deaveraging Checks (from CAP3):"]
[null,null,null,null,null,null,null,null,null,null,null,null,null,null,null,null,null,null,null,null,null,null,null,null,null,null,null,null,null,null,null,null,null,null,null,null,null,100,"Total Common Line",null,{"$f":"IF(AW44=0,0,AW44)","v":0},null,null,{"$f":"AW44","v":0},null,null,null,null,null,null,null,null,"PERIOD","10/1/19 PCI","CURRENT","PROPOSED","RATES AT 10/1/19","CURRENT","PROPOSED","INDEX ","","CMT Revenue Vs EU Revenue at Max. Allowable Rates",null,null,null,null,null,null,null,"   Zone Progression Checks:"]
[null,null,null,null,null,null,null,null,null,null,null,null,null,null,null,null,null,null,null,null,null,null,null,null,null,null,null,null,null,null,null,null,null,null,null,null,null,"","Special Access Basket",null,null,null,null,null,null,null,null,null,null,null,null,null,"DEMAND","UPDATE","RATES","RATES","PCI UPDATE","RATES","RATES","RESULTS",600,"Proposed Maximum CMT Revenue","r460 * r130 or Sum of Jurisdictions",{"$f":"CAPs!D86","v":0},"      N/A","      N/A","      N/A","      N/A","      N/A","     Primary Res, SLB, & LifeLine",{"$f":"IF(BL206=\"      N/A\",\"N/A\",IF(AND(BN29<>0,BN242<BM242),\"FAIL\",IF(AND(BO29<>0,BO242<BN242),\"FAIL\",IF(AND(BP29<>0,BP242<BO242),\"FAIL\",IF(AND(BQ29<>0,BQ242<BP242),\"FAIL\",\"PASS\")))))","v":"PASS"},{"$f":"IF(BL206=\"      N/A\",\"No Deaveraging Allowed\",IF(AND(BN29<>0,BN242<BM242),\"Prim Res Zone B < Zone A\",IF(AND(BO29<>0,BO242<BN242),\"Prim Res Zone C < Zone B\",IF(AND(BP29<>0,BP242<BO242),\"Prim Res Zone D < Zone C\",IF(AND(BQ29<>0,BQ242<BP242),\"Prim Res Zone Other < Zone D\",\"Prim Rates OK\")))))","v":"Prim Rates OK"}]
[null,null,null,null,null,null,null,null,null,null,null,null,null,null,null,null,null,null,null,null,null,null,null,null,null,null,null,null,null,null,null,null,null,null,null,null,null,700,"VG,MT,TGH SP (undesignated)",null,0,null,null,"          N/A",null,null,null,null,null,null,null,null,"-","-","-","-","-","-","-","-",610,"Maximum Allowable PR, Lifeline & SLB EU Revenue","r400 * r100 or Sum of Jurisdictions",{"$f":"+CAPs!D87","v":0},"      N/A","      N/A","      N/A","      N/A","      N/A","     NonPrimary Res & BRI ISDN",{"$f":"IF(BL206=\"      N/A\",\"N/A\",IF(AND(BN29<>0,BN243<BM243),\"FAIL\",IF(AND(BO29<>0,BO243<BN243),\"FAIL\",IF(AND(BP29<>0,BP243<BO243),\"FAIL\",IF(AND(BQ29<>0,BQ243<BP243),\"FAIL\",\"PASS\")))))","v":"PASS"},{"$f":"IF(BL206=\"      N/A\",\"No Deaveraging Allowed\",IF(AND(BN29<>0,BN243<BM243),\"Non Prim Zone B < Zone A\",IF(AND(BO29<>0,BO243<BN243),\"Non Prim Zone C < Zone B\",IF(AND(BP29<>0,BP243<BO243),\"Non Prim Zone D < Zone C\",IF(AND(BQ29<>0,BQ243<BP243),\"Non Prim Zone Other < Zone D\",\"Non Prim Rates OK\")))))","v":"Non Prim Rates OK"}]
[null,null,null,null,null,null,null,null,null,null,null,null,null,null,null,null,null,null,null,null,null,null,null,null,null,null,null,null,null,null,null,null,null,null,null,null,null,710,"Audio & Video (undesignated)",null,0,null,null,"          N/A",null,null,null,null,null,null,null,null,"(A)","(B)","(C)","(D)","(E)","(F)","(G)","(H)",620,"Maximum Allowable NonPrimary Res & BRI EU Revenue","r410 * r110 or Sum of Jurisdictions",{"$f":"CAPs!D88","v":0},"      N/A","      N/A","      N/A","      N/A","      N/A","     MLB, PRI ISDN, & Centrex",{"$f":"IF(BL206=\"      N/A\",\"N/A\",IF(AND(BN29<>0,BN244<BM244),\"FAIL\",IF(AND(BO29<>0,BO244<BN244),\"FAIL\",IF(AND(BP29<>0,BP244<BO244),\"FAIL\",IF(AND(BQ29<>0,BQ244<BP244),\"FAIL\",\"PASS\")))))","v":"PASS"},{"$f":"IF(BL206=\"      N/A\",\"No Deaveraging Allowed\",IF(AND(BN29<>0,BN244<BM244),\"MLB Zone B < Zone A\",IF(AND(BO29<>0,BO244<BN244),\"MLB Zone C < Zone B\",IF(AND(BP29<>0,BP244<BO244),\"MLB Zone D < Zone C\",IF(AND(BQ29<>0,BQ244<BP244),\"MLB Zone Other < Zone D\",\"MLB Rates OK\")))))","v":"MLB Rates OK"}]
[null,null,null,null,null,null,null,null,null,null,null,null,null,null,null,null,null,null,null,null,null,null,null,null,null,null,null,null,null,null,null,null,null,null,null,null,null,720,"High Cap & DDS SP (undesignated)",null,0,null,null,"          N/A",null,null,null,null,null,null,"Voice Grade,  Metallic, & Telegraph",null,null,null,null,null,null,null,null,null,630,"Maximum Allowable MLB, PRI & Centrex EU Revenue","r420 * r120 or Sum of Jurisdictions",{"$f":"CAPs!D89","v":0},"      N/A","      N/A","      N/A","      N/A","      N/A"]
[null,null,null,null,null,null,null,null,null,null,null,null,null,null,null,null,null,null,null,null,null,null,null,null,null,null,null,null,null,null,null,null,null,null,null,null,null,730,"    DS-1 SubCat SP (undesignated)",null,0,null,null,"          N/A",null,null,null,null,null,null,"Service Category - Special",null,null,null,null,null,null,null,null,null,640,"Total Maximum Allowable EU Revenue","r610 + r620 + r630",{"$f":"SUM(BL87:BL89)","v":0},"      N/A","      N/A","      N/A","      N/A","      N/A","   Zone Minimum Pricing Checks:"]
[null,null,null,null,null,null,null,null,null,null,null,null,null,null,null,null,null,null,null,null,null,null,null,null,null,null,null,null,null,null,null,null,null,null,null,null,null,731,"         DS1 Spec Density Zone 1",null,0,null,null,"          N/A",null,null,null,null,null,null,"-",null,null,null,null,null,null,null,null,null,650,"Remaining CMT Revenue/(CMT Over-recovery)","r600 - r640",{"$f":"BL86-BL90","v":0},"      N/A","      N/A","      N/A","      N/A","      N/A","     Primary Res, SLB, & LifeLine",{"$f":"IF(OR(BL130=\"JurisSPM\",BL130=\"JurisSP\",BL130=\"JurisS\",BL130=\"JurisMix\"),\"See Juris\",IF(AND(OR(BL130=\"CAP1\",BL130=\"CAP2\"),AND(BL206<>0,ISNUMBER(BL206)=TRUE)),\"FAIL\",IF(AND(BM29<>0,BM242<BL231),\"FAIL\",IF(AND(BN29<>0,BN242<BL231),\"FAIL\",IF(AND(BO29<>0,BO242<BL231),\"FAIL\",IF(AND(BP29<>0,BP242<BL231),\"FAIL\",IF(AND(BQ29<>0,BQ242<BL231),\"FAIL\",\"PASS\")))))))","v":"PASS"},{"$f":"IF(AND(BM29<>0,BM242<BL231),\"Prim Res Zone A < Min\",IF(BL206=\"no\",\"Avg'd Prim Rate above Min\",IF(AND(BN29<>0,BN242<BL231),\"Prim Res Zone B < Min\",IF(AND(BO29<>0,BO242<BL231),\"Prim Res Zone C < Min\",IF(AND(BP29<>0,BP242<BL231),\"Prim Res Zone D < Min\",IF(AND(BQ29<>0,BQ242<BL231),\"Prim Res Zone Other < Min\",\"Prim Rates above Min\"))))))","v":"Prim Rates above Min"}]
[null,null,null,null,null,null,null,null,null,null,null,null,null,null,null,null,null,null,null,null,null,null,null,null,null,null,null,null,null,null,null,null,null,null,null,null,null,732,"         DS1 Spec Density Zone 2",null,0,null,null,"          N/A",null,null,null,null,null,"","Non-Density Zone",null,null,null,null,null,null,null,null,null,652,"Maximum Allowable PICC Revenue","r430*( r200+r210/9+r220 ) or Sum of Jurisdictns",{"$f":"CAPs!D92","v":0},"      N/A","      N/A","      N/A","      N/A","      N/A","     NonPrimary Res & BRI ISDN",{"$f":"IF(OR(BL130=\"JurisSPM\",BL130=\"JurisSP\",BL130=\"JurisS\",BL130=\"JurisMix\"),\"See Juris\",IF(AND(OR(BL130=\"CAP1\",BL130=\"CAP2\"),AND(BL206<>0,ISNUMBER(BL206)=TRUE)),\"FAIL\",IF(AND(BM29<>0,BM243<BL234),\"FAIL\",IF(AND(BN29<>0,BN243<BL234),\"FAIL\",IF(AND(BO29<>0,BO243<BL234),\"FAIL\",IF(AND(BP29<>0,BP243<BL234),\"FAIL\",IF(AND(BQ29<>0,BQ243<BL234),\"FAIL\",\"PASS\")))))))","v":"PASS"},{"$f":"IF(AND(BM29<>0,BM243<BL234),\"Non Prim Zone A < Min\",IF(BL206=\"no\",\"Avg'd Non Prim Rates above Min\",IF(AND(BN29<>0,BN243<BL234),\"Non Prim Zone B < Min\",IF(AND(BO29<>0,BO243<BL234),\"Non Prim Zone C < Min\",IF(AND(BP29<>0,BP243<BL234),\"Non Prim Zone D < Min\",IF(AND(BQ29<>0,BQ243<BL234),\"Non Prim Zone Other < Min\",\"Non Prim Rates above Min\"))))))","v":"Non Prim Rates above Min"}]
[null,null,null,null,null,null,null,null,null,null,null,null,null,null,null,null,null,null,null,null,null,null,null,null,null,null,null,null,null,null,null,null,null,null,null,null,null,733,"         DS1 Spec Density Zone 3",null,0,null,null,"          N/A",null,null,null,null,null,4141,"VG,Met,Tgh SP NonDZ ChanTerm",null,null,"          N/A","          N/A","          N/A",null,null,null,"    N/A",660,"Total USAC Receipts (at t)","RTE1r185f or Sum of Jurisdictns",{"$f":"CAPs!D93","v":0},"      N/A","      N/A","      N/A","      N/A","      N/A","     MLB, PRI ISDN, & Centrex",{"$f":"IF(OR(BL130=\"JurisSPM\",BL130=\"JurisSP\",BL130=\"JurisS\",BL130=\"JurisMix\"),\"See Juris\",IF(AND(OR(BL130=\"CAP1\",BL130=\"CAP2\"),AND(BL206<>0,ISNUMBER(BL206)=TRUE)),\"FAIL\",IF(AND(BM29<>0,BM244<BL237),\"FAIL\",IF(AND(BN29<>0,BN244<BL237),\"FAIL\",IF(AND(BO29<>0,BO244<BL237),\"FAIL\",IF(AND(BP29<>0,BP244<BL237),\"FAIL\",IF(AND(BQ29<>0,BQ244<BL237),\"FAIL\",\"PASS\")))))))","v":"PASS"},{"$f":"IF(AND(BM29<>0,BM244<BL237),\"MLB Zone A < Min\",IF(BL206=\"no\",\"Avg'd MLB Rates above Min\",IF(AND(BN29<>0,BN244<BL237),\"MLB Zone B < Min\",IF(AND(BO29<>0,BO244<BL237),\"MLB Zone C < Min\",IF(AND(BP29<>0,BP244<BL237),\"MLB Zone D < Min\",IF(AND(BQ29<>0,BQ244<BL237),\"MLB Zone Other < Min\",\"MLB Rates above Min\"))))))","v":"MLB Rates above Min"}]
[null,null,null,null,null,null,null,null,null,null,null,null,null,null,null,null,null,null,null,null,null,null,null,null,null,null,null,null,null,null,null,null,null,null,null,null,null,734,"         DS1 Spec Density Zone 4",null,0,null,null,"          N/A",null,null,null,null,null,4144,"VG,Met,Tgh SP NonDZ Other",null,"          N/A","          N/A","          N/A","          N/A",null,null,null,"    N/A","","",""]
[null,null,null,null,null,null,null,null,null,null,null,null,null,null,null,null,null,null,null,null,null,null,null,null,null,null,null,null,null,null,null,null,null,null,null,null,null,735,"         DS1 Spec Density Zone 5",null,0,null,null,"          N/A",null,null,null,null,null,"","",null,null,null,null,null,null,null,null,null,"","","",null,null,null,null,null,null,"   Zone Maximum Pricing Checks:"]
[null,null,null,null,null,null,null,null,null,null,null,null,null,null,null,null,null,null,null,null,null,null,null,null,null,null,null,null,null,null,null,null,null,null,null,null,null,740,"    DS-3 SubCat SP (undesignated)",null,0,null,null,"          N/A",null,null,null,null,null,4148,"Total VG,Met,Tgh SP NonZone",null,"          N/A","          N/A","          N/A","          N/A",{"$f":"SUM(BE93:BE94)","v":0},{"$f":"SUM(BF93:BF94)","v":0},{"$f":"SUM(BG93:BG94)","v":0},"    N/A","","","",null,null,null,null,null,null,"     Primary Res, SLB, & LifeLine",{"$f":"IF(OR(BL130=\"JurisSPM\",BL130=\"JurisSP\",BL130=\"JurisS\",BL130=\"JurisMix\"),\"See Juris\",IF(AND(OR(BL130=\"CAP1\",BL130=\"CAP2\"),AND(BL206<>0,ISNUMBER(BL206)=TRUE)),\"FAIL\",IF(AND(BM29<>0,BM242>BL232),\"FAIL\",IF(AND(BN29<>0,BN242>BL232),\"FAIL\",IF(AND(BO29<>0,BO242>BL232),\"FAIL\",IF(AND(BP29<>0,BP242>BL232),\"FAIL\",IF(AND(BQ29<>0,BQ242>BL232),\"FAIL\",\"PASS\")))))))","v":"PASS"},{"$f":"IF(AND(BM29<>0,BM242>BL232),\"Prim Res Zone A > Max\",IF(BL206=\"no\",\"Avg'd Prim Rate below Max\",IF(AND(BN29<>0,BN242>BL232),\"Prim Res Zone B > Max\",IF(AND(BO29<>0,BO242>BL232),\"Prim Res Zone C > Max\",IF(AND(BP29<>0,BP242>BL232),\"Prim Res Zone D > Max\",IF(AND(BQ29<>0,BQ242>BL232),\"Prim Res Zone Other > Max\",\"Prim Rates below Max\"))))))","v":"Prim Rates below Max"}]
[null,null,null,null,null,null,null,null,null,null,null,null,null,null,null,null,null,null,null,null,null,null,null,null,null,null,null,null,null,null,null,null,null,null,null,null,null,741,"         DS3 Spec Density Zone 1",null,0,null,null,"          N/A",null,null,null,null,null,null,null,null,null,null,null,null,null,null,null,null,"","","",null,null,null,null,null,null,"     NonPrimary Res & BRI ISDN",{"$f":"IF(OR(BL130=\"JurisSPM\",BL130=\"JurisSP\",BL130=\"JurisS\",BL130=\"JurisMix\"),\"See Juris\",IF(AND(OR(BL130=\"CAP1\",BL130=\"CAP2\"),AND(BL206<>0,ISNUMBER(BL206)=TRUE)),\"FAIL\",IF(AND(BM29<>0,BM243>BL235),\"FAIL\",IF(AND(BN29<>0,BN243>BL235),\"FAIL\",IF(AND(BO29<>0,BO243>BL235),\"FAIL\",IF(AND(BP29<>0,BP243>BL235),\"FAIL\",IF(AND(BQ29<>0,BQ243>BL235),\"FAIL\",\"PASS\")))))))","v":"PASS"},{"$f":"IF(AND(BM29<>0,BM243>BL235),\"Non Prim Zone A > Max\",IF(BL206=\"no\",\"Avg'd Non Prim Rates below Max\",IF(AND(BN29<>0,BN243>BL235),\"Non Prim Zone B > Max\",IF(AND(BO29<>0,BO243>BL235),\"Non Prim Zone C > Max\",IF(AND(BP29<>0,BP243>BL235),\"Non Prim Zone D > Max\",IF(AND(BQ29<>0,BQ243>BL235),\"Non Prim Zone Other > Max\",\"Non Prim Rates below Max\"))))))","v":"Non Prim Rates below Max"}]
[null,null,null,null,null,null,null,null,null,null,null,null,null,null,null,null,null,null,null,null,null,null,null,null,null,null,null,null,null,null,null,null,null,null,null,null,null,742,"         DS3 Spec Density Zone 2",null,0,null,null,"          N/A",null,null,null,null,null,4197,"Total VG/Met/Tgh SP Service Category",null,"          N/A","          N/A","          N/A","          N/A",{"$f":"BE96","v":0},{"$f":"BF96","v":0},{"$f":"BG96","v":0},"    N/A","","","",null,null,null,null,null,null,"     MLB, PRI ISDN, & Centrex",{"$f":"IF(OR(BL130=\"JurisSPM\",BL130=\"JurisSP\",BL130=\"JurisS\",BL130=\"JurisMix\"),\"See Juris\",IF(AND(OR(BL130=\"CAP1\",BL130=\"CAP2\"),AND(BL206<>0,ISNUMBER(BL206)=TRUE)),\"FAIL\",IF(AND(BM29<>0,BM244>BL238),\"FAIL\",IF(AND(BN29<>0,BN244>BL238),\"FAIL\",IF(AND(BO29<>0,BO244>BL238),\"FAIL\",IF(AND(BP29<>0,BP244>BL238),\"FAIL\",IF(AND(BQ29<>0,BQ244>BL238),\"FAIL\",\"PASS\")))))))","v":"PASS"},{"$f":"IF(AND(BM29<>0,BM244>BL238),\"MLB Zone A > Max\",IF(BL206=\"no\",\"Avg'd MLB Rates below Max\",IF(AND(BN29<>0,BN244>BL238),\"MLB Zone B > Max\",IF(AND(BO29<>0,BO244>BL238),\"MLB Zone C > Max\",IF(AND(BP29<>0,BP244>BL238),\"MLB Zone D > Max\",IF(AND(BQ29<>0,BQ244>BL238),\"MLB Zone Other > Max\",\"MLB Rates below Max\"))))))","v":"MLB Rates below Max"}]
[null,null,null,null,null,null,null,null,null,null,null,null,null,null,null,null,null,null,null,null,null,null,null,null,null,null,null,null,null,null,null,null,null,null,null,null,null,743,"         DS3 Spec Density Zone 3",null,0,null,null,"          N/A",null,null,null,null,null,4198,"VG/Met/Tgh SP SBI",null,"          N/A","          N/A","          N/A","          N/A","          N/A","          N/A","          N/A",{"$f":"IF(AND(J25=0,BG98<>0),F25,IF(BF98=0,J25,J25*BG98/BF98))","v":0},680,"Remaining Recoverable Revenue/(Total over-recovery)","r650-r660 or Sum of Jurisdictns",{"$f":"CAPs!D99","v":0},"      N/A","      N/A","      N/A","      N/A","      N/A"]
[null,null,null,null,null,null,null,null,null,null,null,null,null,null,null,null,null,null,null,null,null,null,null,null,null,null,null,null,null,null,null,null,null,null,null,null,null,744,"         DS3 Spec Density Zone 4",null,0,null,null,"          N/A",null,null,null,null,null,4199,"VG/Met/Tgh SP Upper SBI Limit",null,"          N/A","          N/A","          N/A","          N/A","          N/A","          N/A","          N/A",{"$f":"IF(AND(J25=0,BG98<>0),105,IF(L41=0,0,IF(BE98=0,M25*$W$54/L41*1.05,M25*$W$54/L41*1.05*(1+(SUM($AO$87:$AO$87)+BE98*IF(BE358=0,0,AO103/BE358))/BE98))))","v":0},"","","",null,null,null,null,null,null,"   Class of Service Checks:"]
[null,null,null,null,null,null,null,null,null,null,null,null,null,null,null,null,null,null,null,null,null,null,null,null,null,null,null,null,null,null,null,null,null,null,null,null,null,745,"         DS3 Spec Density Zone 5",null,0,null,null,"          N/A",null,null,null,null,null,"","",null,null,null,null,null,null,null,null,null,"","","",null,null,null,null,null,null,"     Zone A",{"$f":"IF(BM$243<BM$242,\"FAIL\",IF(BM$244<BM$243,\"FAIL\",\"PASS\"))","v":"PASS"},{"$f":"IF(BM$243<BM$242,\"Zone A Non Prim < Prim\",IF(BM$244<BM$243,\"Zone A MLB < Non Prim\",\"Zone A OK\"))","v":"Zone A OK"}]
[null,null,null,null,null,null,null,null,null,null,null,null,null,null,null,null,null,null,null,null,null,null,null,null,null,null,null,null,null,null,null,null,null,null,null,null,null,760,"Wideband (undesignated)",null,0,null,null,"          N/A",null,null,null,null,null,"","",null,null,null,null,{"$f":"IF(BE358=0,0,AO103/BE358)","v":0},null,null,null,null,"","Calculation of PICC for MultiLine Business, PRI ISDN, & Centrex Lines",null,null,null,null,null,null,null,"     Zone B",{"$f":"IF(BL206=\"no\",\"N/A\",IF(BN$243<BN$242,\"FAIL\",IF(BN$244<BN$243,\"FAIL\",\"PASS\")))","v":"PASS"},{"$f":"IF(BL206=\"no\",\"No Deaveraging Allowed\",IF(BN$243<BN$242,\"Zone B Non Prim < Prim\",IF(BN$244<BN$243,\"Zone B MLB < Non Prim\",\"Zone B OK\")))","v":"Zone B OK"}]
[null,null,null,null,null,null,null,null,null,null,null,null,null,null,null,null,null,null,null,null,null,null,null,null,null,null,null,null,null,null,null,null,null,null,null,null,null,770,"SP Undesignated to Svc Bands",null,null,null,null,"          N/A",null,null,null,null,null,"","Audio & Video Service Category",null,null,null,null,null,null,null,null,null,800,"MLB, PRI & Centrex PICC Rate (Dec. 29, 2011)","r430",{"$f":"BL49","v":0},"      N/A","      N/A","      N/A","      N/A","      N/A","     Zone C",{"$f":"IF(BL206=\"no\",\"N/A\",IF(BO$243<BO$242,\"FAIL\",IF(BO$244<BO$243,\"FAIL\",\"PASS\")))","v":"PASS"},{"$f":"IF(BL206=\"no\",\"No Deaveraging Allowed\",IF(BO$243<BO$242,\"Zone C Non Prim < Prim\",IF(BO$244<BO$243,\"Zone C MLB < Non Prim\",\"Zone C OK\")))","v":"Zone C OK"}]
[null,null,null,null,null,null,null,null,null,null,null,null,null,null,null,null,null,null,null,null,null,null,null,null,null,null,null,null,null,null,null,null,null,null,null,null,null,780,"Total Special Access",null,null,null,null,{"$f":"AW47","v":0},null,null,null,null,null,null,"-","-",null,null,null,null,null,null,null,null,810,"MLB, PRI & Centrex PICC Revenue Target","if r680>0 then r680 else 0, or Sum of Jurisdictns",{"$f":"IF($G$7<>\"y\",IF(BL99>0,BL99,0),CAPs!D104)","v":0},"      N/A","      N/A","      N/A","      N/A","      N/A","     Zone D",{"$f":"IF(BL206=\"no\",\"N/A\",IF(BP$243<BP$242,\"FAIL\",IF(BP$244<BP$243,\"FAIL\",\"PASS\")))","v":"PASS"},{"$f":"IF(BL206=\"no\",\"No Deaveraging Allowed\",IF(BP$243<BP$242,\"Zone D Non Prim < Prim\",IF(BP$244<BP$243,\"Zone D MLB < Non Prim\",\"Zone D OK\")))","v":"Zone D OK"}]
[null,null,null,null,null,null,null,null,null,null,null,null,null,null,null,null,null,null,null,null,null,null,null,null,null,null,null,null,null,null,null,null,null,null,null,null,null,null,null,null,null,null,null,null,null,null,null,null,null,"","Non-Zone Audio & Video",null,null,null,null,null,null,null,null,null,820,"MLB, PRI & Centrex PICC Target Rate","r810 / (r200 + r210/9 + r220)",{"$f":"IF((BL32+BL33+BL34)<>0,+BL104/(BL32+BL33/9+BL34),0)","v":0},"      N/A","      N/A","      N/A","      N/A","      N/A","     Other Zone",{"$f":"IF(BL206=\"no\",\"N/A\",IF(BQ$243<BQ$242,\"FAIL\",IF(BQ$244<BQ$243,\"FAIL\",\"PASS\")))","v":"PASS"},{"$f":"IF(BL206=\"no\",\"No Deaveraging Allowed\",IF(BQ$243<BQ$242,\"Other Zone Non Prim < Prim\",IF(BQ$244<BQ$243,\"Other Zone MLB < Non Prim\",\"Other Zone OK\")))","v":"Other Zone OK"}]
[null,null,null,null,null,null,null,null,null,null,null,null,null,null,null,null,null,null,null,null,null,null,null,null,null,null,null,null,null,null,null,null,null,null,null,null,null,null,null,null,null,null,null,null,null,null,null,null,null,4361,"Audio/Video NonDZ Channel Term",null,null,"          N/A","          N/A","          N/A",null,null,null,"    N/A",830,"Maximum Average MLB, PRI & Centrex PICC Rate","Min(r800,r820)",{"$f":"MIN(BL103,BL105)","v":0},"      N/A","      N/A","      N/A","      N/A","      N/A"]
[null,null,null,null,null,null,null,null,null,null,null,null,null,null,null,null,null,null,null,null,null,null,null,null,null,null,null,null,null,null,null,null,null,null,null,null,null,null,null,null,null,null,null,null,null,null,null,null,null,4364,"Audio/Video NonDZ Other",null,"          N/A","          N/A","          N/A","          N/A",null,null,null,"    N/A",840,"Maximum MLB & PRI PICC Revenue","r830 * r200, or Sum of Jurisdictions",{"$f":"CAPs!D107","v":0},"      N/A","      N/A","      N/A","      N/A","      N/A","Proposed Revenues (from CAP5)"]
[null,null,null,null,null,null,null,null,null,null,null,null,null,null,null,null,null,null,null,null,null,null,null,null,null,null,null,null,null,null,null,null,null,null,null,null,null,null,null,null,null,null,null,null,null,null,null,null,null,"","",null,null,null,null,null,null,null,null,null,850,"Maximum Centrex PICC Revenue","r830 * (r210/9 + r220), or Sum of Jurisdictions",{"$f":"CAPs!D108","v":0},"      N/A","      N/A","      N/A","      N/A","      N/A","     CMT Revenue Too High?",null,{"$f":"IF(TRUNC(BL356,0)>TRUNC(BL330,0),\"     HIGH\",\"       *\")","v":"       *"}]
[null,null,null,null,null,null,null,null,null,null,null,null,null,null,null,null,null,null,null,null,null,null,null,null,null,null,null,null,null,null,null,null,null,null,null,null,null,null,null,null,null,null,null,null,null,null,null,null,null,4368,"Total Audio/Video NonZone",null,"          N/A","          N/A","          N/A","          N/A",{"$f":"SUM(BE106:BE107)","v":0},{"$f":"SUM(BF106:BF107)","v":0},{"$f":"SUM(BG106:BG107)","v":0},"    N/A",860,"Total Maximum PICC Revenue (Proposed)","r840 + r850",{"$f":"BL107+BL108","v":0},"      N/A","      N/A","      N/A","      N/A","      N/A"]
[null,null,null,null,null,null,null,null,null,null,null,null,null,null,null,null,null,null,null,null,null,null,null,null,null,null,null,null,null,null,null,null,null,null,null,null,null,null,null,null,null,null,null,null,null,null,null,null,null,null,null,null,null,null,null,null,null,null,null,null,"","",""]
[null,null,null,null,null,null,null,null,null,null,null,null,null,null,null,null,null,null,null,null,null,null,null,null,null,null,null,null,null,null,null,null,null,null,null,null,null,null,null,null,null,null,null,null,null,null,null,null,null,4397,"Total Audio/Video Service Category",null,"          N/A","          N/A","          N/A","          N/A",{"$f":"BE109","v":0},{"$f":"BF109","v":0},{"$f":"BG109","v":0},"    N/A","","Calculation of CCL Rates and Revenue",""]
[null,null,null,null,null,null,null,null,null,null,null,null,null,null,null,null,null,null,null,null,null,null,null,null,null,null,null,null,null,null,null,null,null,null,null,null,null,null,null,null,null,null,null,null,null,null,null,null,null,4398,"Audio/Video SBI",null,"          N/A","          N/A","          N/A","          N/A","          N/A","          N/A","          N/A",{"$f":"IF(AND(J26=0,BG111<>0),F26,IF(BF111=0,J26,+J26*BG111/BF111))","v":0},"","","",null,null,null,null,null,null,null,null,"Total from"]
[null,null,null,null,null,null,null,null,null,null,null,null,null,null,null,null,null,null,null,null,null,null,null,null,null,null,null,null,null,null,null,null,null,null,null,null,null,null,null,null,null,null,null,null,null,null,null,null,null,4399,"Audio/Video Upper SBI Limit",null,"          N/A","          N/A","          N/A","          N/A","          N/A","          N/A","          N/A",{"$f":"IF(AND(J26=0,BG111<>0),105,IF(L41=0,0,IF(BE111=0,M26*$W$54/L41*1.05,M26*$W$54/L41*1.05*(1+(SUM($AO$88:$AO$88)+BE111*IF(BE358=0,0,AO103/BE358))/BE111))))","v":0},"","","",null,null,null,null,null,null,null,"A tab","CAPs tab","Delta","Flag"]
[null,null,null,null,null,null,null,null,null,null,null,null,null,null,null,null,null,null,null,null,null,null,null,null,null,null,null,null,null,null,null,null,null,null,null,null,null,null,null,null,null,null,null,null,null,null,null,null,null,null,null,null,null,null,null,null,null,null,null,null,"","","",null,null,null,null,null,null,"Exog Recoverable from ARC (from CAP5 r610)",{"$f":"BL363","v":0},{"$f":"CAPs!D363","v":0},{"$f":"ROUND(BS114-BT114,0)","v":0},{"$f":"IF(BU114>0,\"  CAPs is LOW\",IF(BU114<0,\" CAPs is HIGH\",\"       *\"))","v":"       *"}]
[null,null,null,null,null,null,null,null,null,null,null,null,null,null,null,null,null,null,null,null,null,null,null,null,null,null,null,null,null,null,null,null,null,null,null,null,null,null,null,null,null,null,null,null,null,null,null,null,null,"","",null,null,null,null,null,null,null,null,null,"","",""]
[null,null,null,null,null,null,null,null,null,null,null,null,null,null,null,null,null,null,null,null,null,null,null,null,null,null,null,null,null,null,null,null,null,null,null,null,null,null,null,null,null,null,null,null,null,null,null,null,null,"","",null,null,null,null,null,null,null,null,null,940,"Prem. Originating MOU Rate as of Dec. 29, 2011","Input or Weighted Avg of Jurisdictns",{"$f":"CAPs!D116","v":0},"      N/A","      N/A","      N/A","      N/A","      N/A"]
[null,null,null,null,null,null,null,null,null,null,null,null,null,null,null,null,null,null,null,null,null,null,null,null,null,null,null,null,null,null,null,null,null,null,null,null,null,null,null,null,null,null,null,null,null,null,null,null,null,"","",null,null,null,null,null,null,null,null,null,945,"Prem. Terminating MOU Rate as of Dec. 29, 2011","Input or Weighted Avg of Jurisdictns",{"$f":"CAPs!D117","v":0},"      N/A","      N/A","      N/A","      N/A","      N/A"]
[null,null,null,null,null,null,null,null,null,null,null,null,null,null,null,null,null,null,null,null,null,null,null,null,null,null,null,null,null,null,null,null,null,null,null,null,null,null,null,null,null,null,null,null,null,null,null,null,null,"","",null,null,null,null,null,null,null,null,null,950,"Maximum CCL Revenue","r810 - r860, or Sum of Jurisdictions",{"$f":"CAPs!D118","v":0},"      N/A","      N/A","      N/A","      N/A","      N/A"]
[null,null,null,null,null,null,null,null,null,null,null,null,null,null,null,null,null,null,null,null,null,null,null,null,null,null,null,null,null,null,null,null,null,null,null,null,null,null,null,null,null,null,null,null,null,null,null,null,null,"","",null,null,null,null,null,null,null,null,null,960,"Maximum CCL Originating Rate","Min(r940, r950/r350)",{"$f":"MIN(BL116,IF(BL43=0,0,BL118/BL43))","v":0},"      N/A","      N/A","      N/A","      N/A","      N/A"]
[null,null,null,null,null,null,null,null,null,null,null,null,null,null,null,null,null,null,null,null,null,null,null,null,null,null,null,null,null,null,null,null,null,null,null,null,null,null,null,null,null,null,null,null,null,null,null,null,null,"","",null,null,null,null,null,null,null,null,null,970,"Maximum CCL Terminating Rate","Min(r945,(r950 - (r350*r960))/r320)",{"$f":"MIN(BL117,IF(BL40=0,0,(BL118-(BL43*BL119))/BL40))","v":0},"      N/A","      N/A","      N/A","      N/A","      N/A"]
[null,null,null,null,null,null,null,null,null,null,null,null,null,null,null,null,null,null,null,null,null,null,null,null,null,null,null,null,null,null,null,null,null,null,null,null,null,null,null,null,null,null,null,null,null,null,null,null,null,null,null,null,null,null,null,null,null,null,null,null,"","",""]
[null,null,null,null,null,null,null,null,null,null,null,null,null,null,null,null,null,null,null,null,null,null,null,null,null,null,null,null,null,null,null,null,null,null,null,null,null,null,null,null,null,null,null,null,null,null,null,null,null,null,null,null,null,null,null,null,null,null,null,null,980,"Maximum Originating CCL Revenue","r960 * r350, or Sum of Jurisdictions",{"$f":"CAPs!D122","v":0},"      N/A","      N/A","      N/A","      N/A","      N/A"]
[null,null,null,null,null,null,null,null,null,null,null,null,null,null,null,null,null,null,null,null,null,null,null,null,null,null,null,null,null,null,null,null,null,null,null,null,null,null,null,null,null,null,null,null,null,null,null,null,null,null,null,null,null,null,null,null,null,null,null,null,990,"Maximum Terminating CCL Revenue","r970 * r320, or Sum of Jurisdictions",{"$f":"CAPs!D123","v":0},"      N/A","      N/A","      N/A","      N/A","      N/A"]
[null,null,null,null,null,null,null,null,null,null,null,null,null,null,null,null,null,null,null,null,null,null,null,null,null,null,null,null,null,null,null,null,null,null,null,null,null,null,null,null,null,null,null,null,null,null,null,null,null,null,null,null,null,null,null,null,null,null,null,null,995,"Total Maximum CCL Revenue","r980 + r990",{"$f":"BL122+BL123","v":0},"      N/A","      N/A","      N/A","      N/A","      N/A"]
[null,null,null,null,null,null,null,null,null,null,null,null,null,null,null,null,null,null,null,null,null,null,null,null,null,null,null,null,null,null,null,null,null,null,null,null,null,null,null,null,null,null,null,null,null,null,null,null,null,"","",null,null,null,null,null,null,null,null,null,"","",""]
[null,null,null,null,null,null,null,null,null,null,null,null,null,null,null,null,null,null,null,null,null,null,null,null,null,null,null,null,null,null,null,null,null,null,null,null,null,null,null,null,null,null,null,null,null,null,null,null,null,"","",null,null,null,null,null,null,null,null,null,"","EU Pricing Decision",""]
[null,null,null,null,null,null,null,null,null,null,null,null,null,null,null,null,null,null,null,null,null,null,null,null,null,null,null,null,null,null,null,null,null,null,null,null,null,null,null,null,null,null,null,null,null,null,null,null,null,"","",null,null,null,null,null,null,null,null,null,1100,"Is Deaveraging of EUCL Rates Possible?","if r680>0,\"No\",\"Yes\"",{"$f":"IF(BL99>0,\"NO\",\"YES\")","v":"YES"},"      N/A","      N/A","      N/A","      N/A","      N/A"]
[null,null,null,null,null,null,null,null,null,null,null,null,null,null,null,null,null,null,null,null,null,null,null,null,null,null,null,null,null,null,null,null,null,null,null,null,null,null,null,null,null,null,null,null,null,null,null,null,null,"","",null,null,null,null,null,null,null,null,null,1110,"Do you have Pooling Revenues?","Input","No","      N/A","      N/A","      N/A","      N/A","      N/A"]
[null,null,null,null,null,null,null,null,null,null,null,null,null,null,null,null,null,null,null,null,null,null,null,null,null,null,null,null,null,null,null,null,null,null,null,null,null,null,null,null,null,null,null,null,null,null,null,null,null,"","",null,null,null,null,null,null,null,null,null,1120,"Are you going to deaverage EUCL Rates by zone?","Input (If r1100 = \"No\" you must input \"No\")",null,"      N/A","      N/A","      N/A","      N/A","      N/A"]
[null,null,null,null,null,null,null,null,null,null,null,null,null,null,null,null,null,null,null,null,null,null,null,null,null,null,null,null,null,null,null,null,null,null,null,null,null,null,null,null,null,null,null,null,null,null,null,null,null,"","",null,null,null,null,null,null,null,null,null,1130,"CAP Form containing final EUCL Rates","if g6=g7=g8=Y,JurisSPM; if g6=g7=Y&g8=N,",{"$f":"IF($G$10=\"y\",\"JurisMix\",IF($G$8=\"y\",\"JurisSPM\",IF($G$7=\"y\",\"JurisSP\",IF($G$6=\"y\",\"JurisS\",IF(BL99>0,\"CAP1\",IF(BL128=\"No\",\"CAP2\",\"CAP3\"))))))","v":"CAP2"},"      N/A","      N/A","      N/A","      N/A","      N/A"]
[null,null,null,null,null,null,null,null,null,null,null,null,null,null,null,null,null,null,null,null,null,null,null,null,null,null,null,null,null,null,null,null,null,null,null,null,null,null,null,null,null,null,null,null,null,null,null,null,null,"","",null,null,null,null,null,null,null,null,null,"","","  JurisSP; if g6=y&g7=g8=N&r680<=0,JurisS; if g10=y,JurisMix; if r680>0,CAP1; if r1120=No,CAP2;elseCAP3"]
[null,null,null,null,null,null,null,null,null,null,null,null,null,null,null,null,null,null,null,null,null,null,null,null,null,null,null,null,null,null,null,null,null,null,null,null,null,null,null,null,null,null,null,null,null,null,null,null,null,"","",null,null,null,null,null,null,null,null,null,1140,"Max. Allowable PR, Lifeline & SLB EU Revenue","if Juris rates,sum of Juris;if 1130=CAP1,r610;else1130",{"$f":"CAPs!D132","v":0},"      N/A","      N/A","      N/A","      N/A","      N/A"]
[null,null,null,null,null,null,null,null,null,null,null,null,null,null,null,null,null,null,null,null,null,null,null,null,null,null,null,null,null,null,null,null,null,null,null,null,null,null,null,null,null,null,null,null,null,null,null,null,null,"","",null,null,null,null,null,null,null,null,null,1150,"Max. Allowable NonPrimary Res & BRI EU Revenue","if Juris rates,sum of Juris;if 1130 =CAP1,r620;else1130",{"$f":"CAPs!D133","v":0},"      N/A","      N/A","      N/A","      N/A","      N/A"]
[null,null,null,null,null,null,null,null,null,null,null,null,null,null,null,null,null,null,null,null,null,null,null,null,null,null,null,null,null,null,null,null,null,null,null,null,null,null,null,null,null,null,null,null,null,null,null,null,null,"","",null,null,null,null,null,null,null,null,null,1160,"Max. Allowable MLB, PRI & Centrex EU Revenue","if Juris rates,sum of Juris;if 1130=CAP1,r630;else1130",{"$f":"CAPs!D134","v":0},"      N/A","      N/A","      N/A","      N/A","      N/A"]
[null,null,null,null,null,null,null,null,null,null,null,null,null,null,null,null,null,null,null,null,null,null,null,null,null,null,null,null,null,null,null,null,null,null,null,null,null,null,null,null,null,null,null,null,null,null,null,null,null,"RTE-1",null,null,null,null,null,null,null,null,null,null,"CAP-2",null,null,null,null,null,null,null,null,"ANALYZER"]
[null,null,null,null,null,null,null,null,null,null,null,null,null,null,null,null,null,null,null,null,null,null,null,null,null,null,null,null,null,null,null,null,null,null,null,null,null,null,null,null,null,null,null,null,null,null,null,null,null,{"$f":"\"Filing Date:                \"&DATE","v":"Filing Date:                06/16/2020"},null,null,null,null,null,null,null,null,null,null,{"$f":"\"Filing Date:                \"&DATE","v":"Filing Date:                06/16/2020"},null,null,null,null,null,null,null,null,{"$f":"\"Filing Date:                \"&DATE","v":"Filing Date:                06/16/2020"}]
[null,null,null,null,null,null,null,null,null,null,null,null,null,null,null,null,null,null,null,null,null,null,null,null,null,null,null,null,null,null,null,null,null,null,null,null,null,null,null,null,null,null,null,null,null,null,null,null,null,{"$f":"\"Filing Entity:               \"&COSA","v":"Filing Entity:               "},null,null,null,null,null,null,null,null,null,null,{"$f":"\"Filing Entity:               \"&COSA","v":"Filing Entity:               "},null,null,null,null,null,null,null,null,{"$f":"\"Filing Entity:               \"&COSA","v":"Filing Entity:               "}]
[null,null,null,null,null,null,null,null,null,null,null,null,null,null,null,null,null,null,null,null,null,null,null,null,null,null,null,null,null,null,null,null,null,null,null,null,null,null,null,null,null,null,null,null,null,null,null,null,null,{"$f":"\"Transmittal Number:   \"&TRANSMITTAL","v":"Transmittal Number:   "},null,null,null,null,null,null,null,null,null,null,{"$f":"\"Transmittal Number:   \"&TRANSMITTAL","v":"Transmittal Number:   "},null,null,null,null,null,null,null,null,{"$f":"\"Transmittal Number:   \"&TRANSMITTAL","v":"Transmittal Number:   "}]
[null,null,null,null,null,null,null,null,null,null,null,null,null,null,null,null,null,null,null,null,null,null,null,null,null,null,null,null,null,null,null,null,null,null,null,null,null,null,null,null,null,null,null,null,null,null,null,null,null,{"$f":"NAME","v":0},null,null,null,null,null,null,null,null,null,null,{"$f":"NAME","v":0},null,null,null,null,null,null,null,null,{"$f":"NAME","v":0}]
[null,null,null,null,null,null,null,null,null,null,null,null,null,null,null,null,null,null,null,null,null,null,null,null,null,null,null,null,null,null,null,null,null,null,null,null,null,null,null,null,null,null,null,null,null,null,null,null,null,"Page 3 of 6",null,null,null,null,"Price Caps Tariff Review Plan",null,null,null,null,null,"Page 1 of 1",null,"Price Cap Tariff Review Plan",null,null,null,null,null,null,"Page 3 of 5"]
[null,null,null,null,null,null,null,null,null,null,null,null,null,null,null,null,null,null,null,null,null,null,null,null,null,null,null,null,null,null,null,null,null,null,null,null,null,null,null,null,null,null,null,null,null,null,null,null,null,null,null,null,null,null,"Special Access Basket",null,null,null,null,null,null,null,"Manual Input of EUCL Rates - No PICC or MOU Rates"]
[null,null,null,null,null,null,null,null,null,null,null,null,null,null,null,null,null,null,null,null,null,null,null,null,null,null,null,null,null,null,null,null,null,null,null,null,null,null,null,null,null,null,null,null,null,null,null,null,null,null,null,null,null,null,null,null,null,null,null,null,null,null,null,null,null,null,null,null,null,null,"IND-1","RTE-1","Delta","Flag"]
[null,null,null,null,null,null,null,null,null,null,null,null,null,null,null,null,null,null,null,null,null,null,null,null,null,null,null,null,null,null,null,null,null,null,null,null,null,null,null,null,null,null,null,null,null,null,null,null,null,null,null,null,null,null,null,null,"BASE PERIOD","BASE PERIOD","BASE PERIOD",null,null,null,null,"Total Jurisdiction",null,null,null,null,null,"SPECIAL ACCESS--------------------------------------","-","-","-","-"]
[null,null,null,null,null,null,null,null,null,null,null,null,null,null,null,null,null,null,null,null,null,null,null,null,null,null,null,null,null,null,null,null,null,null,null,null,null,null,null,null,null,null,null,null,null,null,null,null,null,null,null,null,"BASE","RATES AT",null,null,"DEMAND x","DEMAND x","DEMAND x",null,"",null,"Source","(a)",null,null,null,null,null," VG, MT, TG"]
[null,null,null,null,null,null,null,null,null,null,null,null,null,null,null,null,null,null,null,null,null,null,null,null,null,null,null,null,null,null,null,null,null,null,null,null,null,null,null,null,null,null,null,null,null,null,null,null,null,null,null,null,"PERIOD","10/1/19 PCI","CURRENT","PROPOSED","RATES AT 10/1/19","CURRENT","PROPOSED","INDEX ","","Calculation of Maximum Recoverable Revenue","For all rows: if CAP1r1130=\"CAP2\", use sourcing; if Jurisdictional Pricing, enter Sum of CAP2-priced Jurisdictions where indicated; else value from CAP1r1130.",null,null,null,null,null,null,"         Proposed Sub-Index",{"$f":"F25","v":0},{"$f":"BH99","v":0},{"$f":"ROUND(N(BS145)-N(BT145),4)","v":0},{"$f":"IF(BU145>0,\"     HIGH\",IF(BU145<0,\"      LOW\",\"       *\"))","v":"       *"}]
[null,null,null,null,null,null,null,null,null,null,null,null,null,null,null,null,null,null,null,null,null,null,null,null,null,null,null,null,null,null,null,null,null,null,null,null,null,null,null,null,null,null,null,null,null,null,null,null,null,null,null,null,"DEMAND","UPDATE","RATES","RATES","PCI UPDATE","RATES","RATES","RESULTS",100,"Maximum CMT Revenue","CAP1r600 or Sum of CAP2-priced Jurisdictns",{"$f":"IF(OR(BL130=\"JurisSPM\",BL130=\"JurisSP\",BL130=\"JurisS\",BL130=\"JurisMix\"),CAPs!D146,IF(BL130=\"cap2\",BL86,BL130))","v":0},null,null,null,null,null,"         Sub-Index Upper Limit",{"$f":"G25","v":0},{"$f":"BH100","v":0},{"$f":"ROUND(N(BS146)-N(BT146),4)","v":0},{"$f":"IF(BU146>0,\"     HIGH\",IF(BU146<0,\"      LOW\",\"       *\"))","v":"       *"}]
[null,null,null,null,null,null,null,null,null,null,null,null,null,null,null,null,null,null,null,null,null,null,null,null,null,null,null,null,null,null,null,null,null,null,null,null,null,null,null,null,null,null,null,null,null,null,null,null,null,null,null,null,"-","-","-","-","-","-","-","-",110,"Total USAC Receipts (at t)","CAP1r660 or Sum of CAP2-priced Jurisdictns",{"$f":"IF(OR(BL130=\"JurisSPM\",BL130=\"JurisSP\",BL130=\"JurisS\",BL130=\"JurisMix\"),CAPs!D147,IF(BL130=\"cap2\",BL93,BL130))","v":0},null,null,null,null,null,"         IND-1 Sub-Index Out of Bounds?",null,null,null,{"$f":"IF(TRUNC(BS145,4)>TRUNC(BS146,4),\"     HIGH\",\"       *\")","v":"       *"}]
[null,null,null,null,null,null,null,null,null,null,null,null,null,null,null,null,null,null,null,null,null,null,null,null,null,null,null,null,null,null,null,null,null,null,null,null,null,null,null,null,null,null,null,null,null,null,null,null,null,null,null,null,"(A)","(B)","(C)","(D)","(E)","(F)","(G)","(H)","","","",null,null,null,null,null,null,"         RTE-1 Sub-Index Out of Bounds?",null,null,null,{"$f":"IF(TRUNC(N(BT145),4)>TRUNC(N(BT146),4),\"     HIGH\",\"       *\")","v":"       *"}]
[null,null,null,null,null,null,null,null,null,null,null,null,null,null,null,null,null,null,null,null,null,null,null,null,null,null,null,null,null,null,null,null,null,null,null,null,null,null,null,null,null,null,null,null,null,null,null,null,null,null,"High Cap & DDS Service Category - Special",null,null,null,null,null,null,null,null,null,130,"Maximum Recoverable Revenue","r100 - r110",{"$f":"IF(OR(BL130=\"JurisSPM\",BL130=\"JurisSP\",BL130=\"JurisS\",BL130=\"JurisMix\"),CAPs!D149,IF(BL130=\"CAP2\",BL146-BL147,BL130))","v":0}]
[null,null,null,null,null,null,null,null,null,null,null,null,null,null,null,null,null,null,null,null,null,null,null,null,null,null,null,null,null,null,null,null,null,null,null,null,null,null,null,null,null,null,null,null,null,null,null,null,null,null,"-",null,null,null,null,null,null,null,null,null,"","","",null,null,null,null,null,null," Audio & Video"]
[null,null,null,null,null,null,null,null,null,null,null,null,null,null,null,null,null,null,null,null,null,null,null,null,null,null,null,null,null,null,null,null,null,null,null,null,null,null,null,null,null,null,null,null,null,null,null,null,null,"","DS1,  Special Access Density Zone 1:",null,null,null,null,null,null,null,null,null,"","Maximum Allowable EU Rates","",null,null,null,null,null,null,"         Proposed Sub-Index",{"$f":"F26","v":0},{"$f":"BH112","v":0},{"$f":"ROUND(N(BS151)-N(BT151),4)","v":0},{"$f":"IF(BU151>0,\"     HIGH\",IF(BU151<0,\"      LOW\",\"       *\"))","v":"       *"}]
[null,null,null,null,null,null,null,null,null,null,null,null,null,null,null,null,null,null,null,null,null,null,null,null,null,null,null,null,null,null,null,null,null,null,null,null,null,null,null,null,null,null,null,null,null,null,null,null,null,4401,"DS1 Spec DZ1 ChanTerm",null,null,"          N/A","          N/A","          N/A",null,null,null,"    N/A",200,"Max. Allowable Primary Res, Lifeline, & SLB EU Rate","CAP1r400 if CAP1r1130=CAP2",{"$f":"IF(BL130=\"cap2\",BL46,BL130)","v":0},null,null,null,null,null,"         Sub-Index Upper Limit",{"$f":"G26","v":0},{"$f":"BH113","v":0},{"$f":"ROUND(N(BS152)-N(BT152),4)","v":0},{"$f":"IF(BU152>0,\"     HIGH\",IF(BU152<0,\"      LOW\",\"       *\"))","v":"       *"}]
[null,null,null,null,null,null,null,null,null,null,null,null,null,null,null,null,null,null,null,null,null,null,null,null,null,null,null,null,null,null,null,null,null,null,null,null,null,null,null,null,null,null,null,null,null,null,null,null,null,4404,"DS1 Spec DZ1 Other",null,"          N/A","          N/A","          N/A","          N/A",null,null,null,"    N/A",210,"Max. Allowable NonPrimary Res & BRI ISDN EU Rate","CAP1r410 if CAP1r1130=CAP2",{"$f":"IF(BL130=\"cap2\",BL47,BL130)","v":0},null,null,null,null,null,"         IND-1 Sub-Index Out of Bounds?",null,null,null,{"$f":"IF(TRUNC(BS151,4)>TRUNC(BS152,4),\"     HIGH\",\"       *\")","v":"       *"}]
[null,null,null,null,null,null,null,null,null,null,null,null,null,null,null,null,null,null,null,null,null,null,null,null,null,null,null,null,null,null,null,null,null,null,null,null,null,null,null,null,null,null,null,null,null,null,null,null,null,"","",null,null,null,null,null,null,null,null,null,220,"Max. Allowable MLB, PRI ISDN, & Centrex EU Rate","CAP1r420 if CAP1r1130=CAP2",{"$f":"IF(BL130=\"cap2\",BL48,BL130)","v":0},null,null,null,null,null,"         RTE-1 Sub-Index Out of Bounds?",null,null,null,{"$f":"IF(TRUNC(N(BT151),4)>TRUNC(N(BT152),4),\"     HIGH\",\"       *\")","v":"       *"}]
[null,null,null,null,null,null,null,null,null,null,null,null,null,null,null,null,null,null,null,null,null,null,null,null,null,null,null,null,null,null,null,null,null,null,null,null,null,null,null,null,null,null,null,null,null,null,null,null,null,4417,"Total DS1 Spec DZ1 Sub-Category",null,"          N/A","          N/A","          N/A","          N/A",{"$f":"SUM(BE152:BE153)","v":0},{"$f":"SUM(BF152:BF153)","v":0},{"$f":"SUM(BG152:BG153)","v":0},"    N/A","","",""]
[null,null,null,null,null,null,null,null,null,null,null,null,null,null,null,null,null,null,null,null,null,null,null,null,null,null,null,null,null,null,null,null,null,null,null,null,null,null,null,null,null,null,null,null,null,null,null,null,null,4418,"DS1 Spec DZ1 Subindex",null,"          N/A","          N/A","          N/A","          N/A","          N/A","          N/A","          N/A",{"$f":"IF(AND(J29=0,BG155<>0),F29,IF(BF155=0,J29,J29*BG155/BF155))","v":0},"","Final EU Rates (Manually Input)","",null,null,null,null,null,null," HiCap"]
[null,null,null,null,null,null,null,null,null,null,null,null,null,null,null,null,null,null,null,null,null,null,null,null,null,null,null,null,null,null,null,null,null,null,null,null,null,null,null,null,null,null,null,null,null,null,null,null,null,4419,"DS1 Spec DZ1 Upper Limit",null,"          N/A","          N/A","          N/A","          N/A","          N/A","          N/A","          N/A",{"$f":"IF(AND(J29=0,BG155<>0),115,IF(L41=0,0,IF(BE155=0,M29*$W$54/L41*1.15,M29*$W$54/L41*1.15*(1+($AO$91+BE155*(IF(BE337=0,0,AO89/BE337)+IF(BE217=0,0,AO90/BE217)+IF(BE358=0,0,AO103/BE358)))/BE155))))","v":0},400,"Final Primary Res, Lifeline, & SLB EU Rate","Input ",null,{"$f":"IF(BL157>BL152,\"     Error:  Exceeded maximum allowable rate\",\"     ok\")","v":"     ok"},null,null,null,null,"      DS1"]
[null,null,null,null,null,null,null,null,null,null,null,null,null,null,null,null,null,null,null,null,null,null,null,null,null,null,null,null,null,null,null,null,null,null,null,null,null,null,null,null,null,null,null,null,null,null,null,null,null,"","",null,null,null,null,null,null,null,null,null,410,"Final NonPrim Res & BRI ISDN EU Rate","Input ",null,{"$f":"IF(BL158>BL153,\"     Error:  Exceeded maximum allowable rate\",\"     ok\")","v":"     ok"},null,null,null,null,"         Proposed Sub-Index",{"$f":"F28","v":0},{"$f":"BH218","v":0},{"$f":"ROUND(N(BS158)-N(BT158),4)","v":0},{"$f":"IF(BU158>0,\"     HIGH\",IF(BU158<0,\"      LOW\",\"       *\"))","v":"       *"}]
[null,null,null,null,null,null,null,null,null,null,null,null,null,null,null,null,null,null,null,null,null,null,null,null,null,null,null,null,null,null,null,null,null,null,null,null,null,null,null,null,null,null,null,null,null,null,null,null,null,"","",null,null,null,null,null,null,null,null,null,420,"Final MLB, PRI ISDN, & Centrex EU Rate","Input ",null,{"$f":"IF(BL159>BL154,\"     Error:  Exceeded maximum allowable rate\",IF(BL159<BL158,\"     Error:  MLB rate less than NPR rate\",IF(BL159<BL157,\"     Error:  MLB rate less than PR rate\",\"     ok\")))","v":"     ok"},null,null,null,null,"         Sub-Index Upper Limit",{"$f":"G28","v":0},{"$f":"BH219","v":0},{"$f":"ROUND(N(BS159)-N(BT159),4)","v":0},{"$f":"IF(BU159>0,\"     HIGH\",IF(BU159<0,\"      LOW\",\"       *\"))","v":"       *"}]
[null,null,null,null,null,null,null,null,null,null,null,null,null,null,null,null,null,null,null,null,null,null,null,null,null,null,null,null,null,null,null,null,null,null,null,null,null,null,null,null,null,null,null,null,null,null,null,null,null,"","DS1,  Special Access Density Zone 2:",null,null,null,null,null,null,null,null,null,"","","",null,null,null,null,null,null,"         IND-1 Sub-Index Out of Bounds?",null,null,null,{"$f":"IF(TRUNC(BS158,4)>TRUNC(BS159,4),\"     HIGH\",\"       *\")","v":"       *"}]
[null,null,null,null,null,null,null,null,null,null,null,null,null,null,null,null,null,null,null,null,null,null,null,null,null,null,null,null,null,null,null,null,null,null,null,null,null,null,null,null,null,null,null,null,null,null,null,null,null,4421,"DS1 Spec DZ2 ChanTerm",null,null,"          N/A","          N/A","          N/A",null,null,null,"    N/A","","Final EU Revenue","",null,null,null,null,null,null,"         RTE-1 Sub-Index Out of Bounds?",null,null,null,{"$f":"IF(TRUNC(N(BT158),4)>TRUNC(N(BT159),4),\"     HIGH\",\"       *\")","v":"       *"}]
[null,null,null,null,null,null,null,null,null,null,null,null,null,null,null,null,null,null,null,null,null,null,null,null,null,null,null,null,null,null,null,null,null,null,null,null,null,null,null,null,null,null,null,null,null,null,null,null,null,4424,"DS1 Spec DZ2 Other",null,"          N/A","          N/A","          N/A","          N/A",null,null,null,"    N/A",500,"Final Total Primary Res & SLB & LifeLine EU Revenue","r400 * CAP1r100 or Sum of CAP2-priced Jurisdictns",{"$f":"IF(OR(BL130=\"JurisSPM\",BL130=\"JurisSP\",BL130=\"JurisS\",BL130=\"JurisMix\"),CAPs!D162,IF(BL130=\"cap2\",BL157*BL26,BL130))","v":0},null,null,null,null,null,"      DS3"]
[null,null,null,null,null,null,null,null,null,null,null,null,null,null,null,null,null,null,null,null,null,null,null,null,null,null,null,null,null,null,null,null,null,null,null,null,null,null,null,null,null,null,null,null,null,null,null,null,null,"","",null,null,null,null,null,null,null,null,null,510,"Final Total NonPrim Res & BRI ISDN EU Revenue","r410 * CAP1r110 or Sum of CAP2-priced Jurisdictns",{"$f":"IF(OR(BL130=\"JurisSPM\",BL130=\"JurisSP\",BL130=\"JurisS\",BL130=\"JurisMix\"),CAPs!D163,IF(BL130=\"cap2\",BL158*BL27,BL130))","v":0},null,null,null,null,null,"         Proposed Sub-Index",{"$f":"F34","v":0},{"$f":"BH296","v":0},{"$f":"ROUND(N(BS163)-N(BT163),4)","v":0},{"$f":"IF(BU163>0,\"     HIGH\",IF(BU163<0,\"      LOW\",\"       *\"))","v":"       *"}]
[null,null,null,null,null,null,null,null,null,null,null,null,null,null,null,null,null,null,null,null,null,null,null,null,null,null,null,null,null,null,null,null,null,null,null,null,null,null,null,null,null,null,null,null,null,null,null,null,null,4437,"Total DS1 Spec DZ2 Sub-Category",null,"          N/A","          N/A","          N/A","          N/A",{"$f":"SUM(BE161:BE162)","v":0},{"$f":"SUM(BF161:BF162)","v":0},{"$f":"SUM(BG161:BG162)","v":0},"    N/A",520,"Final Total MLB, PRI ISDN, & Centrex EU Revenue","r420 * CAP1r120 or Sum of CAP2-priced Jurisdictns",{"$f":"IF(OR(BL130=\"JurisSPM\",BL130=\"JurisSP\",BL130=\"JurisS\",BL130=\"JurisMix\"),CAPs!D164,IF(BL130=\"cap2\",BL159*BL28,BL130))","v":0},null,null,null,null,null,"         Sub-Index Upper Limit",{"$f":"G34","v":0},{"$f":"BH297","v":0},{"$f":"ROUND(N(BS164)-N(BT164),4)","v":0},{"$f":"IF(BU164>0,\"     HIGH\",IF(BU164<0,\"      LOW\",\"       *\"))","v":"       *"}]
[null,null,null,null,null,null,null,null,null,null,null,null,null,null,null,null,null,null,null,null,null,null,null,null,null,null,null,null,null,null,null,null,null,null,null,null,null,null,null,null,null,null,null,null,null,null,null,null,null,4438,"DS1 Spec DZ2 Subindex",null,"          N/A","          N/A","          N/A","          N/A","          N/A","          N/A","          N/A",{"$f":"IF(AND(J30=0,BG164<>0),F30,IF(BF164=0,J30,J30*BG164/BF164))","v":0},530,"Final Total End User Revenue","r500 + r510 + r520",{"$f":"IF(OR(BL130=\"CAP2\",BL130=\"JurisSPM\",BL130=\"JurisSP\",BL130=\"JurisS\",BL130=\"JurisMix\"),N(BL162)+N(BL163)+N(BL164),BL130)","v":0},null,null,null,null,null,"         IND-1 Sub-Index Out of Bounds?",null,null,null,{"$f":"IF(TRUNC(BS163,4)>TRUNC(BS164,4),\"     HIGH\",\"       *\")","v":"       *"}]
[null,null,null,null,null,null,null,null,null,null,null,null,null,null,null,null,null,null,null,null,null,null,null,null,null,null,null,null,null,null,null,null,null,null,null,null,null,null,null,null,null,null,null,null,null,null,null,null,null,4439,"DS1 Spec DZ2 Upper Limit",null,"          N/A","          N/A","          N/A","          N/A","          N/A","          N/A","          N/A",{"$f":"IF(AND(J30=0,BG164<>0),115,IF(L41=0,0,IF(BE164=0,M30*$W$54/L41*1.15,M30*$W$54/L41*1.15*(1+($AO$92+BE164*(IF(BE337=0,0,AO89/BE337)+IF(BE217=0,0,AO90/BE217)+IF(BE358=0,0,AO103/BE358)))/BE164))))","v":0},"","","",null,null,null,null,null,null,"         RTE-1 Sub-Index Out of Bounds?",null,null,null,{"$f":"IF(TRUNC(N(BT163),4)>TRUNC(N(BT164),4),\"     HIGH\",\"       *\")","v":"       *"}]
[null,null,null,null,null,null,null,null,null,null,null,null,null,null,null,null,null,null,null,null,null,null,null,null,null,null,null,null,null,null,null,null,null,null,null,null,null,null,null,null,null,null,null,null,null,null,null,null,null,"","",null,null,null,null,null,null,null,null,null,600,"Actual vs. Allowable Revenue:  Over-recovery","r530 - r130",{"$f":"IF(OR(BL130=\"CAP2\",BL130=\"JurisSPM\",BL130=\"JurisSP\",BL130=\"JurisS\",BL130=\"JurisMix\"),ROUND(N(BL165)-N(BL149),0),BL130)","v":0},{"$f":"IF(N(BL167)>0,\"     Error:  Over-recovery. You must change EUCL rates.\",IF(N(BL167)<0,\"     You have under-recovered by this amount.\",\"     ok\"))","v":"     ok"},null,null,null,null,"      Total HiCap/DDS"]
[null,null,null,null,null,null,null,null,null,null,null,null,null,null,null,null,null,null,null,null,null,null,null,null,null,null,null,null,null,null,null,null,null,null,null,null,null,null,null,null,null,null,null,null,null,null,null,null,null,"","",null,null,null,null,null,null,null,null,null,"","          or (Under-recovery)","",null,null,null,null,null,null,"         Proposed Sub-Index",{"$f":"F27","v":0},{"$f":"BH338","v":0},{"$f":"ROUND(N(BS168)-N(BT168),4)","v":0},{"$f":"IF(BU168>0,\"     HIGH\",IF(BU168<0,\"      LOW\",\"       *\"))","v":"       *"}]
[null,null,null,null,null,null,null,null,null,null,null,null,null,null,null,null,null,null,null,null,null,null,null,null,null,null,null,null,null,null,null,null,null,null,null,null,null,null,null,null,null,null,null,null,null,null,null,null,null,"","DS1,  Special Access Density Zone 3:",null,null,null,null,null,null,null,null,null,"","","",null,null,null,null,null,null,"         Sub-Index Upper Limit",{"$f":"G27","v":0},{"$f":"BH339","v":0},{"$f":"ROUND(N(BS169)-N(BT169),4)","v":0},{"$f":"IF(BU169>0,\"     HIGH\",IF(BU169<0,\"      LOW\",\"       *\"))","v":"       *"}]
[null,null,null,null,null,null,null,null,null,null,null,null,null,null,null,null,null,null,null,null,null,null,null,null,null,null,null,null,null,null,null,null,null,null,null,null,null,null,null,null,null,null,null,null,null,null,null,null,null,4441,"DS1 Spec DZ3 ChanTerm",null,null,"          N/A","          N/A","          N/A",null,null,null,"    N/A","","","",null,null,null,null,null,null,"         IND-1 Sub-Index Out of Bounds?",null,null,null,{"$f":"IF(TRUNC(BS168,4)>TRUNC(BS169,4),\"     HIGH\",\"       *\")","v":"       *"}]
[null,null,null,null,null,null,null,null,null,null,null,null,null,null,null,null,null,null,null,null,null,null,null,null,null,null,null,null,null,null,null,null,null,null,null,null,null,null,null,null,null,null,null,null,null,null,null,null,null,4444,"DS1 Spec DZ3 Other",null,"          N/A","          N/A","          N/A","          N/A",null,null,null,"    N/A","","","",null,null,null,null,null,null,"         RTE-1 Sub-Index Out of Bounds?",null,null,null,{"$f":"IF(TRUNC(N(BT168),4)>TRUNC(N(BT169),4),\"     HIGH\",\"       *\")","v":"       *"}]
[null,null,null,null,null,null,null,null,null,null,null,null,null,null,null,null,null,null,null,null,null,null,null,null,null,null,null,null,null,null,null,null,null,null,null,null,null,null,null,null,null,null,null,null,null,null,null,null,null,"","",null,null,null,null,null,null,null,null,null,"","",""]
[null,null,null,null,null,null,null,null,null,null,null,null,null,null,null,null,null,null,null,null,null,null,null,null,null,null,null,null,null,null,null,null,null,null,null,null,null,null,null,null,null,null,null,null,null,null,null,null,null,4457,"Total DS1 Spec DZ3 Sub-Category",null,"          N/A","          N/A","          N/A","          N/A",{"$f":"SUM(BE170:BE171)","v":0},{"$f":"SUM(BF170:BF171)","v":0},{"$f":"SUM(BG170:BG171)","v":0},"    N/A","","","",null,null,null,null,null,null," Wideband"]
[null,null,null,null,null,null,null,null,null,null,null,null,null,null,null,null,null,null,null,null,null,null,null,null,null,null,null,null,null,null,null,null,null,null,null,null,null,null,null,null,null,null,null,null,null,null,null,null,null,4458,"DS1 Spec DZ3 Subindex",null,"          N/A","          N/A","          N/A","          N/A","          N/A","          N/A","          N/A",{"$f":"IF(AND(J31=0,BG173<>0),F31,IF(BF173=0,J31,J31*BG173/BF173))","v":0},"","","",null,null,null,null,null,null,"         Proposed Sub-Index",{"$f":"F40","v":0},{"$f":"BH351","v":0},{"$f":"ROUND(N(BS174)-N(BT174),4)","v":0},{"$f":"IF(BU174>0,\"     HIGH\",IF(BU174<0,\"      LOW\",\"       *\"))","v":"       *"}]
[null,null,null,null,null,null,null,null,null,null,null,null,null,null,null,null,null,null,null,null,null,null,null,null,null,null,null,null,null,null,null,null,null,null,null,null,null,null,null,null,null,null,null,null,null,null,null,null,null,4459,"DS1 Spec DZ3 Upper Limit",null,"          N/A","          N/A","          N/A","          N/A","          N/A","          N/A","          N/A",{"$f":"IF(AND(J31=0,BG173<>0),115,IF(L41=0,0,IF(BE173=0,M31*$W$54/L41*1.15,M31*$W$54/L41*1.15*(1+($AO$93+BE173*(IF(BE337=0,0,AO89/BE337)+IF(BE217=0,0,AO90/BE217)+IF(BE358=0,0,AO103/BE358)))/BE173))))","v":0},null,null,null,null,null,null,null,null,null,"         Sub-Index Upper Limit",{"$f":"G40","v":0},{"$f":"BH352","v":0},{"$f":"ROUND(N(BS175)-N(BT175),4)","v":0},{"$f":"IF(BU175>0,\"     HIGH\",IF(BU175<0,\"      LOW\",\"       *\"))","v":"       *"}]
[null,null,null,null,null,null,null,null,null,null,null,null,null,null,null,null,null,null,null,null,null,null,null,null,null,null,null,null,null,null,null,null,null,null,null,null,null,null,null,null,null,null,null,null,null,null,null,null,null,null,null,null,null,null,null,null,null,null,null,null,null,null,null,null,null,null,null,null,null,"         IND-1 Sub-Index Out of Bounds?",null,null,null,{"$f":"IF(TRUNC(BS174,4)>TRUNC(BS175,4),\"     HIGH\",\"       *\")","v":"       *"}]
[null,null,null,null,null,null,null,null,null,null,null,null,null,null,null,null,null,null,null,null,null,null,null,null,null,null,null,null,null,null,null,null,null,null,null,null,null,null,null,null,null,null,null,null,null,null,null,null,null,"","",null,null,null,null,null,null,null,null,null,null,null,null,null,null,null,null,null,null,"         RTE-1 Sub-Index Out of Bounds?",null,null,null,{"$f":"IF(TRUNC(N(BT174),4)>TRUNC(N(BT175),4),\"     HIGH\",\"       *\")","v":"       *"}]
[null,null,null,null,null,null,null,null,null,null,null,null,null,null,null,null,null,null,null,null,null,null,null,null,null,null,null,null,null,null,null,null,null,null,null,null,null,null,null,null,null,null,null,null,null,null,null,null,null,"","DS1,  Special Access Density Zone 4:"]
[null,null,null,null,null,null,null,null,null,null,null,null,null,null,null,null,null,null,null,null,null,null,null,null,null,null,null,null,null,null,null,null,null,null,null,null,null,null,null,null,null,null,null,null,null,null,null,null,null,4461,"DS1 Spec DZ4 ChanTerm",null,null,"          N/A","          N/A","          N/A",null,null,null,"    N/A",null,null,null,null,null,null,null,null,null," Total Special Access"]
[null,null,null,null,null,null,null,null,null,null,null,null,null,null,null,null,null,null,null,null,null,null,null,null,null,null,null,null,null,null,null,null,null,null,null,null,null,null,null,null,null,null,null,null,null,null,null,null,null,4464,"DS1 Spec DZ4 Other",null,"          N/A","          N/A","          N/A","          N/A",null,null,null,"    N/A",null,null,null,null,null,null,null,null,null,"      Special Access API",{"$f":"E41","v":0},{"$f":"BH360","v":0},{"$f":"ROUND(N(BS180)-N(BT180),4)","v":0},{"$f":"IF(BU180>0,\"     HIGH\",IF(BU180<0,\"      LOW\",\"       *\"))","v":"       *"}]
[null,null,null,null,null,null,null,null,null,null,null,null,null,null,null,null,null,null,null,null,null,null,null,null,null,null,null,null,null,null,null,null,null,null,null,null,null,null,null,null,null,null,null,null,null,null,null,null,null,"","",null,null,null,null,null,null,null,null,null,null,null,null,null,null,null,null,null,null,"      Special Access PCI",{"$f":"D41","v":0},{"$f":"BH361","v":0},{"$f":"ROUND(N(BS181)-N(BT181),4)","v":0},{"$f":"IF(BU181>0,\"     HIGH\",IF(BU181<0,\"      LOW\",\"       *\"))","v":"       *"}]
[null,null,null,null,null,null,null,null,null,null,null,null,null,null,null,null,null,null,null,null,null,null,null,null,null,null,null,null,null,null,null,null,null,null,null,null,null,null,null,null,null,null,null,null,null,null,null,null,null,4477,"Total DS1 Spec DZ4 Sub-Category",null,"          N/A","          N/A","          N/A","          N/A",{"$f":"SUM(BE179:BE180)","v":0},{"$f":"SUM(BF179:BF180)","v":0},{"$f":"SUM(BG179:BG180)","v":0},"    N/A",null,null,null,null,null,null,null,null,null,"      IND-1 API Above PCI?",null,null,null,{"$f":"IF(TRUNC(BS180,4)>TRUNC(BS181,4),\"     HIGH\",\"       *\")","v":"       *"}]
[null,null,null,null,null,null,null,null,null,null,null,null,null,null,null,null,null,null,null,null,null,null,null,null,null,null,null,null,null,null,null,null,null,null,null,null,null,null,null,null,null,null,null,null,null,null,null,null,null,4478,"DS1 Spec DZ4 Subindex",null,"          N/A","          N/A","          N/A","          N/A","          N/A","          N/A","          N/A",{"$f":"IF(AND(J32=0,BG182<>0),F32,IF(BF182=0,J32,J32*BG182/BF182))","v":0},null,null,null,null,null,null,null,null,null,"      RTE API Above PCI?",null,null,null,{"$f":"IF(TRUNC(N(BT180),4)>TRUNC(N(BT181),4),\"     HIGH\",\"       *\")","v":"       *"}]
[null,null,null,null,null,null,null,null,null,null,null,null,null,null,null,null,null,null,null,null,null,null,null,null,null,null,null,null,null,null,null,null,null,null,null,null,null,null,null,null,null,null,null,null,null,null,null,null,null,4479,"DS1 Spec DZ4 Upper Limit",null,"          N/A","          N/A","          N/A","          N/A","          N/A","          N/A","          N/A",{"$f":"IF(AND(J32=0,BG182<>0),115,IF(L41=0,0,IF(BE182=0,M32*$W$54/L41*1.15,M32*$W$54/L41*1.15*(1+($AO$94+BE182*(IF(BE337=0,0,AO89/BE337)+IF(BE217=0,0,AO90/BE217)+IF(BE358=0,0,AO103/BE358)))/BE182))))","v":0}]
[null,null,null,null,null,null,null,null,null,null,null,null,null,null,null,null,null,null,null,null,null,null,null,null,null,null,null,null,null,null,null,null,null,null,null,null,null,null,null,null,null,null,null,null,null,null,null,null,null,"",""]
[null,null,null,null,null,null,null,null,null,null,null,null,null,null,null,null,null,null,null,null,null,null,null,null,null,null,null,null,null,null,null,null,null,null,null,null,null,null,null,null,null,null,null,null,null,null,null,null,null,"",""]
[null,null,null,null,null,null,null,null,null,null,null,null,null,null,null,null,null,null,null,null,null,null,null,null,null,null,null,null,null,null,null,null,null,null,null,null,null,null,null,null,null,null,null,null,null,null,null,null,null,"","DS1,  Special Access Density Zone 5:"]
[null,null,null,null,null,null,null,null,null,null,null,null,null,null,null,null,null,null,null,null,null,null,null,null,null,null,null,null,null,null,null,null,null,null,null,null,null,null,null,null,null,null,null,null,null,null,null,null,null,4481,"DS1 Spec DZ5 ChanTerm",null,null,"          N/A","          N/A","          N/A",null,null,null,"    N/A"]
[null,null,null,null,null,null,null,null,null,null,null,null,null,null,null,null,null,null,null,null,null,null,null,null,null,null,null,null,null,null,null,null,null,null,null,null,null,null,null,null,null,null,null,null,null,null,null,null,null,4484,"DS1 Spec DZ5 Other",null,"          N/A","          N/A","          N/A","          N/A",null,null,null,"    N/A"]
[null,null,null,null,null,null,null,null,null,null,null,null,null,null,null,null,null,null,null,null,null,null,null,null,null,null,null,null,null,null,null,null,null,null,null,null,null,null,null,null,null,null,null,null,null,null,null,null,null,"",""]
[null,null,null,null,null,null,null,null,null,null,null,null,null,null,null,null,null,null,null,null,null,null,null,null,null,null,null,null,null,null,null,null,null,null,null,null,null,null,null,null,null,null,null,null,null,null,null,null,null,4497,"Total DS1 Spec DZ5 Sub-Category",null,"          N/A","          N/A","          N/A","          N/A",{"$f":"SUM(BE188:BE189)","v":0},{"$f":"SUM(BF188:BF189)","v":0},{"$f":"SUM(BG188:BG189)","v":0},"    N/A"]
[null,null,null,null,null,null,null,null,null,null,null,null,null,null,null,null,null,null,null,null,null,null,null,null,null,null,null,null,null,null,null,null,null,null,null,null,null,null,null,null,null,null,null,null,null,null,null,null,null,4498,"DS1 Spec DZ5 Subindex",null,"          N/A","          N/A","          N/A","          N/A","          N/A","          N/A","          N/A",{"$f":"IF(AND(J33=0,BG191<>0),F33,IF(BF191=0,J33,J33*BG191/BF191))","v":0}]
[null,null,null,null,null,null,null,null,null,null,null,null,null,null,null,null,null,null,null,null,null,null,null,null,null,null,null,null,null,null,null,null,null,null,null,null,null,null,null,null,null,null,null,null,null,null,null,null,null,4499,"DS1 Spec DZ5 Upper Limit",null,"          N/A","          N/A","          N/A","          N/A","          N/A","          N/A","          N/A",{"$f":"IF(AND(J33=0,BG191<>0),115,IF(L41=0,0,IF(BE191=0,M33*$W$54/L41*1.15,M33*$W$54/L41*1.15*(1+($AO$95+BE191*(IF(BE337=0,0,AO89/BE337)+IF(BE217=0,0,AO90/BE217)+IF(BE358=0,0,AO103/BE358)))/BE191))))","v":0}]
[null,null,null,null,null,null,null,null,null,null,null,null,null,null,null,null,null,null,null,null,null,null,null,null,null,null,null,null,null,null,null,null,null,null,null,null,null,null,null,null,null,null,null,null,null,null,null,null,null,"",""]
[null,null,null,null,null,null,null,null,null,null,null,null,null,null,null,null,null,null,null,null,null,null,null,null,null,null,null,null,null,null,null,null,null,null,null,null,null,null,null,null,null,null,null,null,null,null,null,null,null,"RTE-1",null,null,null,null,null,null,null,null,null,null,"CAP-3",null,null,null,null,null,null,null,null,"ANALYZER"]
[null,null,null,null,null,null,null,null,null,null,null,null,null,null,null,null,null,null,null,null,null,null,null,null,null,null,null,null,null,null,null,null,null,null,null,null,null,null,null,null,null,null,null,null,null,null,null,null,null,{"$f":"\"Filing Date:                \"&DATE","v":"Filing Date:                06/16/2020"},null,null,null,null,null,null,null,null,null,null,{"$f":"\"Filing Date:                \"&DATE","v":"Filing Date:                06/16/2020"},null,"",null,null,null,null,null,null,{"$f":"\"Filing Date:                \"&DATE","v":"Filing Date:                06/16/2020"}]
[null,null,null,null,null,null,null,null,null,null,null,null,null,null,null,null,null,null,null,null,null,null,null,null,null,null,null,null,null,null,null,null,null,null,null,null,null,null,null,null,null,null,null,null,null,null,null,null,null,{"$f":"\"Filing Entity:               \"&COSA","v":"Filing Entity:               "},null,null,null,null,null,null,null,null,null,null,{"$f":"\"Filing Entity:               \"&COSA","v":"Filing Entity:               "},null,"",null,null,null,null,null,null,{"$f":"\"Filing Entity:               \"&COSA","v":"Filing Entity:               "}]
[null,null,null,null,null,null,null,null,null,null,null,null,null,null,null,null,null,null,null,null,null,null,null,null,null,null,null,null,null,null,null,null,null,null,null,null,null,null,null,null,null,null,null,null,null,null,null,null,null,{"$f":"\"Transmittal Number:   \"&TRANSMITTAL","v":"Transmittal Number:   "},null,null,null,null,null,null,null,null,null,null,{"$f":"\"Transmittal Number:   \"&TRANSMITTAL","v":"Transmittal Number:   "},null,"",null,null,null,null,null,null,{"$f":"\"Transmittal Number:   \"&TRANSMITTAL","v":"Transmittal Number:   "}]
[null,null,null,null,null,null,null,null,null,null,null,null,null,null,null,null,null,null,null,null,null,null,null,null,null,null,null,null,null,null,null,null,null,null,null,null,null,null,null,null,null,null,null,null,null,null,null,null,null,{"$f":"NAME","v":0},null,null,null,null,null,null,null,null,null,null,{"$f":"NAME","v":0},null,null,null,null,null,null,null,null,{"$f":"NAME","v":0}]
[null,null,null,null,null,null,null,null,null,null,null,null,null,null,null,null,null,null,null,null,null,null,null,null,null,null,null,null,null,null,null,null,null,null,null,null,null,null,null,null,null,null,null,null,null,null,null,null,null,"Page 4 of 6",null,null,null,null,"Price Caps Tariff Review Plan",null,null,null,null,null,"Page 1 of 1",null,"Price Cap Tariff Review Plan",null,null,null,null,null,null,"Page 4 of 5"]
[null,null,null,null,null,null,null,null,null,null,null,null,null,null,null,null,null,null,null,null,null,null,null,null,null,null,null,null,null,null,null,null,null,null,null,null,null,null,null,null,null,null,null,null,null,null,null,null,null,null,null,null,null,null,"Special Access Basket",null,null,null,null,null,null,null,"Calculation of Minimum & Maximum EU Rates"]
[null,null,null,null,null,null,null,null,null,null,null,null,null,null,null,null,null,null,null,null,null,null,null,null,null,null,null,null,null,null,null,null,null,null,null,null,null,null,null,null,null,null,null,null,null,null,null,null,null,null,null,null,null,null,null,null,null,null,null,null,null,null,"",null,null,null,null,null,null,null,"IND-1","RTE-1","Delta","Flag"]
[null,null,null,null,null,null,null,null,null,null,null,null,null,null,null,null,null,null,null,null,null,null,null,null,null,null,null,null,null,null,null,null,null,null,null,null,null,null,null,null,null,null,null,null,null,null,null,null,null,null,null,null,null,null,null,null,"BASE PERIOD","BASE PERIOD","BASE PERIOD",null,null,null,"","Total","Zone A","Zone B","Zone C","Zone D","Other Zone *","SPECIAL ACCESS--------------------------------------","-","-","-","-"]
[null,null,null,null,null,null,null,null,null,null,null,null,null,null,null,null,null,null,null,null,null,null,null,null,null,null,null,null,null,null,null,null,null,null,null,null,null,null,null,null,null,null,null,null,null,null,null,null,null,null,null,null,"BASE","RATES AT",null,null,"DEMAND x","DEMAND x","DEMAND x",null,null,null,"Source","(a)","(b)","(c)","(d)","(e)","(f)","      DS1  Special Access Density Zone 1 "]
[null,null,null,null,null,null,null,null,null,null,null,null,null,null,null,null,null,null,null,null,null,null,null,null,null,null,null,null,null,null,null,null,null,null,null,null,null,null,null,null,null,null,null,null,null,null,null,null,null,null,null,null,"PERIOD","10/1/19 PCI","CURRENT","PROPOSED","RATES AT 10/1/19","CURRENT","PROPOSED","INDEX ",null,"Calculation of Maximum Recoverable Revenue","For all rows: if CAP1r1130=\"CAP3\", use sourcing; if Juris. Pricing, enter Sum of CAP3-priced Juris. where indicated; else CAP1r1130.",null,null,null,null,null,null,"         Proposed Sub-Index",{"$f":"F29","v":0},{"$f":"BH156","v":0},{"$f":"ROUND(N(BS205)-N(BT205),4)","v":0},{"$f":"IF(BU205>0,\"     HIGH\",IF(BU205<0,\"      LOW\",\"       *\"))","v":"       *"}]
[null,null,null,null,null,null,null,null,null,null,null,null,null,null,null,null,null,null,null,null,null,null,null,null,null,null,null,null,null,null,null,null,null,null,null,null,null,null,null,null,null,null,null,null,null,null,null,null,null,null,null,null,"DEMAND","UPDATE","RATES","RATES","PCI UPDATE","RATES","RATES","RESULTS",100,"Maximum CMT Revenue","CAP1r600 or Sum of CAP3-priced Jurisdictns",{"$f":"IF(OR((AND(BL99<=0,(OR(BL130=\"JurisSPM\",BL130=\"JurisSP\",BL130=\"JurisS\",BL130=\"JurisMix\")))),(AND(BL99>0,(OR(BL130=\"JurisSPM\",BL130=\"JurisMix\"))))),CAPs!D206,IF(BL130=\"CAP3\",BL86,BL130))","v":"CAP2"},"      N/A","      N/A","      N/A","      N/A","      N/A","         Sub-Index Upper Limit",{"$f":"G29","v":0},{"$f":"BH157","v":0},{"$f":"ROUND(N(BS206)-N(BT206),4)","v":0},{"$f":"IF(BU206>0,\"     HIGH\",IF(BU206<0,\"      LOW\",\"       *\"))","v":"       *"}]
[null,null,null,null,null,null,null,null,null,null,null,null,null,null,null,null,null,null,null,null,null,null,null,null,null,null,null,null,null,null,null,null,null,null,null,null,null,null,null,null,null,null,null,null,null,null,null,null,null,null,null,null,"-","-","-","-","-","-","-","-",110,"Total USAC Receipts","CAP1r660 or Sum of CAP3-priced Jurisdictns",{"$f":"IF(OR((AND(BL99<=0,(OR(BL130=\"JurisSPM\",BL130=\"JurisSP\",BL130=\"JurisS\",BL130=\"JurisMix\")))),(AND(BL99>0,(OR(BL130=\"JurisSPM\",BL130=\"JurisMix\"))))),CAPs!D207,IF(BL130=\"CAP3\",BL93,BL130))","v":"CAP2"},"      N/A","      N/A","      N/A","      N/A","      N/A","         IND-1 Sub-Index Out of Bounds?",null,null,null,{"$f":"IF(TRUNC(BS205,4)>TRUNC(BS206,4),\"     HIGH\",\"       *\")","v":"       *"}]
[null,null,null,null,null,null,null,null,null,null,null,null,null,null,null,null,null,null,null,null,null,null,null,null,null,null,null,null,null,null,null,null,null,null,null,null,null,null,null,null,null,null,null,null,null,null,null,null,null,null,null,null,"(A)","(B)","(C)","(D)","(E)","(F)","(G)","(H)","","","",null,null,null,null,null,null,"         RTE-1 Sub-Index Out of Bounds?",null,null,null,{"$f":"IF(TRUNC(N(BT205),4)>TRUNC(N(BT206),4),\"     HIGH\",\"       *\")","v":"       *"}]
[null,null,null,null,null,null,null,null,null,null,null,null,null,null,null,null,null,null,null,null,null,null,null,null,null,null,null,null,null,null,null,null,null,null,null,null,null,null,null,null,null,null,null,null,null,null,null,null,null,"","High Cap & DDS Service Category - Special",null,null,null,null,null,null,null,null,null,130,"Maximum Recoverable Revenue","r100 - r110",{"$f":"IF(OR(BL130=\"CAP3\",BL130=\"JurisSPM\",BL130=\"JurisSP\",BL130=\"JurisS\",BL130=\"JurisMix\"),N(BL206)-N(BL207),BL130)","v":"CAP2"},"      N/A","      N/A","      N/A","      N/A","      N/A"]
[null,null,null,null,null,null,null,null,null,null,null,null,null,null,null,null,null,null,null,null,null,null,null,null,null,null,null,null,null,null,null,null,null,null,null,null,null,null,null,null,null,null,null,null,null,null,null,null,null,null,"-",null,null,null,null,null,null,null,null,null,"","","",null,null,null,null,null,null,"      DS1  Special Access Density Zone 2"]
[null,null,null,null,null,null,null,null,null,null,null,null,null,null,null,null,null,null,null,null,null,null,null,null,null,null,null,null,null,null,null,null,null,null,null,null,null,null,null,null,null,null,null,null,null,null,null,null,null,"","DS1, Non-Density Zone - Special:",null,null,null,null,null,null,null,null,null,"","Inputs for Calculation of Minimum and Maximum Allowable Deaveraged Rates","",null,null,null,null,null,null,"         Proposed Sub-Index",{"$f":"F30","v":0},{"$f":"BH165","v":0},{"$f":"ROUND(N(BS211)-N(BT211),4)","v":0},{"$f":"IF(BU211>0,\"     HIGH\",IF(BU211<0,\"      LOW\",\"       *\"))","v":"       *"}]
[null,null,null,null,null,null,null,null,null,null,null,null,null,null,null,null,null,null,null,null,null,null,null,null,null,null,null,null,null,null,null,null,null,null,null,null,null,null,null,null,null,null,null,null,null,null,null,null,null,4571,"DS1 SP NonDZ ChanTerm",null,null,"          N/A","          N/A","          N/A",null,null,null,"    N/A",200,"Total Local Exchange Lines","CAP1r130 or Sum of CAP3-priced Jurisdictns",{"$f":"IF(OR(BL130=\"CAP3\",BL130=\"JurisSPM\",BL130=\"JurisSP\",BL130=\"JurisS\",BL130=\"JurisMix\"),SUM(BM212:BQ212),BL130)","v":"CAP2"},{"$f":"IF(OR((AND(BL99<=0,(OR(BL130=\"JurisSPM\",BL130=\"JurisSP\",BL130=\"JurisS\",BL130=\"JurisMix\")))),(AND(BL99>0,(OR(BL130=\"JurisSPM\",BL130=\"JurisMix\"))))),CAPs!E212,IF(BL130=\"CAP3\",BM29,BL130))","v":"CAP2"},{"$f":"IF(OR((AND(BL99<=0,(OR(BL130=\"JurisSPM\",BL130=\"JurisSP\",BL130=\"JurisS\",BL130=\"JurisMix\")))),(AND(BL99>0,(OR(BL130=\"JurisSPM\",BL130=\"JurisMix\"))))),CAPs!F212,IF(BL130=\"CAP3\",BN29,BL130))","v":"CAP2"},{"$f":"IF(OR((AND(BL99<=0,(OR(BL130=\"JurisSPM\",BL130=\"JurisSP\",BL130=\"JurisS\",BL130=\"JurisMix\")))),(AND(BL99>0,(OR(BL130=\"JurisSPM\",BL130=\"JurisMix\"))))),CAPs!G212,IF(BL130=\"CAP3\",BO29,BL130))","v":"CAP2"},{"$f":"IF(OR((AND(BL99<=0,(OR(BL130=\"JurisSPM\",BL130=\"JurisSP\",BL130=\"JurisS\",BL130=\"JurisMix\")))),(AND(BL99>0,(OR(BL130=\"JurisSPM\",BL130=\"JurisMix\"))))),CAPs!H212,IF(BL130=\"CAP3\",BP29,BL130))","v":"CAP2"},{"$f":"IF(OR((AND(BL99<=0,(OR(BL130=\"JurisSPM\",BL130=\"JurisSP\",BL130=\"JurisS\",BL130=\"JurisMix\")))),(AND(BL99>0,(OR(BL130=\"JurisSPM\",BL130=\"JurisMix\"))))),CAPs!I212,IF(BL130=\"CAP3\",BQ29,BL130))","v":"CAP2"},"         Sub-Index Upper Limit",{"$f":"G30","v":0},{"$f":"BH166","v":0},{"$f":"ROUND(N(BS212)-N(BT212),4)","v":0},{"$f":"IF(BU212>0,\"     HIGH\",IF(BU212<0,\"      LOW\",\"       *\"))","v":"       *"}]
[null,null,null,null,null,null,null,null,null,null,null,null,null,null,null,null,null,null,null,null,null,null,null,null,null,null,null,null,null,null,null,null,null,null,null,null,null,null,null,null,null,null,null,null,null,null,null,null,null,4574,"DS1 SP NonDZ Other",null,"          N/A","          N/A","          N/A","          N/A",null,null,null,"    N/A",210,"Unbundled Loop & Line Port Rate (State Approved)","Input if CAP1r1130=CAP3; else, CAP1r1130","      N/A",{"$f":"BL130","v":"CAP2"},{"$f":"BL130","v":"CAP2"},{"$f":"BL130","v":"CAP2"},{"$f":"BL130","v":"CAP2"},{"$f":"BL130","v":"CAP2"},"         IND-1 Sub-Index Out of Bounds?",null,null,null,{"$f":"IF(TRUNC(BS211,4)>TRUNC(BS212,4),\"     HIGH\",\"       *\")","v":"       *"}]
[null,null,null,null,null,null,null,null,null,null,null,null,null,null,null,null,null,null,null,null,null,null,null,null,null,null,null,null,null,null,null,null,null,null,null,null,null,null,null,null,null,null,null,null,null,null,null,null,null,"","",null,null,null,null,null,null,null,null,null,220,"Interstate UNE Rate","r210*.25 if CAP1r1130=CAP3","      N/A",{"$f":"IF(BL130=\"CAP3\",BM213*0.25,BL130)","v":"CAP2"},{"$f":"IF(BL130=\"CAP3\",BN213*0.25,BL130)","v":"CAP2"},{"$f":"IF(BL130=\"CAP3\",BO213*0.25,BL130)","v":"CAP2"},{"$f":"IF(BL130=\"CAP3\",BP213*0.25,BL130)","v":"CAP2"},{"$f":"IF(BL130=\"CAP3\",BQ213*0.25,BL130)","v":"CAP2"},"         RTE-1 Sub-Index Out of Bounds?",null,null,null,{"$f":"IF(TRUNC(N(BT211),4)>TRUNC(N(BT212),4),\"     HIGH\",\"       *\")","v":"       *"}]
[null,null,null,null,null,null,null,null,null,null,null,null,null,null,null,null,null,null,null,null,null,null,null,null,null,null,null,null,null,null,null,null,null,null,null,null,null,null,null,null,null,null,null,null,null,null,null,null,null,4578,"Total DS1 SP NonZone",null,"          N/A","          N/A","          N/A","          N/A",{"$f":"SUM(BE212:BE213)","v":0},{"$f":"SUM(BF212:BF213)","v":0},{"$f":"SUM(BG212:BG213)","v":0},"    N/A",230,"Interstate UNE Revenues","r200 * r220 or Sum of CAP3-priced Jurisdictns",{"$f":"IF(OR(BL130=\"CAP3\",BL130=\"JurisSPM\",BL130=\"JurisSP\",BL130=\"JurisS\",BL130=\"JurisMix\"),SUM(BM215:BQ215),BL130)","v":"CAP2"},{"$f":"IF(OR((AND($BL99<=0,(OR($BL130=\"JurisSPM\",$BL130=\"JurisSP\",$BL130=\"JurisS\",$BL130=\"JurisMix\")))),(AND($BL99>0,(OR($BL130=\"JurisSPM\",$BL130=\"JurisMix\"))))),CAPs!E215,IF($BL130=\"CAP3\",BM212*BM214,$BL130))","v":"CAP2"},{"$f":"IF(OR((AND($BL99<=0,(OR($BL130=\"JurisSPM\",$BL130=\"JurisSP\",$BL130=\"JurisS\",$BL130=\"JurisMix\")))),(AND($BL99>0,(OR($BL130=\"JurisSPM\",$BL130=\"JurisMix\"))))),CAPs!F215,IF($BL130=\"CAP3\",BN212*BN214,$BL130))","v":"CAP2"},{"$f":"IF(OR((AND($BL99<=0,(OR($BL130=\"JurisSPM\",$BL130=\"JurisSP\",$BL130=\"JurisS\",$BL130=\"JurisMix\")))),(AND($BL99>0,(OR($BL130=\"JurisSPM\",$BL130=\"JurisMix\"))))),CAPs!G215,IF($BL130=\"CAP3\",BO212*BO214,$BL130))","v":"CAP2"},{"$f":"IF(OR((AND($BL99<=0,(OR($BL130=\"JurisSPM\",$BL130=\"JurisSP\",$BL130=\"JurisS\",$BL130=\"JurisMix\")))),(AND($BL99>0,(OR($BL130=\"JurisSPM\",$BL130=\"JurisMix\"))))),CAPs!H215,IF($BL130=\"CAP3\",BP212*BP214,$BL130))","v":"CAP2"},{"$f":"IF(OR((AND($BL99<=0,(OR($BL130=\"JurisSPM\",$BL130=\"JurisSP\",$BL130=\"JurisS\",$BL130=\"JurisMix\")))),(AND($BL99>0,(OR($BL130=\"JurisSPM\",$BL130=\"JurisMix\"))))),CAPs!I215,IF($BL130=\"CAP3\",BQ212*BQ214,$BL130))","v":"CAP2"}]
[null,null,null,null,null,null,null,null,null,null,null,null,null,null,null,null,null,null,null,null,null,null,null,null,null,null,null,null,null,null,null,null,null,null,null,null,null,null,null,null,null,null,null,null,null,null,null,null,null,"","",null,null,null,null,null,null,null,null,null,240,"Maximum CMT Revenue (using Max CMT Rev/Line)","CAP1r600 or Sum of CAP3-priced Jurisdictns",{"$f":"IF(OR((AND(BL99<=0,(OR(BL130=\"JurisSPM\",BL130=\"JurisSP\",BL130=\"JurisS\",BL130=\"JurisMix\")))),(AND(BL99>0,(OR(BL130=\"JurisSPM\",BL130=\"JurisMix\"))))),CAPs!D216,IF(BL130=\"CAP3\",BL86,BL130))","v":"CAP2"},"      N/A","      N/A","      N/A","      N/A","      N/A","      DS1  Special Access Density Zone 3"]
[null,null,null,null,null,null,null,null,null,null,null,null,null,null,null,null,null,null,null,null,null,null,null,null,null,null,null,null,null,null,null,null,null,null,null,null,null,null,null,null,null,null,null,null,null,null,null,null,null,4597,"TOTAL DS1 Special Sub-Category",null,"          N/A","          N/A","          N/A","          N/A",{"$f":"BE155+BE164+BE173+BE182+BE191+BE215","v":0},{"$f":"BF155+BF164+BF173+BF182+BF191+BF215","v":0},{"$f":"BG155+BG164+BG173+BG182+BG191+BG215","v":0},"    N/A",250,"Average Price Cap CMT Rev to be Recovered per Line","CAP1r460 ifCAP1r1130=CAP3",{"$f":"IF(BL130=\"CAP3\",BL58,BL130)","v":"CAP2"},"      N/A","      N/A","      N/A","      N/A","      N/A","         Proposed Sub-Index",{"$f":"F31","v":0},{"$f":"BH174","v":0},{"$f":"ROUND(N(BS217)-N(BT217),4)","v":0},{"$f":"IF(BU217>0,\"     HIGH\",IF(BU217<0,\"      LOW\",\"       *\"))","v":"       *"}]
[null,null,null,null,null,null,null,null,null,null,null,null,null,null,null,null,null,null,null,null,null,null,null,null,null,null,null,null,null,null,null,null,null,null,null,null,null,null,null,null,null,null,null,null,null,null,null,null,null,4598,"DS1 Special Subindex",null,"          N/A","          N/A","          N/A","          N/A","          N/A","          N/A","          N/A",{"$f":"IF(AND(J28=0,BG217<>0),F28,IF(BF217=0,J28,J28*BG217/BF217))","v":0},260,"Price Cap CMT Revenue by Zone","r200 * r250 or Sum of CAP3-priced Jurisdictns",{"$f":"IF(OR(BL130=\"CAP3\",BL130=\"JurisSPM\",BL130=\"JurisSP\",BL130=\"JurisS\",BL130=\"JurisMix\"),SUM(BM218:BQ218),BL130)","v":"CAP2"},{"$f":"IF(OR((AND($BL99<=0,(OR($BL130=\"JurisSPM\",$BL130=\"JurisSP\",$BL130=\"JurisS\",$BL130=\"JurisMix\")))),(AND($BL99>0,(OR($BL130=\"JurisSPM\",$BL130=\"JurisMix\"))))),CAPs!E218,IF($BL130=\"CAP3\",BM212*BL217,$BL130))","v":"CAP2"},{"$f":"IF(OR((AND($BL99<=0,(OR($BL130=\"JurisSPM\",$BL130=\"JurisSP\",$BL130=\"JurisS\",$BL130=\"JurisMix\")))),(AND($BL99>0,(OR($BL130=\"JurisSPM\",$BL130=\"JurisMix\"))))),CAPs!F218,IF($BL130=\"CAP3\",BN212*BM217,$BL130))","v":"CAP2"},{"$f":"IF(OR((AND($BL99<=0,(OR($BL130=\"JurisSPM\",$BL130=\"JurisSP\",$BL130=\"JurisS\",$BL130=\"JurisMix\")))),(AND($BL99>0,(OR($BL130=\"JurisSPM\",$BL130=\"JurisMix\"))))),CAPs!G218,IF($BL130=\"CAP3\",BO212*BN217,$BL130))","v":"CAP2"},{"$f":"IF(OR((AND($BL99<=0,(OR($BL130=\"JurisSPM\",$BL130=\"JurisSP\",$BL130=\"JurisS\",$BL130=\"JurisMix\")))),(AND($BL99>0,(OR($BL130=\"JurisSPM\",$BL130=\"JurisMix\"))))),CAPs!H218,IF($BL130=\"CAP3\",BP212*BO217,$BL130))","v":"CAP2"},{"$f":"IF(OR((AND($BL99<=0,(OR($BL130=\"JurisSPM\",$BL130=\"JurisSP\",$BL130=\"JurisS\",$BL130=\"JurisMix\")))),(AND($BL99>0,(OR($BL130=\"JurisSPM\",$BL130=\"JurisMix\"))))),CAPs!I218,IF($BL130=\"CAP3\",BQ212*BP217,$BL130))","v":"CAP2"},"         Sub-Index Upper Limit",{"$f":"G31","v":0},{"$f":"BH175","v":0},{"$f":"ROUND(N(BS218)-N(BT218),4)","v":0},{"$f":"IF(BU218>0,\"     HIGH\",IF(BU218<0,\"      LOW\",\"       *\"))","v":"       *"}]
[null,null,null,null,null,null,null,null,null,null,null,null,null,null,null,null,null,null,null,null,null,null,null,null,null,null,null,null,null,null,null,null,null,null,null,null,null,null,null,null,null,null,null,null,null,null,null,null,null,4599,"DS1 Special Upper Limit",null,"          N/A","          N/A","          N/A","          N/A","          N/A","          N/A","          N/A",{"$f":"IF(AND(J28=0,BG217<>0),105,IF(L41=0,0,IF(BE217=0,M28*$W$54/L41*1.05,M28*$W$54/L41*1.05*(1+(SUM($AO$90:$AO$95)+BE217*(IF(BE337=0,0,AO89/BE337)+IF(BE358=0,0,AO103/BE358)))/BE217))))","v":0},270,"Uniform Rate Adjustment Factor","(r260 - r230 ) / r 200",{"$f":"IF(BL130<>\"CAP3\",BL130,IF(BL212=0,0,(BL218-BL215)/BL212))","v":"CAP2"},"      N/A","      N/A","      N/A","      N/A","      N/A","         IND-1 Sub-Index Out of Bounds?",null,null,null,{"$f":"IF(TRUNC(BS217,4)>TRUNC(BS218,4),\"     HIGH\",\"       *\")","v":"       *"}]
[null,null,null,null,null,null,null,null,null,null,null,null,null,null,null,null,null,null,null,null,null,null,null,null,null,null,null,null,null,null,null,null,null,null,null,null,null,null,null,null,null,null,null,null,null,null,null,null,null,null,null,null,null,null,null,null,null,null,null,null,"","","",null,null,null,null,null,null,"         RTE-1 Sub-Index Out of Bounds?",null,null,null,{"$f":"IF(TRUNC(N(BT217),4)>TRUNC(N(BT218),4),\"     HIGH\",\"       *\")","v":"       *"}]
[null,null,null,null,null,null,null,null,null,null,null,null,null,null,null,null,null,null,null,null,null,null,null,null,null,null,null,null,null,null,null,null,null,null,null,null,null,null,null,null,null,null,null,null,null,null,null,null,null,null,null,null,null,null,null,null,null,null,null,null,"","Minimum Deaveraged EU Charge Development",""]
[null,null,null,null,null,null,null,null,null,null,null,null,null,null,null,null,null,null,null,null,null,null,null,null,null,null,null,null,null,null,null,null,null,null,null,null,null,null,null,null,null,null,null,null,null,null,null,null,null,null,"High Cap & DDS Service Category - Special",null,null,null,null,null,null,null,null,null,300,"Zone Average Revenue Per Line","r270a+r220 ifCAP1r1130=CAP3","      N/A",{"$f":"IF(BL130=\"CAP3\",IF(BM214=0,\"None\",BL219+BM214),BL130)","v":"CAP2"},{"$f":"IF(BL130=\"CAP3\",IF(BN214=0,\"None\",BL219+BN214),BL130)","v":"CAP2"},{"$f":"IF(BL130=\"CAP3\",IF(BO214=0,\"None\",BL219+BO214),BL130)","v":"CAP2"},{"$f":"IF(BL130=\"CAP3\",IF(BP214=0,\"None\",BL219+BP214),BL130)","v":"CAP2"},{"$f":"IF(BL130=\"CAP3\",IF(BQ214=0,\"None\",BL219+BQ214),BL130)","v":"CAP2"},"      DS1  Special Access Density Zone 4"]
[null,null,null,null,null,null,null,null,null,null,null,null,null,null,null,null,null,null,null,null,null,null,null,null,null,null,null,null,null,null,null,null,null,null,null,null,null,null,null,null,null,null,null,null,null,null,null,null,null,"","-",null,null,null,null,null,null,null,null,null,310,"Preliminary Minimum Deaveraged EU Charge","Minimum value in r300",{"$f":"IF(BL130=\"CAP3\",IF(BM214=0,0,IF(BN214=0,BM214,IF(BO214=0,MIN(BM214:BN214),IF(BP214=0,MIN(BM214:BO214),IF(BQ214=0,MIN(BM214:BP214),MIN(BM214:BQ214))))))+BL219,BL130)","v":"CAP2"},"      N/A","      N/A","      N/A","      N/A","      N/A","         Proposed Sub-Index",{"$f":"F32","v":0},{"$f":"BH183","v":0},{"$f":"ROUND(N(BS223)-N(BT223),4)","v":0},{"$f":"IF(BU223>0,\"     HIGH\",IF(BU223<0,\"      LOW\",\"       *\"))","v":"       *"}]
[null,null,null,null,null,null,null,null,null,null,null,null,null,null,null,null,null,null,null,null,null,null,null,null,null,null,null,null,null,null,null,null,null,null,null,null,null,null,null,null,null,null,null,null,null,null,null,null,null,"","DS3,  Special Access Density Zone 1:",null,null,null,null,null,null,null,null,null,320,"Explicit Subsidy Support from USAC (at t)","CAP1r660 or Sum of CAP3-priced Jurisdictns",{"$f":"IF(OR((AND(BL99<=0,(OR(BL130=\"JurisSPM\",BL130=\"JurisSP\",BL130=\"JurisS\",BL130=\"JurisMix\")))),(AND(BL99>0,(OR(BL130=\"JurisSPM\",BL130=\"JurisMix\"))))),CAPs!D224,IF(BL130=\"CAP3\",BL93,BL130))","v":"CAP2"},"      N/A","      N/A","      N/A","      N/A","      N/A","         Sub-Index Upper Limit",{"$f":"G32","v":0},{"$f":"BH184","v":0},{"$f":"ROUND(N(BS224)-N(BT224),4)","v":0},{"$f":"IF(BU224>0,\"     HIGH\",IF(BU224<0,\"      LOW\",\"       *\"))","v":"       *"}]
[null,null,null,null,null,null,null,null,null,null,null,null,null,null,null,null,null,null,null,null,null,null,null,null,null,null,null,null,null,null,null,null,null,null,null,null,null,null,null,null,null,null,null,null,null,null,null,null,null,4601,"DS3 Spec DZ1 ChanTerm",null,"          N/A","          N/A","          N/A","          N/A",null,null,null,"    N/A",330,"Study Area above CAP Benchmark Revenues","If r300>9.2,(r300-7)*CAP1r(100+110)+(r300-9.2)*",{"$f":"IF(OR(BL130=\"CAP3\",BL130=\"JurisSPM\",BL130=\"JurisSP\",BL130=\"JurisS\",BL130=\"JurisMix\"),SUM(BM225:BQ225),BL130)","v":"CAP2"},{"$f":"IF(OR((AND(BL99<=0,(OR(BL130=\"JurisSPM\",BL130=\"JurisSP\",BL130=\"JurisS\",BL130=\"JurisMix\")))),(AND(BL99>0,(OR(BL130=\"JurisSPM\",BL130=\"JurisMix\"))))),CAPs!E225,IF(BL130=\"CAP3\",IF(BM222=\"None\",\"None\",IF((BM222>9.2),(BM222-7)*(BM26+BM27)+(BM222-9.2)*BM28,IF(BM222>7,(BM222-7)*(BM26+BM27),0))),BL130))","v":"CAP2"},{"$f":"IF(OR((AND(BL99<=0,(OR(BL130=\"JurisSPM\",BL130=\"JurisSP\",BL130=\"JurisS\",BL130=\"JurisMix\")))),(AND(BL99>0,(OR(BL130=\"JurisSPM\",BL130=\"JurisMix\"))))),CAPs!F225,IF(BL130=\"CAP3\",IF(BN222=\"None\",\"None\",IF((BN222>9.2),(BN222-7)*(BN26+BN27)+(BN222-9.2)*BN28,IF(BN222>7,(BN222-7)*(BN26+BN27),0))),BL130))","v":"CAP2"},{"$f":"IF(OR((AND(BL99<=0,(OR(BL130=\"JurisSPM\",BL130=\"JurisSP\",BL130=\"JurisS\",BL130=\"JurisMix\")))),(AND(BL99>0,(OR(BL130=\"JurisSPM\",BL130=\"JurisMix\"))))),CAPs!G225,IF(BL130=\"CAP3\",IF(BO222=\"None\",\"None\",IF((BO222>9.2),(BO222-7)*(BO26+BO27)+(BO222-9.2)*BO28,IF(BO222>7,(BO222-7)*(BO26+BO27),0))),BL130))","v":"CAP2"},{"$f":"IF(OR((AND(BL99<=0,(OR(BL130=\"JurisSPM\",BL130=\"JurisSP\",BL130=\"JurisS\",BL130=\"JurisMix\")))),(AND(BL99>0,(OR(BL130=\"JurisSPM\",BL130=\"JurisMix\"))))),CAPs!H225,IF(BL130=\"CAP3\",IF(BP222=\"None\",\"None\",IF((BP222>9.2),(BP222-7)*(BP26+BP27)+(BP222-9.2)*BP28,IF(BP222>7,(BP222-7)*(BP26+BP27),0))),BL130))","v":"CAP2"},{"$f":"IF(OR((AND(BL99<=0,(OR(BL130=\"JurisSPM\",BL130=\"JurisSP\",BL130=\"JurisS\",BL130=\"JurisMix\")))),(AND(BL99>0,(OR(BL130=\"JurisSPM\",BL130=\"JurisMix\"))))),CAPs!I225,IF(BL130=\"CAP3\",IF(BQ222=\"None\",\"None\",IF((BQ222>9.2),(BQ222-7)*(BQ26+BQ27)+(BQ222-9.2)*BQ28,IF(BQ222>7,(BQ222-7)*(BQ26+BQ27),0))),BL130))","v":"CAP2"},"         IND-1 Sub-Index Out of Bounds?",null,null,null,{"$f":"IF(TRUNC(BS223,4)>TRUNC(BS224,4),\"     HIGH\",\"       *\")","v":"       *"}]
[null,null,null,null,null,null,null,null,null,null,null,null,null,null,null,null,null,null,null,null,null,null,null,null,null,null,null,null,null,null,null,null,null,null,null,null,null,null,null,null,null,null,null,null,null,null,null,null,null,4604,"DS3 Spec DZ1 Other",null,"          N/A","          N/A","          N/A","          N/A",null,null,null,"    N/A","","","   CAP1r120; if 9.2>=r300>7,(r300-7)*CAP1r(100+110);",null,null,null,null,null,null,"         RTE-1 Sub-Index Out of Bounds?",null,null,null,{"$f":"IF(TRUNC(N(BT223),4)>TRUNC(N(BT224),4),\"     HIGH\",\"       *\")","v":"       *"}]
[null,null,null,null,null,null,null,null,null,null,null,null,null,null,null,null,null,null,null,null,null,null,null,null,null,null,null,null,null,null,null,null,null,null,null,null,null,null,null,null,null,null,null,null,null,null,null,null,null,"","",null,null,null,null,null,null,null,null,null,"","","   else 0; or Sum of CAP3-priced Jurisdictns"]
[null,null,null,null,null,null,null,null,null,null,null,null,null,null,null,null,null,null,null,null,null,null,null,null,null,null,null,null,null,null,null,null,null,null,null,null,null,null,null,null,null,null,null,null,null,null,null,null,null,4617,"Total DS3 Spec DZ1 Sub-Category",null,"          N/A","          N/A","          N/A","          N/A",{"$f":"SUM(BE225:BE226)","v":0},{"$f":"SUM(BF225:BF226)","v":0},{"$f":"SUM(BG225:BG226)","v":0},"    N/A",340,"Over Cap Revenues","Max(0, (r330 - r320))",{"$f":"IF(OR(BL130=\"CAP3\",BL130=\"JurisSPM\",BL130=\"JurisSP\",BL130=\"JurisS\",BL130=\"JurisMix\"),MAX(0,N(BL225)-N(BL224)),BL130)","v":"CAP2"},"      N/A","      N/A","      N/A","      N/A","      N/A","      DS1  Special Access Density Zone 5"]
[null,null,null,null,null,null,null,null,null,null,null,null,null,null,null,null,null,null,null,null,null,null,null,null,null,null,null,null,null,null,null,null,null,null,null,null,null,null,null,null,null,null,null,null,null,null,null,null,null,4618,"DS3 Spec DZ1 Subindex",null,"          N/A","          N/A","          N/A","          N/A","          N/A","          N/A","          N/A",{"$f":"IF(AND(J35=0,BG228<>0),F35,IF(BF228=0,J35,J35*BG228/BF228))","v":0},350,"Interim Calculations only (do not represent Zone results)","Interim calcs only (used in r360, r375, r385)",{"$f":"IF(BL130=\"CAP3\",IF(OR(BN222=\"None\",BM229<=BN222)=TRUE,BM229,IF(OR(BO222=\"None\",BN229<=BO222)=TRUE,BN229,IF(OR(BP222=\"None\",BO229<=BP222)=TRUE,BO229,IF(OR(BQ222=\"None\",BP229<=BQ222)=TRUE,BP229,BQ229)))),BL130)","v":"CAP2"},{"$f":"IF(BL130=\"CAP3\",IF(BM222=\"None\",\"None\",IF(BM212=0,0,BL228/BM212)+BM222),BL130)","v":"CAP2"},{"$f":"IF(BL130=\"CAP3\",IF(BN222=\"None\",\"None\",IF(BM212+BN212=0,0,MAX(0,(BL228-(BN222-BM222)*BM212))/(BM212+BN212))+BN222),BL130)","v":"CAP2"},{"$f":"IF(BL130=\"CAP3\",IF(BO222=\"None\",\"None\",IF(BM212+BN212+BO212=0,0,MAX(0,(BL228-(BO222-BM222)*BM212-(BO222-BN222)*BN212))/(BM212+BN212+BO212))+BO222),BL130)","v":"CAP2"},{"$f":"IF(BL130=\"CAP3\",IF(BP222=\"None\",\"None\",IF(BM212+BN212+BO212+BP212=0,0,MAX(0,(BL228-(BP222-BM222)*BM212-(BP222-BN222)*BN212-(BP222-BO222)*BO212))/(BM212+BN212+BO212+BP212))+BP222),BL130)","v":"CAP2"},{"$f":"IF(BL130=\"CAP3\",IF(BQ222=\"None\",\"None\",IF(BM212+BN212+BO212+BP212+BQ212=0,0,MAX(0,(BL228-(BQ222-BM222)*BM212-(BQ222-BN222)*BN212-(BQ222-BO222)*BO212-(BQ222-BP222)*BP212))/(BM212+BN212+BO212+BP212+BQ212))+BQ222),BL130)","v":"CAP2"},"         Proposed Sub-Index",{"$f":"F33","v":0},{"$f":"BH192","v":0},{"$f":"ROUND(N(BS229)-N(BT229),4)","v":0},{"$f":"IF(BU229>0,\"     HIGH\",IF(BU229<0,\"      LOW\",\"       *\"))","v":"       *"}]
[null,null,null,null,null,null,null,null,null,null,null,null,null,null,null,null,null,null,null,null,null,null,null,null,null,null,null,null,null,null,null,null,null,null,null,null,null,null,null,null,null,null,null,null,null,null,null,null,null,4619,"DS3 Spec DZ1 Upper Limit",null,"          N/A","          N/A","          N/A","          N/A","          N/A","          N/A","          N/A",{"$f":"IF(AND(J35=0,BG228<>0),115,IF(L41=0,0,IF(BE228=0,M35*$W$54/L41*1.15,M35*$W$54/L41*1.15*(1+($AO$97+BE228*(IF(BE337=0,0,AO89/BE337)+IF(BE295=0,0,AO96/BE295)+IF(BE358=0,0,AO103/BE358)))/BE228))))","v":0},"","","",null,null,null,null,"junk",null,"         Sub-Index Upper Limit",{"$f":"G33","v":0},{"$f":"BH193","v":0},{"$f":"ROUND(N(BS230)-N(BT230),4)","v":0},{"$f":"IF(BU230>0,\"     HIGH\",IF(BU230<0,\"      LOW\",\"       *\"))","v":"       *"}]
[null,null,null,null,null,null,null,null,null,null,null,null,null,null,null,null,null,null,null,null,null,null,null,null,null,null,null,null,null,null,null,null,null,null,null,null,null,null,null,null,null,null,null,null,null,null,null,null,null,"","",null,null,null,null,null,null,null,null,null,360,"Minimum Deavgd PR, Lifeline, SLB EU Rate","Min(r350a,CAP1r400)if CAP1r1130=CAP3",{"$f":"IF(BL130=\"CAP3\",MIN(BL229,BL46),BL130)","v":"CAP2"},"      N/A","      N/A","      N/A","      N/A","      N/A","         IND-1 Sub-Index Out of Bounds?",null,null,null,{"$f":"IF(TRUNC(BS229,4)>TRUNC(BS230,4),\"     HIGH\",\"       *\")","v":"       *"}]
[null,null,null,null,null,null,null,null,null,null,null,null,null,null,null,null,null,null,null,null,null,null,null,null,null,null,null,null,null,null,null,null,null,null,null,null,null,null,null,null,null,null,null,null,null,null,null,null,null,"","",null,null,null,null,null,null,null,null,null,370,"Maximum Deavgd PR, Lifeline, SLB EU Rate","CAP1r400 if CAP1r1130=CAP3",{"$f":"BL130","v":"CAP2"},"      N/A","      N/A","      N/A","      N/A","      N/A","         RTE-1 Sub-Index Out of Bounds?",null,null,null,{"$f":"IF(TRUNC(N(BT229),4)>TRUNC(N(BT230),4),\"     HIGH\",\"       *\")","v":"       *"}]
[null,null,null,null,null,null,null,null,null,null,null,null,null,null,null,null,null,null,null,null,null,null,null,null,null,null,null,null,null,null,null,null,null,null,null,null,null,null,null,null,null,null,null,null,null,null,null,null,null,"","DS3,  Special Access Density Zone 2:",null,null,null,null,null,null,null,null,null,"","",""]
[null,null,null,null,null,null,null,null,null,null,null,null,null,null,null,null,null,null,null,null,null,null,null,null,null,null,null,null,null,null,null,null,null,null,null,null,null,null,null,null,null,null,null,null,null,null,null,null,null,4621,"DS3 Spec DZ2 ChanTerm",null,"          N/A","          N/A","          N/A","          N/A",null,null,null,"    N/A",375,"Minimum Deavgd NPR & BRI ISDN EU Rate","Min(r350a,CAP1r410)if CAP1r1130=CAP3",{"$f":"IF(BL130=\"CAP3\",MIN(BL229,BL47),BL130)","v":"CAP2"},"      N/A","      N/A","      N/A","      N/A","      N/A"]
[null,null,null,null,null,null,null,null,null,null,null,null,null,null,null,null,null,null,null,null,null,null,null,null,null,null,null,null,null,null,null,null,null,null,null,null,null,null,null,null,null,null,null,null,null,null,null,null,null,4624,"DS3 Spec DZ2 Other",null,"          N/A","          N/A","          N/A","          N/A",null,null,null,"    N/A",380,"Maximum Deavgd NPR & BRI ISDN EU Rate","CAP1r410 if CAP1r1130=CAP3",{"$f":"BL130","v":"CAP2"},"      N/A","      N/A","      N/A","      N/A","      N/A"]
[null,null,null,null,null,null,null,null,null,null,null,null,null,null,null,null,null,null,null,null,null,null,null,null,null,null,null,null,null,null,null,null,null,null,null,null,null,null,null,null,null,null,null,null,null,null,null,null,null,"","",null,null,null,null,null,null,null,null,null,"","",""]
[null,null,null,null,null,null,null,null,null,null,null,null,null,null,null,null,null,null,null,null,null,null,null,null,null,null,null,null,null,null,null,null,null,null,null,null,null,null,null,null,null,null,null,null,null,null,null,null,null,4637,"Total DS3 Spec DZ2 Sub-Category",null,"          N/A","          N/A","          N/A","          N/A",{"$f":"SUM(BE234:BE235)","v":0},{"$f":"SUM(BF234:BF235)","v":0},{"$f":"SUM(BG234:BG235)","v":0},"    N/A",385,"Minimum Deavgd MLB, PRI, Centrex EU Rate","Min(r350a,CAP1r420)if CAP1r1130=CAP3",{"$f":"IF(BL130=\"CAP3\",MIN(BL229,BL48),BL130)","v":"CAP2"},"      N/A","      N/A","      N/A","      N/A","      N/A"]
[null,null,null,null,null,null,null,null,null,null,null,null,null,null,null,null,null,null,null,null,null,null,null,null,null,null,null,null,null,null,null,null,null,null,null,null,null,null,null,null,null,null,null,null,null,null,null,null,null,4638,"DS3 Spec DZ2 Subindex",null,"          N/A","          N/A","          N/A","          N/A","          N/A","          N/A","          N/A",{"$f":"IF(AND(J36=0,BG237<>0),F36,IF(BF237=0,J36,J36*BG237/BF237))","v":0},390,"Maximum Deavgd MLB, PRI, Centrex EU Rate","CAP1r420 if CAP1r1130=CAP3",{"$f":"BL130","v":"CAP2"},"      N/A","      N/A","      N/A","      N/A","      N/A"]
[null,null,null,null,null,null,null,null,null,null,null,null,null,null,null,null,null,null,null,null,null,null,null,null,null,null,null,null,null,null,null,null,null,null,null,null,null,null,null,null,null,null,null,null,null,null,null,null,null,4639,"DS3 Spec DZ2 Upper Limit",null,"          N/A","          N/A","          N/A","          N/A","          N/A","          N/A","          N/A",{"$f":"IF(AND(J36=0,BG237<>0),115,IF(L41=0,0,IF(BE237=0,M36*$W$54/L41*1.15,M36*$W$54/L41*1.15*(1+($AO$98+BE237*(IF(BE337=0,0,AO89/BE337)+IF(BE295=0,0,AO96/BE295)+IF(BE358=0,0,AO103/BE358)))/BE237))))","v":0},"","",""]
[null,null,null,null,null,null,null,null,null,null,null,null,null,null,null,null,null,null,null,null,null,null,null,null,null,null,null,null,null,null,null,null,null,null,null,null,null,null,null,null,null,null,null,null,null,null,null,null,null,"","",null,null,null,null,null,null,null,null,null,"","",""]
[null,null,null,null,null,null,null,null,null,null,null,null,null,null,null,null,null,null,null,null,null,null,null,null,null,null,null,null,null,null,null,null,null,null,null,null,null,null,null,null,null,null,null,null,null,null,null,null,null,"","",null,null,null,null,null,null,null,null,null,"","Final EU Rates (Manually Input)",""]
[null,null,null,null,null,null,null,null,null,null,null,null,null,null,null,null,null,null,null,null,null,null,null,null,null,null,null,null,null,null,null,null,null,null,null,null,null,null,null,null,null,null,null,null,null,null,null,null,null,"","DS3,  Special Access Density Zone 3:",null,null,null,null,null,null,null,null,null,400,"Final Primary Res, Lifeline, & SLB EU Rate","Input; but for col.c thru f: if r100=\"N/A\", 0","      N/A",{"$f":"BL130","v":"CAP2"},{"$f":"BL130","v":"CAP2"},{"$f":"BL130","v":"CAP2"},{"$f":"BL130","v":"CAP2"},{"$f":"BL130","v":"CAP2"}]
[null,null,null,null,null,null,null,null,null,null,null,null,null,null,null,null,null,null,null,null,null,null,null,null,null,null,null,null,null,null,null,null,null,null,null,null,null,null,null,null,null,null,null,null,null,null,null,null,null,4641,"DS3 Spec DZ3 ChanTerm",null,"          N/A","          N/A","          N/A","          N/A",null,null,null,"    N/A",410,"Final NonPrim Res & BRI ISDN EU Rate","Input; but for col.c thru f: if r100=\"N/A\", 0","      N/A",{"$f":"BL130","v":"CAP2"},{"$f":"BL130","v":"CAP2"},{"$f":"BL130","v":"CAP2"},{"$f":"BL130","v":"CAP2"},{"$f":"BL130","v":"CAP2"}]
[null,null,null,null,null,null,null,null,null,null,null,null,null,null,null,null,null,null,null,null,null,null,null,null,null,null,null,null,null,null,null,null,null,null,null,null,null,null,null,null,null,null,null,null,null,null,null,null,null,4644,"DS3 Spec DZ3 Other",null,"          N/A","          N/A","          N/A","          N/A",null,null,null,"    N/A",420,"Final MLB, PRI ISDN, & Centrex EU Rate","Input; but for col.c thru f: if r100=\"N/A\", 0","      N/A",{"$f":"BL130","v":"CAP2"},{"$f":"BL130","v":"CAP2"},{"$f":"BL130","v":"CAP2"},{"$f":"BL130","v":"CAP2"},{"$f":"BL130","v":"CAP2"}]
[null,null,null,null,null,null,null,null,null,null,null,null,null,null,null,null,null,null,null,null,null,null,null,null,null,null,null,null,null,null,null,null,null,null,null,null,null,null,null,null,null,null,null,null,null,null,null,null,null,"","",null,null,null,null,null,null,null,null,null,"","",""]
[null,null,null,null,null,null,null,null,null,null,null,null,null,null,null,null,null,null,null,null,null,null,null,null,null,null,null,null,null,null,null,null,null,null,null,null,null,null,null,null,null,null,null,null,null,null,null,null,null,4657,"Total DS3 Spec DZ3 Sub-Category",null,"          N/A","          N/A","          N/A","          N/A",{"$f":"SUM(BE243:BE244)","v":0},{"$f":"SUM(BF243:BF244)","v":0},{"$f":"SUM(BG243:BG244)","v":0},"    N/A","","Final EU Revenue",""]
[null,null,null,null,null,null,null,null,null,null,null,null,null,null,null,null,null,null,null,null,null,null,null,null,null,null,null,null,null,null,null,null,null,null,null,null,null,null,null,null,null,null,null,null,null,null,null,null,null,4658,"DS3 Spec DZ3 Subindex",null,"          N/A","          N/A","          N/A","          N/A","          N/A","          N/A","          N/A",{"$f":"IF(AND(J37=0,BG246<>0),F37,IF(BF246=0,J37,J37*BG246/BF246))","v":0},500,"Final Total Primary Res & SLB & LifeLine EU Revenue","r400 * CAP1r100 or Sum of CAP3-priced Juris",{"$f":"IF(OR(BL130=\"CAP3\",BL130=\"JurisSPM\",BL130=\"JurisSP\",BL130=\"JurisS\",BL130=\"JurisMix\"),SUM(BM247:BQ247),BL130)","v":"CAP2"},{"$f":"IF(OR((AND(BL99<=0,(OR(BL130=\"JurisSPM\",BL130=\"JurisSP\",BL130=\"JurisS\",BL130=\"JurisMix\")))),(AND(BL99>0,(OR(BL130=\"JurisSPM\",BL130=\"JurisMix\"))))),CAPs!E247,IF(BL130=\"CAP3\",BM242*BM26,BL130))","v":"CAP2"},{"$f":"IF(OR((AND(BL99<=0,(OR(BL130=\"JurisSPM\",BL130=\"JurisSP\",BL130=\"JurisS\",BL130=\"JurisMix\")))),(AND(BL99>0,(OR(BL130=\"JurisSPM\",BL130=\"JurisMix\"))))),CAPs!F247,IF(BL130=\"CAP3\",BN242*BN26,BL130))","v":"CAP2"},{"$f":"IF(OR((AND(BL99<=0,(OR(BL130=\"JurisSPM\",BL130=\"JurisSP\",BL130=\"JurisS\",BL130=\"JurisMix\")))),(AND(BL99>0,(OR(BL130=\"JurisSPM\",BL130=\"JurisMix\"))))),CAPs!G247,IF(BL130=\"CAP3\",BO242*BO26,BL130))","v":"CAP2"},{"$f":"IF(OR((AND(BL99<=0,(OR(BL130=\"JurisSPM\",BL130=\"JurisSP\",BL130=\"JurisS\",BL130=\"JurisMix\")))),(AND(BL99>0,(OR(BL130=\"JurisSPM\",BL130=\"JurisMix\"))))),CAPs!H247,IF(BL130=\"CAP3\",BP242*BP26,BL130))","v":"CAP2"},{"$f":"IF(OR((AND(BL99<=0,(OR(BL130=\"JurisSPM\",BL130=\"JurisSP\",BL130=\"JurisS\",BL130=\"JurisMix\")))),(AND(BL99>0,(OR(BL130=\"JurisSPM\",BL130=\"JurisMix\"))))),CAPs!I247,IF(BL130=\"CAP3\",BQ242*BQ26,BL130))","v":"CAP2"}]
[null,null,null,null,null,null,null,null,null,null,null,null,null,null,null,null,null,null,null,null,null,null,null,null,null,null,null,null,null,null,null,null,null,null,null,null,null,null,null,null,null,null,null,null,null,null,null,null,null,4659,"DS3 Spec DZ3 Upper Limit",null,"          N/A","          N/A","          N/A","          N/A","          N/A","          N/A","          N/A",{"$f":"IF(AND(J37=0,BG246<>0),115,IF(L41=0,0,IF(BE246=0,M37*$W$54/L41*1.15,M37*$W$54/L41*1.15*(1+($AO$99+BE246*(IF(BE337=0,0,AO89/BE337)+IF(BE295=0,0,AO96/BE295)+IF(BE358=0,0,AO103/BE358)))/BE246))))","v":0},510,"Final Total NonPrim Res & BRI ISDN EU Revenue","r410 * CAP1r110 or Sum of CAP3-priced Juris",{"$f":"IF(OR(BL130=\"CAP3\",BL130=\"JurisSPM\",BL130=\"JurisSP\",BL130=\"JurisS\",BL130=\"JurisMix\"),SUM(BM248:BQ248),BL130)","v":"CAP2"},{"$f":"IF(OR((AND(BL99<=0,(OR(BL130=\"JurisSPM\",BL130=\"JurisSP\",BL130=\"JurisS\",BL130=\"JurisMix\")))),(AND(BL99>0,(OR(BL130=\"JurisSPM\",BL130=\"JurisMix\"))))),CAPs!E248,IF(BL130=\"CAP3\",BM243*BM27,BL130))","v":"CAP2"},{"$f":"IF(OR((AND(BL99<=0,(OR(BL130=\"JurisSPM\",BL130=\"JurisSP\",BL130=\"JurisS\",BL130=\"JurisMix\")))),(AND(BL99>0,(OR(BL130=\"JurisSPM\",BL130=\"JurisMix\"))))),CAPs!F248,IF(BL130=\"CAP3\",BN243*BN27,BL130))","v":"CAP2"},{"$f":"IF(OR((AND(BL99<=0,(OR(BL130=\"JurisSPM\",BL130=\"JurisSP\",BL130=\"JurisS\",BL130=\"JurisMix\")))),(AND(BL99>0,(OR(BL130=\"JurisSPM\",BL130=\"JurisMix\"))))),CAPs!G248,IF(BL130=\"CAP3\",BO243*BO27,BL130))","v":"CAP2"},{"$f":"IF(OR((AND(BL99<=0,(OR(BL130=\"JurisSPM\",BL130=\"JurisSP\",BL130=\"JurisS\",BL130=\"JurisMix\")))),(AND(BL99>0,(OR(BL130=\"JurisSPM\",BL130=\"JurisMix\"))))),CAPs!H248,IF(BL130=\"CAP3\",BP243*BP27,BL130))","v":"CAP2"},{"$f":"IF(OR((AND(BL99<=0,(OR(BL130=\"JurisSPM\",BL130=\"JurisSP\",BL130=\"JurisS\",BL130=\"JurisMix\")))),(AND(BL99>0,(OR(BL130=\"JurisSPM\",BL130=\"JurisMix\"))))),CAPs!I248,IF(BL130=\"CAP3\",BQ243*BQ27,BL130))","v":"CAP2"}]
[null,null,null,null,null,null,null,null,null,null,null,null,null,null,null,null,null,null,null,null,null,null,null,null,null,null,null,null,null,null,null,null,null,null,null,null,null,null,null,null,null,null,null,null,null,null,null,null,null,null,null,null,null,null,null,null,null,null,null,null,520,"Final Total MLB, PRI ISDN, & Centrex EU Revenue","r420 * CAP1r120 or Sum of CAP3-priced Juris",{"$f":"IF(OR(BL130=\"CAP3\",BL130=\"JurisSPM\",BL130=\"JurisSP\",BL130=\"JurisS\",BL130=\"JurisMix\"),SUM(BM249:BQ249),BL130)","v":"CAP2"},{"$f":"IF(OR((AND(BL99<=0,(OR(BL130=\"JurisSPM\",BL130=\"JurisSP\",BL130=\"JurisS\",BL130=\"JurisMix\")))),(AND(BL99>0,(OR(BL130=\"JurisSPM\",BL130=\"JurisMix\"))))),CAPs!E249,IF(BL130=\"CAP3\",BM244*BM28,BL130))","v":"CAP2"},{"$f":"IF(OR((AND(BL99<=0,(OR(BL130=\"JurisSPM\",BL130=\"JurisSP\",BL130=\"JurisS\",BL130=\"JurisMix\")))),(AND(BL99>0,(OR(BL130=\"JurisSPM\",BL130=\"JurisMix\"))))),CAPs!F249,IF(BL130=\"CAP3\",BN244*BN28,BL130))","v":"CAP2"},{"$f":"IF(OR((AND(BL99<=0,(OR(BL130=\"JurisSPM\",BL130=\"JurisSP\",BL130=\"JurisS\",BL130=\"JurisMix\")))),(AND(BL99>0,(OR(BL130=\"JurisSPM\",BL130=\"JurisMix\"))))),CAPs!G249,IF(BL130=\"CAP3\",BO244*BO28,BL130))","v":"CAP2"},{"$f":"IF(OR((AND(BL99<=0,(OR(BL130=\"JurisSPM\",BL130=\"JurisSP\",BL130=\"JurisS\",BL130=\"JurisMix\")))),(AND(BL99>0,(OR(BL130=\"JurisSPM\",BL130=\"JurisMix\"))))),CAPs!H249,IF(BL130=\"CAP3\",BP244*BP28,BL130))","v":"CAP2"},{"$f":"IF(OR((AND(BL99<=0,(OR(BL130=\"JurisSPM\",BL130=\"JurisSP\",BL130=\"JurisS\",BL130=\"JurisMix\")))),(AND(BL99>0,(OR(BL130=\"JurisSPM\",BL130=\"JurisMix\"))))),CAPs!I249,IF(BL130=\"CAP3\",BQ244*BQ28,BL130))","v":"CAP2"}]
[null,null,null,null,null,null,null,null,null,null,null,null,null,null,null,null,null,null,null,null,null,null,null,null,null,null,null,null,null,null,null,null,null,null,null,null,null,null,null,null,null,null,null,null,null,null,null,null,null,null,null,null,null,null,null,null,null,null,null,null,530,"Final Total End User Revenue","r500 + r510 + r520",{"$f":"IF(OR(BL130=\"CAP3\",BL130=\"JurisSPM\",BL130=\"JurisSP\",BL130=\"JurisS\",BL130=\"JurisMix\"),SUM(BL247:BL249),BL130)","v":"CAP2"},{"$f":"IF(OR(BL130=\"CAP3\",BL130=\"JurisSPM\",BL130=\"JurisSP\",BL130=\"JurisS\",BL130=\"JurisMix\"),SUM(BM247:BM249),BL130)","v":"CAP2"},{"$f":"IF(OR(BL130=\"CAP3\",BL130=\"JurisSPM\",BL130=\"JurisSP\",BL130=\"JurisS\",BL130=\"JurisMix\"),SUM(BN247:BN249),BL130)","v":"CAP2"},{"$f":"IF(OR(BL130=\"CAP3\",BL130=\"JurisSPM\",BL130=\"JurisSP\",BL130=\"JurisS\",BL130=\"JurisMix\"),SUM(BO247:BO249),BL130)","v":"CAP2"},{"$f":"IF(OR(BL130=\"CAP3\",BL130=\"JurisSPM\",BL130=\"JurisSP\",BL130=\"JurisS\",BL130=\"JurisMix\"),SUM(BP247:BP249),BL130)","v":"CAP2"},{"$f":"IF(OR(BL130=\"CAP3\",BL130=\"JurisSPM\",BL130=\"JurisSP\",BL130=\"JurisS\",BL130=\"JurisMix\"),SUM(BQ247:BQ249),BL130)","v":"CAP2"}]
[null,null,null,null,null,null,null,null,null,null,null,null,null,null,null,null,null,null,null,null,null,null,null,null,null,null,null,null,null,null,null,null,null,null,null,null,null,null,null,null,null,null,null,null,null,null,null,null,null,null,null,null,null,null,null,null,null,null,null,null,"","",""]
[null,null,null,null,null,null,null,null,null,null,null,null,null,null,null,null,null,null,null,null,null,null,null,null,null,null,null,null,null,null,null,null,null,null,null,null,null,null,null,null,null,null,null,null,null,null,null,null,null,null,null,null,null,null,null,null,null,null,null,null,600,"Actual vs. Allowable Revenue:  Over-recovery","r530 - r130",{"$f":"IF(OR(BL130=\"CAP3\",BL130=\"JurisSPM\",BL130=\"JurisSP\",BL130=\"JurisS\",BL130=\"JurisMix\"),BL250-BL209,BL130)","v":"CAP2"},"      N/A","      N/A","      N/A","      N/A","      N/A"]
[null,null,null,null,null,null,null,null,null,null,null,null,null,null,null,null,null,null,null,null,null,null,null,null,null,null,null,null,null,null,null,null,null,null,null,null,null,null,null,null,null,null,null,null,null,null,null,null,null,null,null,null,null,null,null,null,null,null,null,null,"","          or (Under-recovery)",""]
[]
[null,null,null,null,null,null,null,null,null,null,null,null,null,null,null,null,null,null,null,null,null,null,null,null,null,null,null,null,null,null,null,null,null,null,null,null,null,null,null,null,null,null,null,null,null,null,null,null,null,"RTE-1",null,null,null,null,null,null,null,null,null,null,"CAP-4",null,null,null,null,null,null,null,null,"ANALYZER"]
[null,null,null,null,null,null,null,null,null,null,null,null,null,null,null,null,null,null,null,null,null,null,null,null,null,null,null,null,null,null,null,null,null,null,null,null,null,null,null,null,null,null,null,null,null,null,null,null,null,{"$f":"\"Filing Date:                \"&DATE","v":"Filing Date:                06/16/2020"},null,null,null,null,null,null,null,null,null,null,{"$f":"\"Filing Date:                \"&DATE","v":"Filing Date:                06/16/2020"},null,null,null,null,null,null,null,null,{"$f":"\"Filing Date:                \"&DATE","v":"Filing Date:                06/16/2020"}]
[null,null,null,null,null,null,null,null,null,null,null,null,null,null,null,null,null,null,null,null,null,null,null,null,null,null,null,null,null,null,null,null,null,null,null,null,null,null,null,null,null,null,null,null,null,null,null,null,null,{"$f":"\"Filing Entity:               \"&COSA","v":"Filing Entity:               "},null,null,null,null,null,null,null,null,null,null,{"$f":"\"Filing Entity:               \"&COSA","v":"Filing Entity:               "},null,null,null,null,null,null,null,null,{"$f":"\"Filing Entity:               \"&COSA","v":"Filing Entity:               "}]
[null,null,null,null,null,null,null,null,null,null,null,null,null,null,null,null,null,null,null,null,null,null,null,null,null,null,null,null,null,null,null,null,null,null,null,null,null,null,null,null,null,null,null,null,null,null,null,null,null,{"$f":"\"Transmittal Number:   \"&TRANSMITTAL","v":"Transmittal Number:   "},null,null,null,null,null,null,null,null,null,null,{"$f":"\"Transmittal Number:   \"&TRANSMITTAL","v":"Transmittal Number:   "},null,null,null,null,null,null,null,null,{"$f":"\"Transmittal Number:   \"&TRANSMITTAL","v":"Transmittal Number:   "}]
[null,null,null,null,null,null,null,null,null,null,null,null,null,null,null,null,null,null,null,null,null,null,null,null,null,null,null,null,null,null,null,null,null,null,null,null,null,null,null,null,null,null,null,null,null,null,null,null,null,{"$f":"NAME","v":0},null,null,null,null,null,null,null,null,null,null,{"$f":"NAME","v":0},null,null,null,null,null,null,null,null,{"$f":"NAME","v":0}]
[null,null,null,null,null,null,null,null,null,null,null,null,null,null,null,null,null,null,null,null,null,null,null,null,null,null,null,null,null,null,null,null,null,null,null,null,null,null,null,null,null,null,null,null,null,null,null,null,null,"Page 5 of 6",null,null,null,null,"Price Caps Tariff Review Plan",null,null,null,null,null,"Page 1 of 1",null,"Price Cap Tariff Review Plan",null,null,null,null,null,null,"Page 5 of 5"]
[null,null,null,null,null,null,null,null,null,null,null,null,null,null,null,null,null,null,null,null,null,null,null,null,null,null,null,null,null,null,null,null,null,null,null,null,null,null,null,null,null,null,null,null,null,null,null,null,null,null,null,null,null,null,"Special Access Basket",null,null,null,null,null,null,null,"Allocation of Pool Revenues to MLB PICC & MLB EUCL"]
[null,null,null,null,null,null,null,null,null,null,null,null,null,null,null,null,null,null,null,null,null,null,null,null,null,null,null,null,null,null,null,null,null,null,null,null,null,null,null,null,null,null,null,null,null,null,null,null,null,null,null,null,null,null,null,null,null,null,null,null,null,null,null,null,null,null,null,null,null,null,"IND-1","RTE-1","Delta","Flag"]
[null,null,null,null,null,null,null,null,null,null,null,null,null,null,null,null,null,null,null,null,null,null,null,null,null,null,null,null,null,null,null,null,null,null,null,null,null,null,null,null,null,null,null,null,null,null,null,null,null,null,null,null,null,null,null,null,"BASE PERIOD","BASE PERIOD","BASE PERIOD",null,null,null,null,null,null,null,null,null,null,"SPECIAL ACCESS--------------------------------------","-","-","-","-"]
[null,null,null,null,null,null,null,null,null,null,null,null,null,null,null,null,null,null,null,null,null,null,null,null,null,null,null,null,null,null,null,null,null,null,null,null,null,null,null,null,null,null,null,null,null,null,null,null,null,null,null,null,"BASE","RATES AT",null,null,"DEMAND x","DEMAND x","DEMAND x",null,null,null,null,"Total","No Zone / Zone A","Zone B","Zone C","Zone D","Other Zone","      DS3  Special Access Density Zone 1 "]
[null,null,null,null,null,null,null,null,null,null,null,null,null,null,null,null,null,null,null,null,null,null,null,null,null,null,null,null,null,null,null,null,null,null,null,null,null,null,null,null,null,null,null,null,null,null,null,null,null,null,null,null,"PERIOD","10/1/19 PCI","CURRENT","PROPOSED","RATES AT 10/1/19","CURRENT","PROPOSED","INDEX ",null,null,"Source","(a)","(b)","(c)","(d)","(e)","(f)","         Proposed Sub-Index",{"$f":"F35","v":0},{"$f":"BH229","v":0},{"$f":"ROUND(N(BS265)-N(BT265),4)","v":0},{"$f":"IF(BU265>0,\"     HIGH\",IF(BU265<0,\"      LOW\",\"       *\"))","v":"       *"}]
[null,null,null,null,null,null,null,null,null,null,null,null,null,null,null,null,null,null,null,null,null,null,null,null,null,null,null,null,null,null,null,null,null,null,null,null,null,null,null,null,null,null,null,null,null,null,null,null,null,null,"",null,"DEMAND","UPDATE","RATES","RATES","PCI UPDATE","RATES","RATES","RESULTS","","","",null,null,null,null,null,null,"         Sub-Index Upper Limit",{"$f":"G35","v":0},{"$f":"BH230","v":0},{"$f":"ROUND(N(BS266)-N(BT266),4)","v":0},{"$f":"IF(BU266>0,\"     HIGH\",IF(BU266<0,\"      LOW\",\"       *\"))","v":"       *"}]
[null,null,null,null,null,null,null,null,null,null,null,null,null,null,null,null,null,null,null,null,null,null,null,null,null,null,null,null,null,null,null,null,null,null,null,null,null,null,null,null,null,null,null,null,null,null,null,null,null,"",null,null,"-","-","-","-","-","-","-","-","","","For rows 100&105: If CAP1r1110=\"Yes\", use sourcing; else enter \"No Pooling\".",null,null,null,null,null,null,"         IND-1 Sub-Index Out of Bounds?",null,null,null,{"$f":"IF(TRUNC(BS265,4)>TRUNC(BS266,4),\"     HIGH\",\"       *\")","v":"       *"}]
[null,null,null,null,null,null,null,null,null,null,null,null,null,null,null,null,null,null,null,null,null,null,null,null,null,null,null,null,null,null,null,null,null,null,null,null,null,null,null,null,null,null,null,null,null,null,null,null,null,null,null,null,"(A)","(B)","(C)","(D)","(E)","(F)","(G)","(H)",100,"Pooling Amount?","Input",null,"      N/A","      N/A","      N/A","      N/A","      N/A","         RTE-1 Sub-Index Out of Bounds?",null,null,null,{"$f":"IF(TRUNC(N(BT265),4)>TRUNC(N(BT266),4),\"     HIGH\",\"       *\")","v":"       *"}]
[null,null,null,null,null,null,null,null,null,null,null,null,null,null,null,null,null,null,null,null,null,null,null,null,null,null,null,null,null,null,null,null,null,null,null,null,null,null,null,null,null,null,null,null,null,null,null,null,null,null,"High Cap & DDS Service Category - Special",null,null,null,null,null,null,null,null,null,105,"CAP Form containing final EUCL Rates?","CAP1r1130",{"$f":"IF(BL128<>\"Yes\",\"No Pooling\",BL130)","v":"No Pooling"},"      N/A","      N/A","      N/A","      N/A","      N/A"]
[null,null,null,null,null,null,null,null,null,null,null,null,null,null,null,null,null,null,null,null,null,null,null,null,null,null,null,null,null,null,null,null,null,null,null,null,null,null,null,null,null,null,null,null,null,null,null,null,null,null,"-",null,null,null,null,null,null,null,null,null,"","","",null,null,null,null,null,null,"      DS3  Special Access Density Zone 2"]
[null,null,null,null,null,null,null,null,null,null,null,null,null,null,null,null,null,null,null,null,null,null,null,null,null,null,null,null,null,null,null,null,null,null,null,null,null,null,null,null,null,null,null,null,null,null,null,null,null,"","DS3,  Special Access Density Zone 4:",null,null,null,null,null,null,null,null,null,"","","",null,null,null,null,null,null,"         Proposed Sub-Index",{"$f":"F36","v":0},{"$f":"BH238","v":0},{"$f":"ROUND(N(BS271)-N(BT271),4)","v":0},{"$f":"IF(BU271>0,\"     HIGH\",IF(BU271<0,\"      LOW\",\"       *\"))","v":"       *"}]
[null,null,null,null,null,null,null,null,null,null,null,null,null,null,null,null,null,null,null,null,null,null,null,null,null,null,null,null,null,null,null,null,null,null,null,null,null,null,null,null,null,null,null,null,null,null,null,null,null,4661,"DS3 Spec DZ4 ChanTerm",null,"          N/A","          N/A","          N/A","          N/A",null,null,null,"    N/A","","MLB Pooled Rates for CAP1 & CAP2 Forms","For rows 110 to 220: If CAP4r105=\"CAP1\"or\"CAP2\" or if Jurisdictional pricing, use sourcing; else, r105 value.",null,null,null,null,null,null,"         Sub-Index Upper Limit",{"$f":"G36","v":0},{"$f":"BH239","v":0},{"$f":"ROUND(N(BS272)-N(BT272),4)","v":0},{"$f":"IF(BU272>0,\"     HIGH\",IF(BU272<0,\"      LOW\",\"       *\"))","v":"       *"}]
[null,null,null,null,null,null,null,null,null,null,null,null,null,null,null,null,null,null,null,null,null,null,null,null,null,null,null,null,null,null,null,null,null,null,null,null,null,null,null,null,null,null,null,null,null,null,null,null,null,4664,"DS3 Spec DZ4 Other",null,"          N/A","          N/A","          N/A","          N/A",null,null,null,"    N/A",110,"MLB, PRI ISDN & Centrex EUCL Cap","CAP1r420",{"$f":"IF(BL128<>\"Yes\",\"No Pooling\",IF(AND(BL269<>\"CAP1\",BL269<>\"CAP2\"),BL130,BL48))","v":"No Pooling"},"      N/A","      N/A","      N/A","      N/A","      N/A","         IND-1 Sub-Index Out of Bounds?",null,null,null,{"$f":"IF(TRUNC(BS271,4)>TRUNC(BS272,4),\"     HIGH\",\"       *\")","v":"       *"}]
[null,null,null,null,null,null,null,null,null,null,null,null,null,null,null,null,null,null,null,null,null,null,null,null,null,null,null,null,null,null,null,null,null,null,null,null,null,null,null,null,null,null,null,null,null,null,null,null,null,"","",null,null,null,null,null,null,null,null,null,120,"MLB, PRI & Centrex EUCL Rate","if r105=\"CAP1\", CAP1r520;  =\"CAP2\",CAP2r420;",{"$f":"IF(BL128<>\"Yes\",\"No Pooling\",IF(AND(BL269<>\"CAP1\",BL269<>\"CAP2\"),BL130,IF(BL130=\"CAP1\",BL48,BL159)))","v":"No Pooling"},"      N/A","      N/A","      N/A","      N/A","      N/A","         RTE-1 Sub-Index Out of Bounds?",null,null,null,{"$f":"IF(TRUNC(N(BT271),4)>TRUNC(N(BT272),4),\"     HIGH\",\"       *\")","v":"       *"}]
[null,null,null,null,null,null,null,null,null,null,null,null,null,null,null,null,null,null,null,null,null,null,null,null,null,null,null,null,null,null,null,null,null,null,null,null,null,null,null,null,null,null,null,null,null,null,null,null,null,4677,"Total DS3 Spec DZ4 Sub-Category",null,"          N/A","          N/A","          N/A","          N/A",{"$f":"SUM(BE272:BE273)","v":0},{"$f":"SUM(BF272:BF273)","v":0},{"$f":"SUM(BG272:BG273)","v":0},"    N/A","","",""]
[null,null,null,null,null,null,null,null,null,null,null,null,null,null,null,null,null,null,null,null,null,null,null,null,null,null,null,null,null,null,null,null,null,null,null,null,null,null,null,null,null,null,null,null,null,null,null,null,null,4678,"DS3 Spec DZ4 Subindex",null,"          N/A","          N/A","          N/A","          N/A","          N/A","          N/A","          N/A",{"$f":"IF(AND(J38=0,BG275<>0),F38,IF(BF275=0,J38,J38*BG275/BF275))","v":0},130,"MLB, PRI ISDN Revenue below EUCL CAP","(r110-r120)*(CAP1r120) or Sum of Jurisdictns",{"$f":"IF(BL128<>\"Yes\",\"No Pooling\",IF(OR($BL130=\"JurisSPM\",$BL130=\"JurisSP\",$BL130=\"JurisS\",$BL130=\"JurisMix\"),CAPs!D276,IF(AND(BL269<>\"CAP1\",BL269<>\"CAP2\"),BL130,(BL273-BL274)*BL28)))","v":"No Pooling"},"      N/A","      N/A","      N/A","      N/A","      N/A","      DS3  Special Access Density Zone 3"]
[null,null,null,null,null,null,null,null,null,null,null,null,null,null,null,null,null,null,null,null,null,null,null,null,null,null,null,null,null,null,null,null,null,null,null,null,null,null,null,null,null,null,null,null,null,null,null,null,null,4679,"DS3 Spec DZ4 Upper Limit",null,"          N/A","          N/A","          N/A","          N/A","          N/A","          N/A","          N/A",{"$f":"IF(AND(J38=0,BG275<>0),115,IF(L41=0,0,IF(BE275=0,M38*$W$54/L41*1.15,M38*$W$54/L41*1.15*(1+($AO$100+BE275*(IF(BE337=0,0,AO89/BE337)+IF(BE295=0,0,AO96/BE295)+IF(BE358=0,0,AO103/BE358)))/BE275))))","v":0},140,"Pooling revenue to be recovered from MLB EUCL Rate","Min(r130,r100) or Sum of Jurisdictions",{"$f":"IF(BL128<>\"Yes\",\"No Pooling\",IF(OR($BL130=\"JurisSPM\",$BL130=\"JurisSP\",$BL130=\"JurisS\",$BL130=\"JurisMix\"),CAPs!D277,IF(AND(BL269<>\"CAP1\",BL269<>\"CAP2\"),BL130,MIN(BL276,BL268))))","v":"No Pooling"},"      N/A","      N/A","      N/A","      N/A","      N/A","         Proposed Sub-Index",{"$f":"F37","v":0},{"$f":"BH247","v":0},{"$f":"ROUND(N(BS277)-N(BT277),4)","v":0},{"$f":"IF(BU277>0,\"     HIGH\",IF(BU277<0,\"      LOW\",\"       *\"))","v":"       *"}]
[null,null,null,null,null,null,null,null,null,null,null,null,null,null,null,null,null,null,null,null,null,null,null,null,null,null,null,null,null,null,null,null,null,null,null,null,null,null,null,null,null,null,null,null,null,null,null,null,null,"","",null,null,null,null,null,null,null,null,null,150,"MLB EUCL rate","r120+(r140/CAP1r120) ",{"$f":"IF(BL128<>\"Yes\",\"No Pooling\",IF(AND(BL269<>\"CAP1\",BL269<>\"CAP2\"),BL130,IF(BL28=0,0,BL274+(BL277/BL28))))","v":"No Pooling"},"      N/A","      N/A","      N/A","      N/A","      N/A","         Sub-Index Upper Limit",{"$f":"G37","v":0},{"$f":"BH248","v":0},{"$f":"ROUND(N(BS278)-N(BT278),4)","v":0},{"$f":"IF(BU278>0,\"     HIGH\",IF(BU278<0,\"      LOW\",\"       *\"))","v":"       *"}]
[null,null,null,null,null,null,null,null,null,null,null,null,null,null,null,null,null,null,null,null,null,null,null,null,null,null,null,null,null,null,null,null,null,null,null,null,null,null,null,null,null,null,null,null,null,null,null,null,null,"","",null,null,null,null,null,null,null,null,null,155,"MLB EUCL Revenue","r150 * (CAP1r120), or Sum of Jurisdictions",{"$f":"IF(BL128<>\"Yes\",\"No Pooling\",IF(OR($BL130=\"JurisSPM\",$BL130=\"JurisSP\",$BL130=\"JurisS\",$BL130=\"JurisMix\"),CAPs!D279,IF(AND(BL269<>\"CAP1\",BL269<>\"CAP2\"),BL130,BL278*(BL28))))","v":"No Pooling"},"      N/A","      N/A","      N/A","      N/A","      N/A","         IND-1 Sub-Index Out of Bounds?",null,null,null,{"$f":"IF(TRUNC(BS277,4)>TRUNC(BS278,4),\"     HIGH\",\"       *\")","v":"       *"}]
[null,null,null,null,null,null,null,null,null,null,null,null,null,null,null,null,null,null,null,null,null,null,null,null,null,null,null,null,null,null,null,null,null,null,null,null,null,null,null,null,null,null,null,null,null,null,null,null,null,"","DS3,  Special Access Density Zone 5:",null,null,null,null,null,null,null,null,null,"","","",null,null,null,null,null,null,"         RTE-1 Sub-Index Out of Bounds?",null,null,null,{"$f":"IF(TRUNC(N(BT277),4)>TRUNC(N(BT278),4),\"     HIGH\",\"       *\")","v":"       *"}]
[null,null,null,null,null,null,null,null,null,null,null,null,null,null,null,null,null,null,null,null,null,null,null,null,null,null,null,null,null,null,null,null,null,null,null,null,null,null,null,null,null,null,null,null,null,null,null,null,null,4681,"DS3 Spec DZ5 ChanTerm",null,"          N/A","          N/A","          N/A","          N/A",null,null,null,"    N/A","","",""]
[null,null,null,null,null,null,null,null,null,null,null,null,null,null,null,null,null,null,null,null,null,null,null,null,null,null,null,null,null,null,null,null,null,null,null,null,null,null,null,null,null,null,null,null,null,null,null,null,null,4684,"DS3 Spec DZ5 Other",null,"          N/A","          N/A","          N/A","          N/A",null,null,null,"    N/A",160,"Remaining Pooling Revenues","r100 - r140",{"$f":"IF(BL128<>\"Yes\",\"No Pooling\",IF(BL269=\"CAP3\",BL130,BL268-BL277))","v":"No Pooling"},"      N/A","      N/A","      N/A","      N/A","      N/A","      DS3  Special Access Density Zone 4"]
[null,null,null,null,null,null,null,null,null,null,null,null,null,null,null,null,null,null,null,null,null,null,null,null,null,null,null,null,null,null,null,null,null,null,null,null,null,null,null,null,null,null,null,null,null,null,null,null,null,"","",null,null,null,null,null,null,null,null,null,"","","",null,null,null,null,null,null,"         Proposed Sub-Index",{"$f":"F38","v":0},{"$f":"BH276","v":0},{"$f":"ROUND(N(BS283)-N(BT283),4)","v":0},{"$f":"IF(BU283>0,\"     HIGH\",IF(BU283<0,\"      LOW\",\"       *\"))","v":"       *"}]
[null,null,null,null,null,null,null,null,null,null,null,null,null,null,null,null,null,null,null,null,null,null,null,null,null,null,null,null,null,null,null,null,null,null,null,null,null,null,null,null,null,null,null,null,null,null,null,null,null,4697,"Total DS3 Spec DZ5 Sub-Category",null,"          N/A","          N/A","          N/A","          N/A",{"$f":"SUM(BE281:BE282)","v":0},{"$f":"SUM(BF281:BF282)","v":0},{"$f":"SUM(BG281:BG282)","v":0},"    N/A",170,"MLB PICC Cap","CAP1r430",{"$f":"IF(BL128<>\"Yes\",\"No Pooling\",IF(OR($BL130=\"JurisSPM\",$BL130=\"JurisSP\",$BL130=\"JurisS\",$BL130=\"JurisMix\"),IF(AND(SUM(BL132:BL134)=0,BL269=\"CAP3\"),BL269,BL49),IF(BL269=\"CAP3\",BL269,BL49)))","v":"No Pooling"},"      N/A","      N/A","      N/A","      N/A","      N/A","         Sub-Index Upper Limit",{"$f":"G38","v":0},{"$f":"BH277","v":0},{"$f":"ROUND(N(BS284)-N(BT284),4)","v":0},{"$f":"IF(BU284>0,\"     HIGH\",IF(BU284<0,\"      LOW\",\"       *\"))","v":"       *"}]
[null,null,null,null,null,null,null,null,null,null,null,null,null,null,null,null,null,null,null,null,null,null,null,null,null,null,null,null,null,null,null,null,null,null,null,null,null,null,null,null,null,null,null,null,null,null,null,null,null,4698,"DS3 Spec DZ5 Subindex",null,"          N/A","          N/A","          N/A","          N/A","          N/A","          N/A","          N/A",{"$f":"IF(AND(J39=0,BG284<>0),F39,IF(BF284=0,J39,J39*BG284/BF284))","v":0},180,"Maximum Average MLB, PRI & Centrex PICC Rate","CAP1r830",{"$f":"IF(BL128<>\"Yes\",\"No Pooling\",IF(OR($BL130=\"JurisSPM\",$BL130=\"JurisSP\",$BL130=\"JurisS\",$BL130=\"JurisMix\"),IF(AND(SUM(BL132:BL134)=0,BL269=\"CAP3\"),BL269,BL106),IF(BL269=\"CAP3\",BL269,BL106)))","v":"No Pooling"},"      N/A","      N/A","      N/A","      N/A","      N/A","         IND-1 Sub-Index Out of Bounds?",null,null,null,{"$f":"IF(TRUNC(BS283,4)>TRUNC(BS284,4),\"     HIGH\",\"       *\")","v":"       *"}]
[null,null,null,null,null,null,null,null,null,null,null,null,null,null,null,null,null,null,null,null,null,null,null,null,null,null,null,null,null,null,null,null,null,null,null,null,null,null,null,null,null,null,null,null,null,null,null,null,null,4699,"DS3 Spec DZ5 Upper Limit",null,"          N/A","          N/A","          N/A","          N/A","          N/A","          N/A","          N/A",{"$f":"IF(AND(J39=0,BG284<>0),115,IF(L41=0,0,IF(BE284=0,M39*$W$54/L41*1.15,M39*$W$54/L41*1.15*(1+($AO$101+BE284*(IF(BE337=0,0,AO89/BE337)+IF(BE295=0,0,AO96/BE295)+IF(BE358=0,0,AO103/BE358)))/BE284))))","v":0},190,"MLB PICC Revenue below CAP","(r170-r180)*(CAP1(r200+r210/9+r220)) or Sum",{"$f":"IF(BL128<>\"Yes\",\"No Pooling\",IF(OR($BL130=\"JurisSPM\",$BL130=\"JurisSP\",$BL130=\"JurisS\",$BL130=\"JurisMix\"),IF(AND(SUM(BL132:BL134)=0,BL269=\"CAP3\"),BL269,CAPs!D286),IF(BL269=\"cap3\",BL269,(BL284-BL285)*(BL32+BL33/9+BL34))))","v":"No Pooling"},"      N/A","      N/A","      N/A","      N/A","      N/A","         RTE-1 Sub-Index Out of Bounds?",null,null,null,{"$f":"IF(TRUNC(N(BT283),4)>TRUNC(N(BT284),4),\"     HIGH\",\"       *\")","v":"       *"}]
[null,null,null,null,null,null,null,null,null,null,null,null,null,null,null,null,null,null,null,null,null,null,null,null,null,null,null,null,null,null,null,null,null,null,null,null,null,null,null,null,null,null,null,null,null,null,null,null,null,null,null,null,null,null,null,null,null,null,null,null,200,"Pooling revenue to be recovered from MLB PICC Rate","Min(r190,r160)",{"$f":"IF(BL128<>\"Yes\",\"No Pooling\",IF(BL269=\"CAP3\",BL130,MIN(BL286,BL282)))","v":"No Pooling"},"      N/A","      N/A","      N/A","      N/A","      N/A"]
[null,null,null,null,null,null,null,null,null,null,null,null,null,null,null,null,null,null,null,null,null,null,null,null,null,null,null,null,null,null,null,null,null,null,null,null,null,null,null,null,null,null,null,null,null,null,null,null,null,null,null,null,null,null,null,null,null,null,null,null,210,"MLB PICC rate","r180+(r200/CAP1(r200+r210/9+r220)) ",{"$f":"IF(BL128<>\"Yes\",\"No Pooling\",IF(OR(BL269=\"CAP3\",BL269=\"JurisSPM\",BL269=\"JurisMix\"),BL130,IF(BL32+BL33/9+BL34=0,0,BL285+(BL287/(BL32+BL33/9+BL34)))))","v":"No Pooling"},"      N/A","      N/A","      N/A","      N/A","      N/A","      DS3  Special Access Density Zone 5"]
[null,null,null,null,null,null,null,null,null,null,null,null,null,null,null,null,null,null,null,null,null,null,null,null,null,null,null,null,null,null,null,null,null,null,null,null,null,null,null,null,null,null,null,null,null,null,null,null,null,"","DS3, Non-Density Zone Special:",null,null,null,null,null,null,null,null,null,220,"MLB PICC Revenue","r 210 * (CAP1(r200+r210/9+r220)), or Sum of ",{"$f":"IF(BL128<>\"Yes\",\"No Pooling\",IF(OR(BL130=\"JurisSPM\",BL130=\"JurisMix\"),CAPs!D289,IF(OR(BL269=\"CAP3\",BL269=\"JurisSPM\",BL269=\"JurisMix\"),BL130,BL288*(BL32+BL33/9+BL34))))","v":"No Pooling"},"      N/A","      N/A","      N/A","      N/A","      N/A","         Proposed Sub-Index",{"$f":"F39","v":0},{"$f":"BH285","v":0},{"$f":"ROUND(N(BS289)-N(BT289),4)","v":0},{"$f":"IF(BU289>0,\"     HIGH\",IF(BU289<0,\"      LOW\",\"       *\"))","v":"       *"}]
[null,null,null,null,null,null,null,null,null,null,null,null,null,null,null,null,null,null,null,null,null,null,null,null,null,null,null,null,null,null,null,null,null,null,null,null,null,null,null,null,null,null,null,null,null,null,null,null,null,4771,"DS3 SP NonDZ ChanTerm",null,"          N/A","          N/A","          N/A","          N/A",null,null,null,"    N/A","","","          Jurisdictions",null,null,null,null,null,null,"         Sub-Index Upper Limit",{"$f":"G39","v":0},{"$f":"BH286","v":0},{"$f":"ROUND(N(BS290)-N(BT290),4)","v":0},{"$f":"IF(BU290>0,\"     HIGH\",IF(BU290<0,\"      LOW\",\"       *\"))","v":"       *"}]
[null,null,null,null,null,null,null,null,null,null,null,null,null,null,null,null,null,null,null,null,null,null,null,null,null,null,null,null,null,null,null,null,null,null,null,null,null,null,null,null,null,null,null,null,null,null,null,null,null,4774,"DS3 SP NonDZ Other",null,"          N/A","          N/A","          N/A","          N/A",null,null,null,"    N/A","","","",null,null,null,null,null,null,"         IND-1 Sub-Index Out of Bounds?",null,null,null,{"$f":"IF(TRUNC(BS289,4)>TRUNC(BS290,4),\"     HIGH\",\"       *\")","v":"       *"}]
[null,null,null,null,null,null,null,null,null,null,null,null,null,null,null,null,null,null,null,null,null,null,null,null,null,null,null,null,null,null,null,null,null,null,null,null,null,null,null,null,null,null,null,null,null,null,null,null,null,"","",null,null,null,null,null,null,null,null,null,"","MLB Pooled EU Rates for CAP3","For rows 300 to 400: If CAP4r105=\"CAP3\" or if Jurisdictional pricing, use sourcing; else value from CAP1r1130.",null,null,null,null,null,null,"         RTE-1 Sub-Index Out of Bounds?",null,null,null,{"$f":"IF(TRUNC(N(BT289),4)>TRUNC(N(BT290),4),\"     HIGH\",\"       *\")","v":"       *"}]
[null,null,null,null,null,null,null,null,null,null,null,null,null,null,null,null,null,null,null,null,null,null,null,null,null,null,null,null,null,null,null,null,null,null,null,null,null,null,null,null,null,null,null,null,null,null,null,null,null,4778,"Total DS3 SP NonZone",null,"          N/A","          N/A","          N/A","          N/A",{"$f":"SUM(BE290:BE291)","v":0},{"$f":"SUM(BF290:BF291)","v":0},{"$f":"SUM(BG290:BG291)","v":0},"    N/A",300,"Total MLB&PRI ISDN lines (include both PRI * 5 & Centrex)","CAP1r120 or Sum of CAP3-priced Jurisdictns",{"$f":"IF(BL128<>\"Yes\",\"No Pooling\",IF(OR(BL269=\"JurisSPM\",BL269=\"JurisSP\",BL269=\"JurisS\",BL269=\"JurisMix\"),CAPs!D293,IF(BL269<>\"CAP3\",BL130,BL28)))","v":"No Pooling"},{"$f":"IF(BL128<>\"Yes\",\"No Pooling\",IF(OR(BL269=\"JurisSPM\",BL269=\"JurisSP\",BL269=\"JurisS\",BL269=\"JurisMix\"),CAPs!E293,IF(BL269<>\"CAP3\",BL130,BM28)))","v":"No Pooling"},{"$f":"IF(BL128<>\"Yes\",\"No Pooling\",IF(OR(BL269=\"JurisSPM\",BL269=\"JurisSP\",BL269=\"JurisS\",BL269=\"JurisMix\"),CAPs!F293,IF(BL269<>\"CAP3\",BL130,BN28)))","v":"No Pooling"},{"$f":"IF(BL128<>\"Yes\",\"No Pooling\",IF(OR(BL269=\"JurisSPM\",BL269=\"JurisSP\",BL269=\"JurisS\",BL269=\"JurisMix\"),CAPs!G293,IF(BL269<>\"CAP3\",BL130,BO28)))","v":"No Pooling"},{"$f":"IF(BL128<>\"Yes\",\"No Pooling\",IF(OR(BL269=\"JurisSPM\",BL269=\"JurisSP\",BL269=\"JurisS\",BL269=\"JurisMix\"),CAPs!H293,IF(BL269<>\"CAP3\",BL130,BP28)))","v":"No Pooling"},{"$f":"IF(BL128<>\"Yes\",\"No Pooling\",IF(OR(BL269=\"JurisSPM\",BL269=\"JurisSP\",BL269=\"JurisS\",BL269=\"JurisMix\"),CAPs!I293,IF(BL269<>\"CAP3\",BL130,BQ28)))","v":"No Pooling"}]
[null,null,null,null,null,null,null,null,null,null,null,null,null,null,null,null,null,null,null,null,null,null,null,null,null,null,null,null,null,null,null,null,null,null,null,null,null,null,null,null,null,null,null,null,null,null,null,null,null,"","",null,null,null,null,null,null,null,null,null,310,"CAP3 Final MLB, PRI ISDN, & Centrex EU Rate","if r105=\"CAP3\",CAP3r420; else r105","      N/A",{"$f":"IF(BL128<>\"Yes\",\"No Pooling\",IF(BL269=\"CAP3\",BM244,BL130))","v":"No Pooling"},{"$f":"IF(BL128<>\"Yes\",\"No Pooling\",IF(BL269=\"CAP3\",BN244,BL130))","v":"No Pooling"},{"$f":"IF(BL128<>\"Yes\",\"No Pooling\",IF(BL269=\"CAP3\",BO244,BL130))","v":"No Pooling"},{"$f":"IF(BL128<>\"Yes\",\"No Pooling\",IF(BL269=\"CAP3\",BP244,BL130))","v":"No Pooling"},{"$f":"IF(BL128<>\"Yes\",\"No Pooling\",IF(BL269=\"CAP3\",BQ244,BL130))","v":"No Pooling"}]
[null,null,null,null,null,null,null,null,null,null,null,null,null,null,null,null,null,null,null,null,null,null,null,null,null,null,null,null,null,null,null,null,null,null,null,null,null,null,null,null,null,null,null,null,null,null,null,null,null,4797,"TOTAL DS3 Special Sub-Category",null,"          N/A","          N/A","          N/A","          N/A",{"$f":"BE228+BE237+BE246+BE275+BE284+BE293","v":0},{"$f":"BF228+BF237+BF246+BF275+BF284+BF293","v":0},{"$f":"BG228+BG237+BG246+BG275+BG284+BG293","v":0},"    N/A",320,"CAP3 Final Total MLB, PRI ISDN, & Centrex EU Revenue","CAP3r520 or Sum of CAP3-priced Jurisdictns",{"$f":"IF(BL128<>\"Yes\",\"No Pooling\",IF(OR(BL269=\"CAP1\",BL269=\"CAP2\"),BL130,SUM(BM295:BQ295)))","v":"No Pooling"},{"$f":"IF(BL128<>\"Yes\",\"No Pooling\",IF(OR(BL269=\"JurisSPM\",BL269=\"JurisSP\",BL269=\"JurisS\",BL269=\"JurisMix\"),CAPs!E295,IF(BL269<>\"CAP3\",BL130,BM293*BM294)))","v":"No Pooling"},{"$f":"IF(BL128<>\"Yes\",\"No Pooling\",IF(OR(BL269=\"JurisSPM\",BL269=\"JurisSP\",BL269=\"JurisS\",BL269=\"JurisMix\"),CAPs!F295,IF(BL269<>\"CAP3\",BL130,BN293*BN294)))","v":"No Pooling"},{"$f":"IF(BL128<>\"Yes\",\"No Pooling\",IF(OR(BL269=\"JurisSPM\",BL269=\"JurisSP\",BL269=\"JurisS\",BL269=\"JurisMix\"),CAPs!G295,IF(BL269<>\"CAP3\",BL130,BO293*BO294)))","v":"No Pooling"},{"$f":"IF(BL128<>\"Yes\",\"No Pooling\",IF(OR(BL269=\"JurisSPM\",BL269=\"JurisSP\",BL269=\"JurisS\",BL269=\"JurisMix\"),CAPs!H295,IF(BL269<>\"CAP3\",BL130,BP293*BP294)))","v":"No Pooling"},{"$f":"IF(BL128<>\"Yes\",\"No Pooling\",IF(OR(BL269=\"JurisSPM\",BL269=\"JurisSP\",BL269=\"JurisS\",BL269=\"JurisMix\"),CAPs!I295,IF(BL269<>\"CAP3\",BL130,BQ293*BQ294)))","v":"No Pooling"}]
[null,null,null,null,null,null,null,null,null,null,null,null,null,null,null,null,null,null,null,null,null,null,null,null,null,null,null,null,null,null,null,null,null,null,null,null,null,null,null,null,null,null,null,null,null,null,null,null,null,4798,"DS3 Special Subindex",null,"          N/A","          N/A","          N/A","          N/A","          N/A","          N/A","          N/A",{"$f":"IF(AND(J34=0,BG295<>0),F34,IF(BF295=0,J34,J34*BG295/BF295))","v":0},330,"CAP3 Final MLB Rate adjusted for Pooling amount","a: min(330b.f) b-f:(sum(r310b.f)+r100a)/sum(r300b.f)",{"$f":"IF(BL128<>\"Yes\",\"No Pooling\",IF(BL269<>\"CAP3\",BL130,MIN(BM296:BQ296)))","v":"No Pooling"},{"$f":"IF(BL128<>\"Yes\",\"No Pooling\",IF(BL269<>\"CAP3\",BL130,IF(SUM(BM293)=0,0,(SUM(BM295)+BL268)/(SUM(BM293)))))","v":"No Pooling"},{"$f":"IF(BL128<>\"Yes\",\"No Pooling\",IF(BL269<>\"CAP3\",BL130,IF(SUM(BM293:BN293)=0,0,(SUM(BM295:BN295)+BL268)/(SUM(BM293:BN293)))))","v":"No Pooling"},{"$f":"IF(BL128<>\"Yes\",\"No Pooling\",IF(BL269<>\"CAP3\",BL130,IF(SUM(BM293:BO293)=0,0,(SUM(BM295:BO295)+BL268)/(SUM(BM293:BO293)))))","v":"No Pooling"},{"$f":"IF(BL128<>\"Yes\",\"No Pooling\",IF(BL269<>\"CAP3\",BL130,IF(SUM(BM293:BP293)=0,0,(SUM(BM295:BP295)+BL268)/(SUM(BM293:BP293)))))","v":"No Pooling"},{"$f":"IF(BL128<>\"Yes\",\"No Pooling\",IF(BL269<>\"CAP3\",BL130,IF(SUM(BM293:BQ293)=0,0,(SUM(BM295:BQ295)+BL268)/(SUM(BM293:BQ293)))))","v":"No Pooling"}]
[null,null,null,null,null,null,null,null,null,null,null,null,null,null,null,null,null,null,null,null,null,null,null,null,null,null,null,null,null,null,null,null,null,null,null,null,null,null,null,null,null,null,null,null,null,null,null,null,null,4799,"DS3 Special Upper Limit",null,"          N/A","          N/A","          N/A","          N/A","          N/A","          N/A","          N/A",{"$f":"IF(AND(J34=0,BG295<>0),105,IF(L41=0,0,IF(BE295=0,M34*$W$54/L41*1.05,M34*$W$54/L41*1.05*(1+(SUM($AO$96:$AO$101)+BE295*(IF(BE337=0,0,AO89/BE337)+IF(BE358=0,0,AO103/BE358)))/BE295))))","v":0},340,"Final MLB, PRI ISDN & Centrex EU Rate with Pooling","max(r310,r330a)","      N/A",{"$f":"IF(BL128<>\"Yes\",\"No Pooling\",IF(BL269<>\"CAP3\",BL130,IF(BM294=0,0,MAX(BM294,BL296))))","v":"No Pooling"},{"$f":"IF(BL128<>\"Yes\",\"No Pooling\",IF(BL269<>\"CAP3\",BL130,IF(BN294=0,0,MAX(BN294,BL296))))","v":"No Pooling"},{"$f":"IF(BL128<>\"Yes\",\"No Pooling\",IF(BL269<>\"CAP3\",BL130,IF(BO294=0,0,MAX(BO294,BL296))))","v":"No Pooling"},{"$f":"IF(BL128<>\"Yes\",\"No Pooling\",IF(BL269<>\"CAP3\",BL130,IF(BP294=0,0,MAX(BP294,BL296))))","v":"No Pooling"},{"$f":"IF(BL128<>\"Yes\",\"No Pooling\",IF(BL269<>\"CAP3\",BL130,IF(BQ294=0,0,MAX(BQ294,BL296))))","v":"No Pooling"}]
[null,null,null,null,null,null,null,null,null,null,null,null,null,null,null,null,null,null,null,null,null,null,null,null,null,null,null,null,null,null,null,null,null,null,null,null,null,null,null,null,null,null,null,null,null,null,null,null,null,null,null,null,null,null,null,null,null,null,null,null,350,"MLB EUCL Revenue","r300*r340 or Sum of CAP3-priced Jurisdictns",{"$f":"IF(BL128<>\"Yes\",\"No Pooling\",IF(OR(BL269=\"CAP1\",BL269=\"CAP2\"),BL130,SUM(BM298:BQ298)))","v":"No Pooling"},{"$f":"IF(BL128<>\"Yes\",\"No Pooling\",IF(OR(BL269=\"JurisSPM\",BL269=\"JurisSP\",BL269=\"JurisS\",BL269=\"JurisMix\"),CAPs!E298,IF(BL269<>\"CAP3\",BL130,BM293*BM297)))","v":"No Pooling"},{"$f":"IF(BL128<>\"Yes\",\"No Pooling\",IF(OR(BL269=\"JurisSPM\",BL269=\"JurisSP\",BL269=\"JurisS\",BL269=\"JurisMix\"),CAPs!F298,IF(BL269<>\"CAP3\",BL130,BN293*BN297)))","v":"No Pooling"},{"$f":"IF(BL128<>\"Yes\",\"No Pooling\",IF(OR(BL269=\"JurisSPM\",BL269=\"JurisSP\",BL269=\"JurisS\",BL269=\"JurisMix\"),CAPs!G298,IF(BL269<>\"CAP3\",BL130,BO293*BO297)))","v":"No Pooling"},{"$f":"IF(BL128<>\"Yes\",\"No Pooling\",IF(OR(BL269=\"JurisSPM\",BL269=\"JurisSP\",BL269=\"JurisS\",BL269=\"JurisMix\"),CAPs!H298,IF(BL269<>\"CAP3\",BL130,BP293*BP297)))","v":"No Pooling"},{"$f":"IF(BL128<>\"Yes\",\"No Pooling\",IF(OR(BL269=\"JurisSPM\",BL269=\"JurisSP\",BL269=\"JurisS\",BL269=\"JurisMix\"),CAPs!I298,IF(BL269<>\"CAP3\",BL130,BQ293*BQ297)))","v":"No Pooling"}]
[null,null,null,null,null,null,null,null,null,null,null,null,null,null,null,null,null,null,null,null,null,null,null,null,null,null,null,null,null,null,null,null,null,null,null,null,null,null,null,null,null,null,null,null,null,null,null,null,null,null,null,null,null,null,null,null,null,null,null,null,"","",""]
[null,null,null,null,null,null,null,null,null,null,null,null,null,null,null,null,null,null,null,null,null,null,null,null,null,null,null,null,null,null,null,null,null,null,null,null,null,null,null,null,null,null,null,null,null,null,null,null,null,null,null,null,null,null,null,null,null,null,null,null,400,"Un-recovered Pool Revenues","if CAP1r1110=\"No\", then \"No Pooling\"; else ",{"$f":"IF(BL128<>\"Yes\",\"No Pooling\",IF(BL269=\"CAP3\",BL268+BL295-BL298,IF(OR(BL269=\"JurisSPM\",BL269=\"JurisSP\",BL269=\"JurisS\",BL269=\"JurisMix\"),BL268+BL295-BL298-BL277,BL282-BL287)))","v":"No Pooling"},"      N/A","      N/A","      N/A","      N/A","      N/A"]
[null,null,null,null,null,null,null,null,null,null,null,null,null,null,null,null,null,null,null,null,null,null,null,null,null,null,null,null,null,null,null,null,null,null,null,null,null,null,null,null,null,null,null,null,null,null,null,null,null,null,null,null,null,null,null,null,null,null,null,null,"","","       if r105=\"CAP3\", then r100+r320-r350; "]
[null,null,null,null,null,null,null,null,null,null,null,null,null,null,null,null,null,null,null,null,null,null,null,null,null,null,null,null,null,null,null,null,null,null,null,null,null,null,null,null,null,null,null,null,null,null,null,null,null,null,null,null,null,null,null,null,null,null,null,null,"","","       if r105=\"Juris\", then r100+r320-r350-r140; "]
[null,null,null,null,null,null,null,null,null,null,null,null,null,null,null,null,null,null,null,null,null,null,null,null,null,null,null,null,null,null,null,null,null,null,null,null,null,null,null,null,null,null,null,null,null,null,null,null,null,null,null,null,null,null,null,null,null,null,null,null,"","","       else r160-r200"]
[]
[]
[null,null,null,null,null,null,null,null,null,null,null,null,null,null,null,null,null,null,null,null,null,null,null,null,null,null,null,null,null,null,null,null,null,null,null,null,null,null,null,null,null,null,null,null,null,null,null,null,null,null,null,null,null,null,null,null,null,null,null,null,"","",""]
[null,null,null,null,null,null,null,null,null,null,null,null,null,null,null,null,null,null,null,null,null,null,null,null,null,null,null,null,null,null,null,null,null,null,null,null,null,null,null,null,null,null,null,null,null,null,null,null,null,null,null,null,null,null,null,null,null,null,null,null,"","",""]
[null,null,null,null,null,null,null,null,null,null,null,null,null,null,null,null,null,null,null,null,null,null,null,null,null,null,null,null,null,null,null,null,null,null,null,null,null,null,null,null,null,null,null,null,null,null,null,null,null,null,null,null,null,null,null,null,null,null,null,null,"","",""]
[null,null,null,null,null,null,null,null,null,null,null,null,null,null,null,null,null,null,null,null,null,null,null,null,null,null,null,null,null,null,null,null,null,null,null,null,null,null,null,null,null,null,null,null,null,null,null,null,null,null,null,null,null,null,null,null,null,null,null,null,"","",""]
[null,null,null,null,null,null,null,null,null,null,null,null,null,null,null,null,null,null,null,null,null,null,null,null,null,null,null,null,null,null,null,null,null,null,null,null,null,null,null,null,null,null,null,null,null,null,null,null,null,null,null,null,null,null,null,null,null,null,null,null,"","",""]
[]
[null,null,null,null,null,null,null,null,null,null,null,null,null,null,null,null,"",""]
[null,null,null,null,null,null,null,null,null,null,null,null,null,null,null,null,"",""]
[null,null,null,null,null,null,null,null,null,null,null,null,null,null,null,null,"",""]
[null,null,null,null,null,null,null,null,null,null,null,null,null,null,null,null,null,null,null,null,null,null,null,null,null,null,null,null,null,null,null,null,null,null,null,null,null,null,null,null,null,null,null,null,null,null,null,null,null,"RTE-1",null,null,null,null,null,null,null,null,null,null,"CAP-5"]
[null,null,null,null,null,null,null,null,null,null,null,null,null,null,null,null,null,null,null,null,null,null,null,null,null,null,null,null,null,null,null,null,null,null,null,null,null,null,null,null,null,null,null,null,null,null,null,null,null,{"$f":"\"Filing Date:                \"&DATE","v":"Filing Date:                06/16/2020"},null,null,null,null,null,null,null,null,null,null,{"$f":"\"Filing Date:                \"&DATE","v":"Filing Date:                06/16/2020"},null,""]
[null,null,null,null,null,null,null,null,null,null,null,null,null,null,null,null,null,null,null,null,null,null,null,null,null,null,null,null,null,null,null,null,null,null,null,null,null,null,null,null,null,null,null,null,null,null,null,null,null,{"$f":"\"Filing Entity:               \"&COSA","v":"Filing Entity:               "},null,null,null,null,null,null,null,null,null,null,{"$f":"\"Filing Entity:               \"&COSA","v":"Filing Entity:               "},null,""]
[null,null,null,null,null,null,null,null,null,null,null,null,null,null,null,null,null,null,null,null,null,null,null,null,null,null,null,null,null,null,null,null,null,null,null,null,null,null,null,null,null,null,null,null,null,null,null,null,null,{"$f":"\"Transmittal Number:   \"&TRANSMITTAL","v":"Transmittal Number:   "},null,null,null,null,null,null,null,null,null,null,{"$f":"\"Transmittal Number:   \"&TRANSMITTAL","v":"Transmittal Number:   "},null,""]
[null,null,null,null,null,null,null,null,null,null,null,null,null,null,null,null,null,null,null,null,null,null,null,null,null,null,null,null,null,null,null,null,null,null,null,null,null,null,null,null,null,null,null,null,null,null,null,null,null,{"$f":"NAME","v":0},null,null,null,null,null,null,null,null,null,null,{"$f":"NAME","v":0},null,"Price Cap Tariff Review Plan"]
[null,null,null,null,null,null,null,null,null,null,null,null,null,null,null,null,null,null,null,null,null,null,null,null,null,null,null,null,null,null,null,null,null,null,null,null,null,null,null,null,null,null,null,null,null,null,null,null,null,"Page 6 of 6",null,null,null,null,"Price Caps Tariff Review Plan",null,null,null,null,null,"Page 1 of 1",null,"Verification of Recovered CMT Revenue"]
[null,null,null,null,null,null,null,null,null,null,null,null,null,null,null,null,null,null,null,null,null,null,null,null,null,null,null,null,null,null,null,null,null,null,null,null,null,null,null,null,null,null,null,null,null,null,null,null,null,null,null,null,null,null,"Special Access Basket",null,null,null,null,null,null,null,""]
[null,null,null,null,null,null,null,null,null,null,null,null,null,null,null,null,null,null,null,null,null,null,null,null,null,null,null,null,null,null,null,null,null,null,null,null,null,null,null,null,null,null,null,null,null,null,null,null,null,null,null,null,null,null,null,null,null,null,null,null,null,null,""]
[null,null,null,null,null,null,null,null,null,null,null,null,null,null,null,null,null,null,null,null,null,null,null,null,null,null,null,null,null,null,null,null,null,null,null,null,null,null,null,null,null,null,null,null,null,null,null,null,null,null,null,null,null,null,null,null,"BASE PERIOD","BASE PERIOD","BASE PERIOD",null,null,null,"","Total"]
[null,null,null,null,null,null,null,null,null,null,null,null,null,null,null,null,null,null,null,null,null,null,null,null,null,null,null,null,null,null,null,null,null,null,null,null,null,null,null,null,null,null,null,null,null,null,null,null,null,null,null,null,"BASE","RATES AT",null,null,"DEMAND x","DEMAND x","DEMAND x",null,null,null,"Source","(a)"]
[null,null,null,null,null,null,null,null,null,null,null,null,null,null,null,null,null,null,null,null,null,null,null,null,null,null,null,null,null,null,null,null,null,null,null,null,null,null,null,null,null,null,null,null,null,null,null,null,null,null,null,null,"PERIOD","10/1/19 PCI","CURRENT","PROPOSED","RATES AT 10/1/19","CURRENT","PROPOSED","INDEX ","","",""]
[null,null,null,null,null,null,null,null,null,null,null,null,null,null,null,null,null,null,null,null,null,null,null,null,null,null,null,null,null,null,null,null,null,null,null,null,null,null,null,null,null,null,null,null,null,null,null,null,null,null,null,null,"DEMAND","UPDATE","RATES","RATES","PCI UPDATE","RATES","RATES","RESULTS",100,"Maximum CMT Revenue","CAP1r600",{"$f":"CAPs!D326","v":0}]
[null,null,null,null,null,null,null,null,null,null,null,null,null,null,null,null,null,null,null,null,null,null,null,null,null,null,null,null,null,null,null,null,null,null,null,null,null,null,null,null,null,null,null,null,null,null,null,null,null,null,null,null,"-","-","-","-","-","-","-","-",110,"Total USAC Receipts","CAP1r660",{"$f":"CAPs!D327","v":0}]
[null,null,null,null,null,null,null,null,null,null,null,null,null,null,null,null,null,null,null,null,null,null,null,null,null,null,null,null,null,null,null,null,null,null,null,null,null,null,null,null,null,null,null,null,null,null,null,null,null,null,null,null,"(A)","(B)","(C)","(D)","(E)","(F)","(G)","(H)","","",""]
[null,null,null,null,null,null,null,null,null,null,null,null,null,null,null,null,null,null,null,null,null,null,null,null,null,null,null,null,null,null,null,null,null,null,null,null,null,null,null,null,null,null,null,null,null,null,null,null,null,"","High Cap & DDS Service Category",null,null,null,null,null,null,null,null,null,125,"Pooling Revenues","if CAP1r1110 = \"Yes\", CAP4r100",{"$f":"CAPs!D329","v":0}]
[null,null,null,null,null,null,null,null,null,null,null,null,null,null,null,null,null,null,null,null,null,null,null,null,null,null,null,null,null,null,null,null,null,null,null,null,null,null,null,null,null,null,null,null,null,null,null,null,null,null,"-",null,null,null,null,null,null,null,null,null,130,"Maximum Recoverable Revenue","r100 - r110 + r125",{"$f":"CAPs!D330","v":0}]
[null,null,null,null,null,null,null,null,null,null,null,null,null,null,null,null,null,null,null,null,null,null,null,null,null,null,null,null,null,null,null,null,null,null,null,null,null,null,null,null,null,null,null,null,null,null,null,null,null,"","DDS&Other Non-Zone - Special:",null,null,null,null,null,null,null,null,null,"","",""]
[null,null,null,null,null,null,null,null,null,null,null,null,null,null,null,null,null,null,null,null,null,null,null,null,null,null,null,null,null,null,null,null,null,null,null,null,null,null,null,null,null,null,null,null,null,null,null,null,null,4971,"DDS&Other SP Non-Zone Channel Term",null,"          N/A","          N/A","          N/A","          N/A",null,null,null,"    N/A",200,"Final Total Primary Res & SLB & LifeLine EU Revenue","if CAP1r1130 = \"CAP1\", CAP1r610",{"$f":"CAPs!D332","v":0}]
[null,null,null,null,null,null,null,null,null,null,null,null,null,null,null,null,null,null,null,null,null,null,null,null,null,null,null,null,null,null,null,null,null,null,null,null,null,null,null,null,null,null,null,null,null,null,null,null,null,4974,"DDS&Other SP Non-Zone Other",null,"          N/A","          N/A","          N/A","          N/A",null,null,null,"    N/A","","","if CAP1r1130 = \"CAP2\", CAP2r500"]
[null,null,null,null,null,null,null,null,null,null,null,null,null,null,null,null,null,null,null,null,null,null,null,null,null,null,null,null,null,null,null,null,null,null,null,null,null,null,null,null,null,null,null,null,null,null,null,null,null,"","",null,null,null,null,null,null,null,null,null,"","","if CAP1r1130 = \"CAP3\", CAP3r500"]
[null,null,null,null,null,null,null,null,null,null,null,null,null,null,null,null,null,null,null,null,null,null,null,null,null,null,null,null,null,null,null,null,null,null,null,null,null,null,null,null,null,null,null,null,null,null,null,null,null,4978,"Total DDS & Other SP NonZone",null,"          N/A","          N/A","          N/A","          N/A",{"$f":"SUM(BE332:BE333)","v":0},{"$f":"SUM(BF332:BF333)","v":0},{"$f":"SUM(BG332:BG333)","v":0},"    N/A","","","if CAP1r1130=\"Juris\",CAP1r1140+CAP2r500+CAP3r500"]
[null,null,null,null,null,null,null,null,null,null,null,null,null,null,null,null,null,null,null,null,null,null,null,null,null,null,null,null,null,null,null,null,null,null,null,null,null,null,null,null,null,null,null,null,null,null,null,null,null,"","",null,null,null,null,null,null,null,null,null,210,"Final Total NonPrim Res & BRI ISDN EU Revenue","if CAP1r1130 = \"CAP1\", CAP1r620",{"$f":"CAPs!D336","v":0}]
[null,null,null,null,null,null,null,null,null,null,null,null,null,null,null,null,null,null,null,null,null,null,null,null,null,null,null,null,null,null,null,null,null,null,null,null,null,null,null,null,null,null,null,null,null,null,null,null,null,4997,"TOTAL HC/DDS Service Category",null,"          N/A","          N/A","          N/A","          N/A",{"$f":"BE335+BE295+BE217","v":0},{"$f":"BF335+BF295+BF217","v":0},{"$f":"BG335+BG295+BG217","v":0},"    N/A","","","if CAP1r1130 = \"CAP2\", CAP2r510"]
[null,null,null,null,null,null,null,null,null,null,null,null,null,null,null,null,null,null,null,null,null,null,null,null,null,null,null,null,null,null,null,null,null,null,null,null,null,null,null,null,null,null,null,null,null,null,null,null,null,4998,"HC/DDS SBI",null,"          N/A","          N/A","          N/A","          N/A","          N/A","          N/A","          N/A",{"$f":"IF(AND(J27=0,BG337<>0),F27,IF(BF337=0,J27,J27*BG337/BF337))","v":0},"","","if CAP1r1130 = \"CAP3\", CAP3r510"]
[null,null,null,null,null,null,null,null,null,null,null,null,null,null,null,null,null,null,null,null,null,null,null,null,null,null,null,null,null,null,null,null,null,null,null,null,null,null,null,null,null,null,null,null,null,null,null,null,null,4999,"HC/DDS Upper SBI Limit",null,"          N/A","          N/A","          N/A","          N/A","          N/A","          N/A","          N/A",{"$f":"IF(AND(J27=0,BG337<>0),105,IF(L41=0,0,IF(BE337=0,M27*$W$54/L41*1.05,M27*$W$54/L41*1.05*(1+(SUM($AO$89:$AO$101)+BE337*IF(BE358=0,0,AO103/BE358))/BE337))))","v":0},"","","if CAP1r1130=\"Juris\",CAP1r1150+CAP2r510+CAP3r510"]
[null,null,null,null,null,null,null,null,null,null,null,null,null,null,null,null,null,null,null,null,null,null,null,null,null,null,null,null,null,null,null,null,null,null,null,null,null,null,null,null,null,null,null,null,null,null,null,null,null,null,null,null,null,null,null,null,null,null,null,null,220,"Final Total MLB, PRI ISDN, & Centrex EU Revenue","if CAP1r1110=\"Yes\"&:",{"$f":"CAPs!D340","v":0}]
[null,null,null,null,null,null,null,null,null,null,null,null,null,null,null,null,null,null,null,null,null,null,null,null,null,null,null,null,null,null,null,null,null,null,null,null,null,null,null,null,null,null,null,null,null,null,null,null,null,null,null,null,null,null,null,null,null,null,null,null,"","","      if CAP1r1130=\"CAP1\" or \"CAP2\", CAP4r155"]
[null,null,null,null,null,null,null,null,null,null,null,null,null,null,null,null,null,null,null,null,null,null,null,null,null,null,null,null,null,null,null,null,null,null,null,null,null,null,null,null,null,null,null,null,null,null,null,null,null,"","Wideband Service Category",null,null,null,null,null,null,null,null,null,"","","      if CAP1r1130=\"CAP3\", CAP4r350a"]
[null,null,null,null,null,null,null,null,null,null,null,null,null,null,null,null,null,null,null,null,null,null,null,null,null,null,null,null,null,null,null,null,null,null,null,null,null,null,null,null,null,null,null,null,null,null,null,null,null,"","-",null,null,null,null,null,null,null,null,null,"","","      if CAP1r1130=\"Juris\", CAP4(r155+r350a)"]
[null,null,null,null,null,null,null,null,null,null,null,null,null,null,null,null,null,null,null,null,null,null,null,null,null,null,null,null,null,null,null,null,null,null,null,null,null,null,null,null,null,null,null,null,null,null,null,null,null,"","Non-Zone WB:",null,null,null,null,null,null,null,null,null,"","","if CAP1r1110=\"No\"&:"]
[null,null,null,null,null,null,null,null,null,null,null,null,null,null,null,null,null,null,null,null,null,null,null,null,null,null,null,null,null,null,null,null,null,null,null,null,null,null,null,null,null,null,null,null,null,null,null,null,null,5171,"WB Channel Term",null,0,"          N/A","          N/A","          N/A",null,null,null,"    N/A","","","      if CAP1r1130=\"CAP1\", CAP1r630"]
[null,null,null,null,null,null,null,null,null,null,null,null,null,null,null,null,null,null,null,null,null,null,null,null,null,null,null,null,null,null,null,null,null,null,null,null,null,null,null,null,null,null,null,null,null,null,null,null,null,5174,"WB Other",null,"          N/A","          N/A","          N/A","          N/A",null,null,null,"    N/A","","","      if CAP1r1130=\"CAP2\", CAP2r520"]
[null,null,null,null,null,null,null,null,null,null,null,null,null,null,null,null,null,null,null,null,null,null,null,null,null,null,null,null,null,null,null,null,null,null,null,null,null,null,null,null,null,null,null,null,null,null,null,null,null,"","",null,null,null,null,null,null,null,null,null,"","","      if CAP1r1130=\"CAP3\", CAP3r520"]
[null,null,null,null,null,null,null,null,null,null,null,null,null,null,null,null,null,null,null,null,null,null,null,null,null,null,null,null,null,null,null,null,null,null,null,null,null,null,null,null,null,null,null,null,null,null,null,null,null,5178,"Total WB NonZone",null,"          N/A","          N/A","          N/A","          N/A",{"$f":"SUM(BE345:BE346)","v":0},{"$f":"SUM(BF345:BF346)","v":0},{"$f":"SUM(BG345:BG346)","v":0},"    N/A","","","      if CAP1r1130=\"Juris\", CAP1r1160+CAP2r520+CAP3r520"]
[null,null,null,null,null,null,null,null,null,null,null,null,null,null,null,null,null,null,null,null,null,null,null,null,null,null,null,null,null,null,null,null,null,null,null,null,null,null,null,null,null,null,null,null,null,null,null,null,null,"","",null,null,null,null,null,null,null,null,null,"","",""]
[null,null,null,null,null,null,null,null,null,null,null,null,null,null,null,null,null,null,null,null,null,null,null,null,null,null,null,null,null,null,null,null,null,null,null,null,null,null,null,null,null,null,null,null,null,null,null,null,null,5197,"Total Wideband Service Category",null,"          N/A","          N/A","          N/A","          N/A",{"$f":"BE348","v":0},{"$f":"BF348","v":0},{"$f":"BG348","v":0},"    N/A","","",""]
[null,null,null,null,null,null,null,null,null,null,null,null,null,null,null,null,null,null,null,null,null,null,null,null,null,null,null,null,null,null,null,null,null,null,null,null,null,null,null,null,null,null,null,null,null,null,null,null,null,5198,"Wideband SBI",null,"          N/A","          N/A","          N/A","          N/A","          N/A","          N/A","          N/A",{"$f":"IF(AND(J40=0,BG350<>0),F40,IF(BF350=0,J40,J40*BG350/BF350))","v":0},300,"Final Total EUCL Revenue","r200 + r210 + r220",{"$f":"BL332+BL336+BL340","v":0}]
[null,null,null,null,null,null,null,null,null,null,null,null,null,null,null,null,null,null,null,null,null,null,null,null,null,null,null,null,null,null,null,null,null,null,null,null,null,null,null,null,null,null,null,null,null,null,null,null,null,5199,"Wideband Upper SBI Limit",null,"          N/A","          N/A","          N/A","          N/A","          N/A","          N/A","          N/A",{"$f":"IF(AND(J40=0,BG350<>0),105,IF(L41=0,0,IF(BE350=0,M40*$W$54/L41*1.05,M40*$W$54/L41*1.05*(1+(SUM($AO$102:$AO$102)+BE350*IF(BE358=0,0,AO103/BE358))/BE350))))","v":0},310,"Final Total PICC Revenue","if CAP1r1110=\"Yes\"&CAP1r1130<>\"CAP3\", ",{"$f":"IF(AND(BL128=\"Yes\",BL130<>\"CAP3\"),BL289,BL109)","v":0}]
[null,null,null,null,null,null,null,null,null,null,null,null,null,null,null,null,null,null,null,null,null,null,null,null,null,null,null,null,null,null,null,null,null,null,null,null,null,null,null,null,null,null,null,null,null,null,null,null,null,"","",null,null,null,null,null,null,null,null,null,"","","     CAP4 r220; else CAP1r860"]
[null,null,null,null,null,null,null,null,null,null,null,null,null,null,null,null,null,null,null,null,null,null,null,null,null,null,null,null,null,null,null,null,null,null,null,null,null,null,null,null,null,null,null,null,null,null,null,null,null,"","",null,null,null,null,null,null,null,null,null,320,"Final Total CCL Revenue","CAP1r995",{"$f":"BL124","v":0}]
[null,null,null,null,null,null,null,null,null,null,null,null,null,null,null,null,null,null,null,null,null,null,null,null,null,null,null,null,null,null,null,null,null,null,null,null,null,null,null,null,null,null,null,null,null,null,null,null,null,"","",null,null,null,null,null,null,null,null,null,"","",""]
[null,null,null,null,null,null,null,null,null,null,null,null,null,null,null,null,null,null,null,null,null,null,null,null,null,null,null,null,null,null,null,null,null,null,null,null,null,null,null,null,null,null,null,null,null,null,null,null,null,"","",null,null,null,null,null,null,null,null,null,400,"Final Total Recovered Revenue","r300 + r310 + r320",{"$f":"SUM(BL351:BL354)","v":0}]
[null,null,null,null,null,null,null,null,null,null,null,null,null,null,null,null,null,null,null,null,null,null,null,null,null,null,null,null,null,null,null,null,null,null,null,null,null,null,null,null,null,null,null,null,null,null,null,null,null,"","",null,null,null,null,null,null,null,null,null,"","",""]
[null,null,null,null,null,null,null,null,null,null,null,null,null,null,null,null,null,null,null,null,null,null,null,null,null,null,null,null,null,null,null,null,null,null,null,null,null,null,null,null,null,null,null,null,null,null,null,null,null,5970,"Total Special Access Basket",null,"          N/A","          N/A","          N/A","          N/A",{"$f":"BE98+BE111+BE337+BE350","v":0},{"$f":"BF98+BF111+BF337+BF350","v":0},{"$f":"BG98+BG111+BG337+BG350","v":0},"    N/A",500,"Allowable Revenue Over-recovery/(Under-recovery)","r400-r130",{"$f":"ROUND(BL356-BL330,0)","v":0},{"$f":"IF(BL358>0,\"     Error:  Over-recovery. You must change some rates.\",IF(BL358<0,\"     You have under-recovered by this amount.\",\"     ok\"))","v":"     ok"}]
[null,null,null,null,null,null,null,null,null,null,null,null,null,null,null,null,null,null,null,null,null,null,null,null,null,null,null,null,null,null,null,null,null,null,null,null,null,null,null,null,null,null,null,null,null,null,null,null,null,"","",null,null,null,null,null,null,null,null,null,"","",""]
[null,null,null,null,null,null,null,null,null,null,null,null,null,null,null,null,null,null,null,null,null,null,null,null,null,null,null,null,null,null,null,null,null,null,null,null,null,null,null,null,null,null,null,null,null,null,null,null,null,5980,"Total Special Access API",null,"          N/A","          N/A","          N/A","          N/A","          N/A","          N/A","          N/A",{"$f":"IF(AND(I41=0,BG358<>0),E41,IF(BF358=0,I41,I41*BG358/BF358))","v":0},"","",""]
[null,null,null,null,null,null,null,null,null,null,null,null,null,null,null,null,null,null,null,null,null,null,null,null,null,null,null,null,null,null,null,null,null,null,null,null,null,null,null,null,null,null,null,null,null,null,null,null,null,5990,"Total Special Access PCI",null,"          N/A","          N/A","          N/A","          N/A","          N/A","          N/A","          N/A",{"$f":"$W$56","v":0},600,"Nonrecoverable from PICC and CCL","CAP1r950-CAP1r995",{"$f":"BL118-BL124","v":0}]
[null,null,null,null,null,null,null,null,null,null,null,null,null,null,null,null,null,null,null,null,null,null,null,null,null,null,null,null,null,null,null,null,null,null,null,null,null,null,null,null,null,null,null,null,null,null,null,null,null,null,null,null,null,null,null,null,null,null,null,null,605,"Annual Filing Non Recoverable Dollars ","if Annual filing = 0 else r600 - r610 from the Annual Filing"]
[null,null,null,null,null,null,null,null,null,null,null,null,null,null,null,null,null,null,null,null,null,null,null,null,null,null,null,null,null,null,null,null,null,null,null,null,null,null,null,null,null,null,null,null,null,null,null,null,null,null,null,null,null,null,null,null,null,null,null,null,610,"Recoverable from ARC (up to max exog costs for","Annual: if r600<=0,0,max(0,min(EXG1r160 colsB+H+J),r600)",{"$f":"IF(BL361<=0,0,MAX(0,MIN(BL361,AO29+AU29+AN44)))","v":0}]
[null,null,null,null,null,null,null,null,null,null,null,null,null,null,null,null,null,null,null,null,null,null,null,null,null,null,null,null,null,null,null,null,null,null,null,null,null,null,null,null,null,null,null,null,null,null,null,null,null,null,null,null,null,null,null,null,null,null,null,null,null,"Reg Fees, TRS, and NANPA)","Mid-Year Filing: Max(0,r600-r605)"]
[]
[]
[]
[]
[]
[]
[]
[]
[]
[]
[null,null,null,null,null,null,null,null,null,null,null,null,null,null,null,null,null,null,null,null,null,null,null,null,null,null,null,null,null,null,null,null,null,null,null,null,null,null,null,null,null,null,null,null,null,null,null,null,null,null,null,null,null,null,null,null,null,null,null,null,"FOOTNOTES"]
[null,null,null,null,null,null,null,null,null,null,null,null,null,null,null,null,null,null,null,null,null,null,null,null,null,null,null,null,null,null,null,null,null,null,null,null,null,null,null,null,null,null,null,null,null,null,null,null,null,null,null,null,null,null,null,null,null,null,null,null,{"$f":"\"Filing Date:                \"&DATE","v":"Filing Date:                06/16/2020"}]
[null,null,null,null,null,null,null,null,null,null,null,null,null,null,null,null,null,null,null,null,null,null,null,null,null,null,null,null,null,null,null,null,null,null,null,null,null,null,null,null,null,null,null,null,null,null,null,null,null,null,null,null,null,null,null,null,null,null,null,null,{"$f":"\"Filing Entity:               \"&COSA","v":"Filing Entity:               "}]
[null,null,null,null,null,null,null,null,null,null,null,null,null,null,null,null,null,null,null,null,null,null,null,null,null,null,null,null,null,null,null,null,null,null,null,null,null,null,null,null,null,null,null,null,null,null,null,null,null,null,null,null,null,null,null,null,null,null,null,null,{"$f":"\"Transmittal Number:   \"&TRANSMITTAL","v":"Transmittal Number:   "}]
[null,null,null,null,null,null,null,null,null,null,null,null,null,null,null,null,null,null,null,null,null,null,null,null,null,null,null,null,null,null,null,null,null,null,null,null,null,null,null,null,null,null,null,null,null,null,null,null,null,null,null,null,null,null,null,null,null,null,null,null,{"$f":"NAME","v":0}]
[null,null,null,null,null,null,null,null,null,null,null,null,null,null,null,null,null,null,null,null,null,null,null,null,null,null,null,null,null,null,null,null,null,null,null,null,null,null,null,null,null,null,null,null,null,null,null,null,null,null,null,null,null,null,null,null,null,null,null,null,"Page 1 of 1"]

{"sheet":"RTEs","index":1,"n_rows":74,"n_cols":20,"rows_kept":74,"cut":false,"hidden":false,"merged":[]}
[]
[]
["The Totals for all COSAs are in columns D through K"]
["in rows 15 through 74."]
[]
["COSAs with Jurisdictionally Separate SLCs, PICCs,"]
["and/or CCL are in rows 15 through 74 beginning in"]
["column M."]
[]
["Separate Exog Cost CMT ratios for split by above"]
["groupings, have values (not TOTAL) entered in rows 74."]
[]
[null,null,"Jurisdiction Number:",null,null,null,null,null,null,null,null,null,1]
[null,null,null,null,null,null,null,null,null,null,null,null,"Juris name"]
["RTE-1J",null,null,"TOTAL"]
[{"$f":"\"Filing Date:                \"&DATE","v":"Filing Date:                06/16/2020"}]
[{"$f":"\"Filing Entity:               \"&COSA","v":"Filing Entity:               "}]
[{"$f":"\"Transmittal Number:   \"&TRANSMITTAL","v":"Transmittal Number:   "}]
[{"$f":"NAME","v":0}]
["Page 1",null,null,null,null,"Price Cap Tariff Review Plan",null,null,null,null,null,null,null,null,"Price Cap Tariff Review Plan"]
[null,null,null,null,null,"Common Line Basket",null,null,null,null,null,null,null,null,"Common Line Basket"]
[]
[null,null,null,null,null,null,null,"BASE PERIOD","BASE PERIOD","BASE PERIOD",null,null,null,null,null,null,"BASE PERIOD","BASE PERIOD","BASE PERIOD"]
[null,null,null,"BASE","RATES AT",null,null,"DEMAND x","DEMAND x","DEMAND x",null,null,"BASE","RATES AT",null,null,"DEMAND x","DEMAND x","DEMAND x"]
[null,null,null,"PERIOD","RATES AT 10/1/19","CURRENT","PROPOSED","RATES AT 10/1/19","CURRENT","PROPOSED","INDEX ",null,"PERIOD","RATES AT 10/1/19","CURRENT","PROPOSED","RATES AT 10/1/19","CURRENT","PROPOSED","INDEX "]
[null,null,null,"DEMAND","UPDATE","RATES","RATES","PCI UPDATE","RATES","RATES","RESULTS",null,"DEMAND","UPDATE","RATES","RATES","PCI UPDATE","RATES","RATES","RESULTS"]
[null,null,"-","-","-","-","-","-","-","-","-",null,"-","-","-","-","-","-","-","-"]
["","End User Common Line (EUCL)",null,"(A)","(B)","(C)","(D)","(E)","(F)","(G)","(H)",null,"(A)","(B)","(C)","(D)","(E)","(F)","(G)","(H)"]
["","No Zone or Zone A:"]
[102,"Primary Res, Single Line Bus, Lifeline EUCL (1)",null,{"$f":"SUM(M30)","v":0},{"$f":"IF($D30=0,0,H30/$D30)","v":0},0,0,{"$f":"SUM(Q30)","v":0},0,0,"    N/A",null,null,null,null,null,{"$f":"M30*N30","v":0},{"$f":"M30*O30","v":0},{"$f":"M30*P30","v":0},"    N/A"]
[104,"NonPrimary Residence & BRI ISDN EUCL (1)",null,{"$f":"SUM(M31)","v":0},0,0,0,0,0,0,"    N/A",null,null,null,null,null,{"$f":"M31*N31","v":0},{"$f":"M31*O31","v":0},{"$f":"M31*P31","v":0},"    N/A"]
[106,"Multiline Bus, PRI ISDN, Centrex EUCL (1)",null,{"$f":"SUM(M32)","v":0},0,0,0,0,0,0,"    N/A",null,null,null,null,null,{"$f":"M32*N32","v":0},{"$f":"M32*O32","v":0},{"$f":"M32*P32","v":0},"    N/A"]
[108,"Special Access Surcharge",null,{"$f":"SUM(M33)","v":0},0,0,0,0,0,0,"    N/A",null,null,null,null,null,{"$f":"M33*N33","v":0},{"$f":"M33*O33","v":0},{"$f":"M33*P33","v":0},"    N/A"]
[109,"Other EUCL",null,"          N/A","          N/A","          N/A","          N/A",0,0,0,"    N/A",null,"          N/A","          N/A","          N/A","          N/A",null,null,null,"    N/A"]
["",""]
["","Zone B:"]
[112,"Primary Res, Single Line Bus, Lifeline EUCL (1)",null,{"$f":"SUM(M37)","v":0},{"$f":"IF($D37=0,0,H37/$D37)","v":0},0,0,{"$f":"SUM(Q37)","v":0},0,0,"    N/A",null,null,null,null,null,{"$f":"M37*N37","v":0},{"$f":"M37*O37","v":0},{"$f":"M37*P37","v":0},"    N/A"]
[114,"NonPrimary Residence & BRI ISDN EUCL (1)",null,{"$f":"SUM(M38)","v":0},0,0,0,0,0,0,"    N/A",null,null,null,null,null,{"$f":"M38*N38","v":0},{"$f":"M38*O38","v":0},{"$f":"M38*P38","v":0},"    N/A"]
[116,"Multiline Bus, PRI ISDN, Centrex EUCL (1)",null,{"$f":"SUM(M39)","v":0},0,0,0,0,0,0,"    N/A",null,null,null,null,null,{"$f":"M39*N39","v":0},{"$f":"M39*O39","v":0},{"$f":"M39*P39","v":0},"    N/A"]
["",""]
["","Zone C:"]
[122,"Primary Res, Single Line Bus, Lifeline EUCL (1)",null,{"$f":"SUM(M42)","v":0},{"$f":"IF($D42=0,0,H42/$D42)","v":0},0,0,{"$f":"SUM(Q42)","v":0},0,0,"    N/A",null,null,null,null,null,{"$f":"M42*N42","v":0},{"$f":"M42*O42","v":0},{"$f":"M42*P42","v":0},"    N/A"]
[124,"NonPrimary Residence & BRI ISDN EUCL (1)",null,{"$f":"SUM(M43)","v":0},0,0,0,0,0,0,"    N/A",null,null,null,null,null,{"$f":"M43*N43","v":0},{"$f":"M43*O43","v":0},{"$f":"M43*P43","v":0},"    N/A"]
[126,"Multiline Bus, PRI ISDN, Centrex EUCL (1)",null,{"$f":"SUM(M44)","v":0},0,0,0,0,0,0,"    N/A",null,null,null,null,null,{"$f":"M44*N44","v":0},{"$f":"M44*O44","v":0},{"$f":"M44*P44","v":0},"    N/A"]
["",""]
["","Zone D:"]
[132,"Primary Res, Single Line Bus, Lifeline EUCL (1)",null,{"$f":"SUM(M47)","v":0},{"$f":"IF($D47=0,0,H47/$D47)","v":0},0,0,{"$f":"SUM(Q47)","v":0},0,0,"    N/A",null,null,null,null,null,{"$f":"M47*N47","v":0},{"$f":"M47*O47","v":0},{"$f":"M47*P47","v":0},"    N/A"]
[134,"NonPrimary Residence & BRI ISDN EUCL (1)",null,{"$f":"SUM(M48)","v":0},0,0,0,0,0,0,"    N/A",null,null,null,null,null,{"$f":"M48*N48","v":0},{"$f":"M48*O48","v":0},{"$f":"M48*P48","v":0},"    N/A"]
[136,"Multiline Bus, PRI ISDN, Centrex EUCL (1)",null,{"$f":"SUM(M49)","v":0},0,0,0,0,0,0,"    N/A",null,null,null,null,null,{"$f":"M49*N49","v":0},{"$f":"M49*O49","v":0},{"$f":"M49*P49","v":0},"    N/A"]
["",""]
["","Zone - Other:"]
[142,"Primary Res, Single Line Bus, Lifeline EUCL (1)",null,{"$f":"SUM(M52)","v":0},{"$f":"IF($D52=0,0,H52/$D52)","v":0},0,0,{"$f":"SUM(Q52)","v":0},0,0,"    N/A",null,null,null,null,null,{"$f":"M52*N52","v":0},{"$f":"M52*O52","v":0},{"$f":"M52*P52","v":0},"    N/A"]
[144,"NonPrimary Residence & BRI ISDN EUCL (1)",null,{"$f":"SUM(M53)","v":0},0,0,0,0,0,0,"    N/A",null,null,null,null,null,{"$f":"M53*N53","v":0},{"$f":"M53*O53","v":0},{"$f":"M53*P53","v":0},"    N/A"]
[146,"Multiline Bus, PRI ISDN, Centrex EUCL (1)",null,{"$f":"SUM(M54)","v":0},0,0,0,0,0,0,"    N/A",null,null,null,null,null,{"$f":"M54*N54","v":0},{"$f":"M54*O54","v":0},{"$f":"M54*P54","v":0},"    N/A"]
["",""]
["","Presubscribed Interexchange Carrier Charge (PICC)"]
[]
[]
[155,"Multiline Business & PRI ISDN PICC           (1)",null,{"$f":"SUM(M59)","v":0},{"$f":"IF($D59=0,0,H59/$D59)","v":0},{"$f":"IF($D59=0,0,I59/$D59)","v":0},{"$f":"IF($D59=0,0,J59/$D59)","v":0},{"$f":"SUM(Q59)","v":0},0,0,"    N/A",null,null,null,null,null,{"$f":"M59*N59","v":0},{"$f":"M59*O59","v":0},{"$f":"M59*P59","v":0},"    N/A"]
[157,"Business Centrex PICC",null,{"$f":"SUM(M60)","v":0},"          N/A","          N/A","          N/A",0,0,0,"    N/A",null,null,"          N/A","          N/A","          N/A",null,null,null,"    N/A"]
["",""]
["","Carrier Common Line"]
[161,"Terminating CCL Prem.",null,{"$f":"SUM(M63)","v":0},{"$f":"IF($D63=0,0,H63/$D63)","v":0},0,0,{"$f":"SUM(Q63)","v":0},0,0,"    N/A",null,null,null,null,null,{"$f":"M63*N63","v":0},{"$f":"M63*O63","v":0},{"$f":"M63*P63","v":0},"    N/A"]
[163,"Terminating CCL Non-Prem.",null,{"$f":"SUM(M64)","v":0},0,0,0,0,0,0,"    N/A",null,null,null,null,null,{"$f":"M64*N64","v":0},{"$f":"M64*O64","v":0},{"$f":"M64*P64","v":0},"    N/A"]
[165,"Originating CCL Prem.",null,{"$f":"SUM(M65)","v":0},0,0,0,0,0,0,"    N/A",null,null,null,null,null,{"$f":"M65*N65","v":0},{"$f":"M65*O65","v":0},{"$f":"M65*P65","v":0},"    N/A"]
[167,"Originating CCL Non-Prem.",null,{"$f":"SUM(M66)","v":0},0,0,0,0,0,0,"    N/A",null,null,null,null,null,{"$f":"M66*N66","v":0},{"$f":"M66*O66","v":0},{"$f":"M66*P66","v":0},"    N/A"]
[]
["",""]
[180,"Other Common Line",null,"          N/A","          N/A","          N/A","          N/A",{"$f":"SUM(Q69)","v":0},{"$f":"SUM(R69,AA69,AJ69,AS69,BB69,BK69,BT69,CC69,CL69,CU69,DD69,DM69,DV69,EE69,EN69,EW69,FF69,FO69)","v":0},0,"    N/A",null,"          N/A","          N/A","          N/A","          N/A",null,null,null,"    N/A"]
[185,"USAC Receipts",null,{"$f":"SUM(M70)","v":0},{"$f":"IF($D70=0,0,H70/$D70)","v":0},{"$f":"IF($D70=0,0,I70/$D70)","v":0},{"$f":"IF($D70=0,0,J70/$D70)","v":0},{"$f":"SUM(Q70)","v":0},0,0,"    N/A",null,null,null,null,null,{"$f":"M70*N70","v":0},{"$f":"M70*O70","v":0},{"$f":"M70*P70","v":0},"    N/A"]
["","Per Minute Revenues",null,null,null,null,null,0,0,0,"    N/A",null,null,null,null,null,{"$f":"SUM(Q63:Q66)","v":0},{"$f":"SUM(R63:R66)","v":0},{"$f":"SUM(S63:S66)","v":0},"    N/A"]
[190,"Total Basket",null,"          N/A","          N/A","          N/A","          N/A",0,0,0,"    N/A",null,"          N/A","          N/A","          N/A","          N/A",{"$f":"SUM(Q30:Q54)+Q59+Q60+SUM(Q62:Q66)+Q69+Q70","v":0},{"$f":"SUM(R30:R54)+R59+R60+SUM(R62:R66)+R69+R70","v":0},{"$f":"SUM(S30:S54)+S59+S60+SUM(S62:S66)+S69+S70","v":0},"    N/A"]
["",""]
["CL ExogCosts (non-ATS Trgtng): enter $ by juris or \"Total\"",null,null,"Total"]

{"sheet":"CAPs","index":2,"n_rows":407,"n_cols":18,"rows_kept":407,"cut":false,"hidden":false,"merged":[]}
[]
[]
["The Totals for all COSAs are in columns D through K"]
["in rows 15 through 374."]
[]
["COSAs with Jurisdictionally Separate SLCs, PICCs,"]
["and/or CCL are in rows 15 through 374 beginning in"]
["column M."]
[]
["The ANALYZER for each COSA is in lines 375 through 415."]
[]
[]
[null,null,"Jurisdiction Number:",null,null,null,null,null,null,null,null,null,1]
[null,null,null,null,null,null,null,null,null,null,null,null,"Juris name"]
["CAP-1J",null,null,"Total "]
[{"$f":"\"Filing Date:                \"&DATE","v":"Filing Date:                06/16/2020"}]
[{"$f":"\"Filing Entity:               \"&COSA","v":"Filing Entity:               "}]
[{"$f":"\"Transmittal Number:   \"&TRANSMITTAL","v":"Transmittal Number:   "}]
[{"$f":"NAME","v":0}]
["Page 1 of 2",null,"","Price Cap Tariff Review Plan",null,null,null,null,null,null,null,null,"Price Cap Tariff Review Plan"]
[null,null,"","Calculation of EUCL Limits, PICC Rate and CCL Rates",null,null,null,null,null,null,null,null,"Calculation of EUCL Limits, PICC Rate and CCL Rates"]
[]
[null,null,null,"Total","No Zone / Zone A","Zone B","Zone C","Zone D","Other Zone",null,null,null,"Total Jurisdiction","No Zone / Zone A","Zone B","Zone C","Zone D","Other Zone"]
[null,null,"Source","(a)","(b)","(c)","(d)","(e)","(f)",null,null,null,"(a)","(b)","(c)","(d)","(e)","(f)"]
[null,"EUCL Demand Inputs",""]
[100,"Total Primary Res & SLB & LifeLine Lines","RTE1: b:r102a;c:r112a;d:r122a;e:r132a;f:r142a",{"$f":"SUM(M26)","v":0},0,0,0,0,0,null,null,null,{"$f":"SUM(N26:R26)","v":0},{"$f":"RTEs!M30","v":0},{"$f":"RTEs!M37","v":0},{"$f":"RTEs!M42","v":0},{"$f":"RTEs!M47","v":0},{"$f":"RTEs!M52","v":0}]
[110,"Total NonPrim Res & BRI ISDN Lines","RTE1: b:r104a;c:r114a;d:r124a;e:r134a;f:r144a",0,0,0,0,0,0,null,null,null,{"$f":"SUM(N27:R27)","v":0},{"$f":"RTEs!M31","v":0},{"$f":"RTEs!M38","v":0},{"$f":"RTEs!M43","v":0},{"$f":"RTEs!M48","v":0},{"$f":"RTEs!M53","v":0}]
[120,"Total MLB&PRI ISDN (include PRI * 5, & Include Centrex)","RTE1: b:r106a;c:r116a;d:r126a;e:r136a;f:r146a",0,0,0,0,0,0,null,null,null,{"$f":"SUM(N28:R28)","v":0},{"$f":"RTEs!M32","v":0},{"$f":"RTEs!M39","v":0},{"$f":"RTEs!M44","v":0},{"$f":"RTEs!M49","v":0},{"$f":"RTEs!M54","v":0}]
[130,"Total Local Exchange Lines","r100+r110+r120",0,0,0,0,0,0,null,null,null,{"$f":"SUM(N29:R29)","v":0},{"$f":"SUM(N26:N28)","v":0},{"$f":"SUM(O26:O28)","v":0},{"$f":"SUM(P26:P28)","v":0},{"$f":"SUM(Q26:Q28)","v":0},{"$f":"SUM(R26:R28)","v":0}]
[null,null,""]
[null,"PICC Demand Inputs",""]
[200,"Total MLB&PRI ISDN (include PRI * 5, & exclude Centrex)","RTE1r155a",{"$f":"SUM(M32)","v":0},null,null,null,null,null,null,null,null,{"$f":"RTEs!M59","v":0},"      N/A","      N/A","      N/A","      N/A","      N/A"]
[210,"Total Business Centrex Lines in groups with 9 or more lines","Input",{"$f":"SUM(M33)","v":0},null,null,null,null,null,null,null,null,null,"      N/A","      N/A","      N/A","      N/A","      N/A"]
[220,"Total Business Groups with less than 9 lines in the group","Input",{"$f":"SUM(M34)","v":0},null,null,null,null,null,null,null,null,null,"      N/A","      N/A","      N/A","      N/A","      N/A"]
[null,null,""]
[null,null,""]
[null,"MOU Demand Inputs",""]
[300,"Total Terminating Premium MOU","RTE1r161a",{"$f":"SUM(M38)","v":0},null,null,null,null,null,null,null,null,{"$f":"RTEs!M63","v":0},"      N/A","      N/A","      N/A","      N/A","      N/A"]
[310,"Total Terminating Non-Premium MOU","RTE1r163a",0,null,null,null,null,null,null,null,null,{"$f":"RTEs!M64","v":0},"      N/A","      N/A","      N/A","      N/A","      N/A"]
[320,"Total Terminating Chargeable MOU","r300+.45*r310",0,null,null,null,null,null,null,null,null,{"$f":"M38+0.45*M39","v":0},"      N/A","      N/A","      N/A","      N/A","      N/A"]
[330,"Total Originating Premium MOU","RTE1r165a",0,null,null,null,null,null,null,null,null,{"$f":"RTEs!M65","v":0},"      N/A","      N/A","      N/A","      N/A","      N/A"]
[340,"Total Originating Non-Premium MOU","RTE1r167a",0,null,null,null,null,null,null,null,null,{"$f":"RTEs!M66","v":0},"      N/A","      N/A","      N/A","      N/A","      N/A"]
[350,"Total Originating Chargeable MOU","r330+.45*r340",0,null,null,null,null,null,null,null,null,{"$f":"M41+0.45*M42","v":0},"      N/A","      N/A","      N/A","      N/A","      N/A"]
[null,null,""]
[null,"SLC/PICC Caps",""]
[400,"PR, Lifeline & SLB EU Cap","Input",6.5,null,null,null,null,null,null,null,null,null,"      N/A","      N/A","      N/A","      N/A","      N/A"]
[410,"NonPrimary Res & BRI EU Cap","Input",7,null,null,null,null,null,null,null,null,null,"      N/A","      N/A","      N/A","      N/A","      N/A"]
[420,"MLB, PRI & Centrex EU Cap","Input",9.1999999999999993,null,null,null,null,null,null,null,null,null,"      N/A","      N/A","      N/A","      N/A","      N/A"]
[430,"MLB PICC Rate as of Dec. 29, 2011","Input",0,null,null,null,null,null,null,null,null,null,"      N/A","      N/A","      N/A","      N/A","      N/A"]
[null,null,""]
[null,"CMT Revenue",""]
[440,"Current MaxCMT Rev per Line (from previous filing)","Input (r460 from prev filing)",{"$f":"IF(D29=0,0,(SUMPRODUCT(M52,M29))/D29)","v":0},null,null,null,null,null,null,null,null,null,"      N/A","      N/A","      N/A","      N/A","      N/A"]
[null,null,""]
[null,null,""]
[null,null,""]
[450,"Total CMT Exogenous Cost Factor ((R+deltaZ)/R)","((EXG1r160s/r130a)/r440a)+1",{"$f":"IF(OR(D29=0,D52=0),0,IF(RTEs!D74=\"Total\",A!$BL$56,(((RTEs!D74)/D29)/D52)+1))","v":0},null,null,null,null,null,null,null,null,{"$f":"IF(OR(M29=0,M52=0),0,IF(RTEs!M74=\"Total\",A!$BL56,(((RTEs!M74)/M29)/M52)+1))","v":0},"      N/A","      N/A","      N/A","      N/A","      N/A"]
[null,null,""]
[460,"Proposed Maximum CMT Revenue Per Line","r440*r450",{"$f":"D52*D56","v":0},null,null,null,null,null,null,null,null,{"$f":"M52*M56","v":0},"      N/A","      N/A","      N/A","      N/A","      N/A"]
[null,null,""]
[]
[]
[]
[]
[]
[]
[]
[]
[null,null,""]
[null,null,""]
[null,null,""]
[null,null,""]
[null,null,""]
[null,null,""]
[null,null,""]
["CAP-1J",null,null,"Total ",null,null,null,null,null,null,null,null,{"$f":"M15","v":0}]
[{"$f":"\"Filing Date:                \"&DATE","v":"Filing Date:                06/16/2020"}]
[{"$f":"\"Filing Entity:               \"&COSA","v":"Filing Entity:               "}]
[{"$f":"\"Transmittal Number:   \"&TRANSMITTAL","v":"Transmittal Number:   "},null,null,"",null,null,null,null,null,null,null,null,""]
[{"$f":"NAME","v":0}]
["Page 2 of 2",null,null,"Price Cap Tariff Review Plan",null,null,null,null,null,null,null,null,"Price Cap Tariff Review Plan"]
[null,null,null,"Calculation of EUCL Limits, PICC Rate and CCL Rates",null,null,null,null,null,null,null,null,"Calculation of EUCL Limits, PICC Rate and CCL Rates"]
[]
[null,null,null,"Total","No Zone / Zone A","Zone B","Zone C","Zone D","Other Zone",null,null,null,"Total Jurisdiction","No Zone / Zone A","Zone B","Zone C","Zone D","Other Zone"]
["",null,"Source","(a)","(b)","(c)","(d)","(e)","(f)",null,null,null,"(a)","(b)","(c)","(d)","(e)","(f)"]
[null,"CMT Revenue Vs EU Revenue at Max. Allowable Rates"]
[600,"Proposed Maximum CMT Revenue","r460 * r130",{"$f":"SUM(M86)","v":0},null,null,null,null,null,null,null,null,{"$f":"M58*M29","v":0},"      N/A","      N/A","      N/A","      N/A","      N/A"]
[610,"Maximum Allowable PR, Lifeline & SLB EU Revenue","r400 * r100",0,null,null,null,null,null,null,null,null,{"$f":"M46*M26","v":0},"      N/A","      N/A","      N/A","      N/A","      N/A"]
[620,"Maximum Allowable NonPrimary Res & BRI EU Revenue","r410 * r110",0,null,null,null,null,null,null,null,null,{"$f":"M47*M27","v":0},"      N/A","      N/A","      N/A","      N/A","      N/A"]
[630,"Maximum Allowable MLB, PRI & Centrex EU Revenue","r420 * r120",0,null,null,null,null,null,null,null,null,{"$f":"M48*M28","v":0},"      N/A","      N/A","      N/A","      N/A","      N/A"]
[640,"Total Maximum Allowable EU Revenue","r610 + r620 + r630",0,null,null,null,null,null,null,null,null,{"$f":"SUM(M87:M89)","v":0},"      N/A","      N/A","      N/A","      N/A","      N/A"]
[650,"Remaining CMT Revenue/(CMT Over-recovery)","r600 - r640",0,null,null,null,null,null,null,null,null,{"$f":"M86-M90","v":0},"      N/A","      N/A","      N/A","      N/A","      N/A"]
[652,"Maximum Allowable PICC Revenue","r430*( r200+r210/9+r220 )",0,null,null,null,null,null,null,null,null,{"$f":"M49*(M32+M33/9+M34)","v":0},"      N/A","      N/A","      N/A","      N/A","      N/A"]
[660,"Total USAC Receipts (at t)","RTE1r185f",0,null,null,null,null,null,null,null,null,{"$f":"RTEs!S70","v":0},"      N/A","      N/A","      N/A","      N/A","      N/A"]
[null,null,""]
[null,null,""]
[null,null,""]
[null,null,""]
[null,null,""]
[680,"Remaining Recoverable Revenue/(Total over-recovery)","r650-r660",{"$f":"ROUND(SUMIF(M99,\">0\",M99),0)","v":0},null,null,null,null,null,null,null,null,{"$f":"ROUND(+M91-M93,2)","v":0},"      N/A","      N/A","      N/A","      N/A","      N/A"]
[null,null,""]
[]
[null,"Calculation of PICC for MultiLine Business, PRI ISDN, & Centrex Lines"]
[800,"MLB, PRI & Centrex PICC Rate (Dec. 29, 2011)","r430",{"$f":"D49","v":0},null,null,null,null,null,null,null,null,{"$f":"IF(A!$G$7=\"n\",\"Agg.Rate\",+M49)","v":0},"      N/A","      N/A","      N/A","      N/A","      N/A"]
[810,"MLB, PRI & Centrex PICC Revenue Target","if r680>0 then r680 else 0",{"$f":"IF(A!$G$7=\"n\",D99,IF(A!$G$7=\"y\",SUM(M104),\"\"))","v":""},null,null,null,null,null,null,null,null,{"$f":"IF(A!$G$7=\"n\",\"Agg.Rate\",IF(M99>0,M99,0))","v":0},"      N/A","      N/A","      N/A","      N/A","      N/A"]
[820,"MLB, PRI & Centrex PICC Target Rate","r810 / (r200 + r210/9 + r220)",{"$f":"IF((D32+D33+D34)<>0,+D104/(D32+D33/9+D34),0)","v":0},null,null,null,null,null,null,null,null,{"$f":"IF(A!$G$7=\"n\",\"Agg.Rate\",IF((M32+M33+M34)<>0,+M104/(M32+M33/9+M34),0))","v":0},"      N/A","      N/A","      N/A","      N/A","      N/A"]
[830,"Maximum Average MLB, PRI & Centrex PICC Rate","Min(r800,r820)",{"$f":"MIN(D103,D105)","v":0},null,null,null,null,null,null,null,null,{"$f":"IF(A!$G$7=\"n\",\"Agg.Rate\",MIN(M103,M105))","v":0},"      N/A","      N/A","      N/A","      N/A","      N/A"]
[840,"Maximum MLB & PRI PICC Revenue","r830 * r200",{"$f":"SUM(M107)","v":0},null,null,{"$f":"IF(AND(A!$G$10=\"n\",A!$G$7=\"n\"),D106*D32,SUM(M107))","v":0},null,null,null,null,null,{"$f":"IF(A!$G$7=\"n\",\"Agg.Rate\",+M106*M32)","v":0},"      N/A","      N/A","      N/A","      N/A","      N/A"]
[850,"Maximum Centrex PICC Revenue","r830 * (r210/9 + r220)",{"$f":"SUM(M108)","v":0},null,null,{"$f":"IF(AND(A!$G$10=\"n\",A!$G$7=\"n\"),D106*(D33/9+D34),SUM(M108))","v":0},null,null,null,null,null,{"$f":"IF(A!$G$7=\"n\",\"Agg.Rate\",+M106*(M33/9+M34))","v":0},"      N/A","      N/A","      N/A","      N/A","      N/A"]
[860,"Total Maximum PICC Revenue (Proposed)","r840 + r850",{"$f":"D107+D108","v":0},null,null,{"$f":"IF(A!$G$7=\"n\",D107+D108,SUM(M109))","v":0},null,null,null,null,null,{"$f":"IF(A!$G$7=\"n\",\"Agg.Rate\",+M107+M108)","v":0},"      N/A","      N/A","      N/A","      N/A","      N/A"]
[null,null,""]
[null,"Calculation of CCL Rates and Revenue",""]
[null,null,""]
[null,null,""]
[null,null,""]
[null,null,""]
[940,"Prem. Originating MOU Rate as of Dec. 29, 2011","Input",{"$f":"IF(D41=0,0,SUMPRODUCT(M116,M41)/D41)","v":0},null,null,null,null,null,null,null,null,null,"      N/A","      N/A","      N/A","      N/A","      N/A"]
[945,"Prem. Terminating MOU Rate as of Dec. 29, 2011","Input",{"$f":"IF(D38=0,0,SUMPRODUCT(M117,M38)/D38)","v":0},null,null,null,null,null,null,null,null,null,"      N/A","      N/A","      N/A","      N/A","      N/A"]
[950,"Maximum CCL Revenue","r810 - r860",{"$f":"SUMIF(M118,\">=0\",M118)","v":0},null,null,null,null,null,null,null,null,{"$f":"IF(OR(A!$G$7=\"n\",A!$G$8=\"n\"),\"Agg.Rate\",+M104-M109)","v":0},"      N/A","      N/A","      N/A","      N/A","      N/A"]
[960,"Maximum CCL Originating Rate","Min(r940, r950/r350)",{"$f":"IF(D43=0,0,MIN(D116,D118/D43))","v":0},null,null,null,null,null,null,null,null,{"$f":"IF(OR(A!$G$7=\"n\",A!$G$8=\"n\"),\"Agg.Rate\",MIN(M116,IF(M43=0,0,M118/M43)))","v":0},"      N/A","      N/A","      N/A","      N/A","      N/A"]
[970,"Maximum CCL Terminating Rate","Min(r945,(r950 - (r350*r960))/r320)",{"$f":"MIN(D117,IF(D40=0,0,(D118-(D43*D119))/D40))","v":0},null,null,null,null,null,null,null,null,{"$f":"IF(OR(A!$G$7=\"n\",A!$G$8=\"n\"),\"Agg.Rate\",MIN(M117,IF(M40=0,0,(M118-(M43*M119))/M40)))","v":0},"      N/A","      N/A","      N/A","      N/A","      N/A"]
[null,null,""]
[980,"Maximum Originating CCL Revenue","r960 * r350",{"$f":"SUMIF(M122,\">=0\",M122)","v":0},null,null,null,null,null,null,null,null,{"$f":"IF(OR(A!$G$7=\"n\",A!$G$8=\"n\"),\"Agg.Rate\",+M119*M43)","v":0},"      N/A","      N/A","      N/A","      N/A","      N/A"]
[990,"Maximum Terminating CCL Revenue","r970 * r320",{"$f":"SUMIF(M123,\">=0\",M123)","v":0},null,null,null,null,null,null,null,null,{"$f":"IF(OR(A!$G$7=\"n\",A!$G$8=\"n\"),\"Agg.Rate\",+M120*M40)","v":0},"      N/A","      N/A","      N/A","      N/A","      N/A"]
[995,"Total Maximum CCL Revenue","r980 + r990",{"$f":"SUMIF(M124,\">=0\",M124)","v":0},null,null,null,null,null,null,null,null,{"$f":"IF(OR(A!$G$7=\"n\",A!$G$8=\"n\"),\"Agg.Rate\",+M122+M123)","v":0},"      N/A","      N/A","      N/A","      N/A","      N/A"]
[]
[null,"EU Pricing Decision",""]
[1100,"Is Deaveraging of EUCL Rates Possible?","if r680>0,\"No\",\"Yes\"",null,null,null,null,null,null,null,null,null,{"$f":"IF(M99>0,\"NO\",\"YES\")","v":"YES"},"      N/A","      N/A","      N/A","      N/A","      N/A"]
[1110,"Do you have Pooling Revenues?","from A sheet, CAP1r1110",null,null,null,null,null,null,null,null,null,{"$f":"A!$BL$128","v":"No"},"      N/A","      N/A","      N/A","      N/A","      N/A"]
[1120,"Are you going to deaverage EUCL Rates by zone?","Input (If r1100 = \"No\" you must input \"No\")",null,null,null,null,null,null,null,null,null,null,"      N/A","      N/A","      N/A","      N/A","      N/A"]
[1130,"CAP Form containing final EUCL Rates","if r680>0,CAP1; if r1120=No,CAP2; elseCAP3",null,null,null,null,null,null,null,null,null,{"$f":"IF(M86=0,\"\",IF(A!$G$7=\"n\",IF(M99>0,\"CAP1\",\"CAP2\"),IF(M99>0,\"CAP1\",IF(M129=\"no\",\"CAP2\",\"CAP3\"))))","v":""},"      N/A","      N/A","      N/A","      N/A","      N/A"]
[null,null,""]
[1140,"Max. Allowable PR, Lifeline & SLB EU Revenue","if r1130=CAP1,r610;else1130",{"$f":"SUM(M132)","v":0},null,null,null,null,null,null,null,null,{"$f":"IF(OR(A!$G$6=\"n\",M86=0),\"\",IF(A!$BL$130=\"cap1\",IF(M130=\"cap1\",M87,IF(M130=\"cap2\",M162,M247)),IF(AND((OR(A!$BL$130=\"jurisspm\",A!$BL$130=\"jurissp\",A!$BL$130=\"juriss\",A!$BL$130=\"jurismix\")),M130=\"cap1\"),M87,M130)))","v":""},"      N/A","      N/A","      N/A","      N/A","      N/A"]
[1150,"Max. Allowable NonPrimary Res & BRI EU Revenue","if r1130=CAP1,r620;else1130",{"$f":"SUM(M133)","v":0},null,null,null,null,null,null,null,null,{"$f":"IF(OR(A!$G$6=\"n\",M86=0),\"\",IF(A!$BL$130=\"cap1\",IF(M130=\"cap1\",M88,IF(M130=\"cap2\",M163,M248)),IF(AND((OR(A!$BL$130=\"jurisspm\",A!$BL$130=\"jurissp\",A!$BL$130=\"juriss\",A!$BL$130=\"jurismix\")),M130=\"cap1\"),M88,M130)))","v":""},"      N/A","      N/A","      N/A","      N/A","      N/A"]
[1160,"Max. Allowable MLB, PRI & Centrex EU Revenue","if r1130=CAP1,r630;else1130",{"$f":"SUM(M134)","v":0},null,null,null,null,null,null,null,null,{"$f":"IF(OR(A!$G$6=\"n\",M86=0),\"\",IF(A!$BL$130=\"cap1\",IF(M130=\"cap1\",M89,IF(M130=\"cap2\",M164,M249)),IF(AND((OR(A!$BL$130=\"jurisspm\",A!$BL$130=\"jurissp\",A!$BL$130=\"juriss\",A!$BL$130=\"jurismix\")),M130=\"cap1\"),M89,M130)))","v":""},"      N/A","      N/A","      N/A","      N/A","      N/A"]
["CAP-2J",null,null,"Total",null,null,null,null,null,null,null,null,{"$f":"M15","v":0}]
[{"$f":"\"Filing Date:                \"&DATE","v":"Filing Date:                06/16/2020"}]
[{"$f":"\"Filing Entity:               \"&COSA","v":"Filing Entity:               "}]
[{"$f":"\"Transmittal Number:   \"&TRANSMITTAL","v":"Transmittal Number:   "},null,null,"",null,null,null,null,null,null,null,null,""]
[{"$f":"NAME","v":0}]
["Page 1 of 1",null,null,"Price Cap Tariff Review Plan",null,null,null,null,null,null,null,null,"Price Cap Tariff Review Plan"]
[null,null,null,"Manual Input of EUCL Rates - No PICC or MOU Rates",null,null,null,null,null,null,null,null,"Manual Input of EUCL Rates - No PICC or MOU Rates"]
[]
[null,null,null,"Total",null,null,null,null,null,null,null,null,"Total Jurisdiction"]
["",null,"Source","(a)",null,null,null,null,null,null,null,null,"(a)"]
[null,"Calculation of Maximum Recoverable Revenue","For all rows: if CAP1r1130=\"CAP2\", use sourcing; if Juris Pricing, enter Sum of CAP2-priced Juris where indicated; else CAP1r1130."]
[100,"Maximum CMT Revenue","CAP1r600",{"$f":"SUM(M146)","v":0},null,null,null,null,null,null,null,null,{"$f":"IF(M130=\"CAP2\",M86,M130)","v":""}]
[110,"Total USAC Receipts (at t)","CAP1r660",{"$f":"SUM(M147)","v":0},null,null,null,null,null,null,null,null,{"$f":"IF(M130=\"CAP2\",M93,M130)","v":""}]
[]
[130,"Maximum Recoverable Revenue","r100 - r110",{"$f":"SUM(M149)","v":0},null,null,null,null,null,null,null,null,{"$f":"IF(M130=\"CAP2\",M146-M147,M130)","v":""}]
[null,null,""]
[null,"Maximum Allowable EU Rates",""]
[200,"Max. Allowable Primary Res, Lifeline, & SLB EU Rate","CAP1r400 if CAP1r1130=CAP2",null,null,null,null,null,null,null,null,null,{"$f":"IF(M130=\"CAP2\",M46,M130)","v":""}]
[210,"Max. Allowable NonPrimary Res & BRI ISDN EU Rate","CAP1r410 if CAP1r1130=CAP2",null,null,null,null,null,null,null,null,null,{"$f":"IF(M130=\"CAP2\",M47,M130)","v":""}]
[220,"Max. Allowable MLB, PRI ISDN, & Centrex EU Rate","CAP1r420 if CAP1r1130=CAP2",null,null,null,null,null,null,null,null,null,{"$f":"IF(M130=\"CAP2\",M48,M130)","v":""}]
[null,null,""]
[null,"Final EU Rates (Manually Input)",""]
[400,"Final Primary Res, Lifeline, & SLB EU Rate","Input ",null,null,null,null,null,null,null,null,null,null,{"$f":"IF(ROUND(N(M157)-N(M152),6)>0,\"     Error:  Exceeded maximum allowable rate\",\"     ok\")","v":"     ok"}]
[410,"Final NonPrim Res & BRI ISDN EU Rate","Input ",null,null,null,null,null,null,null,null,null,null,{"$f":"IF(ROUND(N(M158)-N(M153),6)>0,\"     Error:  Exceeded maximum allowable rate\",IF(ROUND(N(M158)-N(M157),6)<0,\"     Error:  NPR rate less than PR rate\",\"     ok\"))","v":"     ok"}]
[420,"Final MLB, PRI ISDN, & Centrex EU Rate","Input ",null,null,null,null,null,null,null,null,null,null,{"$f":"IF(ROUND(N(M159)-N(M154),6)>0,\"     Error:  Exceeded maximum allowable rate\",IF(ROUND(N(M159)-N(M158),6)<0,\"     Error:  MLB rate less than NPR rate\",IF(ROUND(N(M159)-N(M157),6)<0,\"     Error:  MLB rate less than PR rate\",\"     ok\")))","v":"     ok"}]
[null,null,""]
[null,"Final EU Revenue",""]
[500,"Final Total Primary Res & SLB & LifeLine EU Revenue","r400 * CAP1r100",{"$f":"SUM(M162)","v":0},null,null,null,null,null,null,null,null,{"$f":"IF(M130=\"CAP2\",M157*M26,M130)","v":""}]
[510,"Final Total NonPrim Res & BRI ISDN EU Revenue","r410 * CAP1r110",{"$f":"SUM(M163)","v":0},null,null,null,null,null,null,null,null,{"$f":"IF(M130=\"CAP2\",M158*M27,M130)","v":""}]
[520,"Final Total MLB, PRI ISDN, & Centrex EU Revenue","r420 * CAP1r120",{"$f":"SUM(M164)","v":0},null,null,null,null,null,null,null,null,{"$f":"IF(M130=\"CAP2\",M159*M28,M130)","v":""}]
[530,"Final Total End User Revenue","r500 + r510 + r520",{"$f":"SUM(M165)","v":0},null,null,null,null,null,null,null,null,{"$f":"IF(M130=\"CAP2\",M162+M163+M164,M130)","v":""}]
[null,null,""]
[600,"Actual vs. Allowable Revenue:  Over-recovery","r530 - r130",{"$f":"SUM(M167)","v":0},null,null,null,null,null,null,null,null,{"$f":"IF(M130=\"CAP2\",ROUND(M165-M149,0),M130)","v":""},{"$f":"IF(M130=\"CAP2\",IF(M167>0,\"     Error:  Over-recovery. You must change EUCL rates.\",IF(M167<0,\"     You have under-recovered by this amount.\",\"     ok\")),\"\")","v":""}]
[null,"          or (Under-recovery)"]
[]
[]
[]
[]
[]
[]
[]
[]
[]
[]
[]
[]
[]
[]
[]
[]
[]
[]
[]
[]
[]
[]
[]
[]
[]
[]
["CAP-3J",null,null,"Total ",null,null,null,null,null,null,null,null,{"$f":"M15","v":0}]
[{"$f":"\"Filing Date:                \"&DATE","v":"Filing Date:                06/16/2020"},null,""]
[{"$f":"\"Filing Entity:               \"&COSA","v":"Filing Entity:               "},null,""]
[{"$f":"\"Transmittal Number:   \"&TRANSMITTAL","v":"Transmittal Number:   "},null,"","",null,null,null,null,null,null,null,null,""]
[{"$f":"NAME","v":0}]
["Page 1 of 1",null,null,"Price Cap Tariff Review Plan",null,null,null,null,null,null,null,null,"Price Cap Tariff Review Plan"]
[null,null,null,"Calculation of Minimum & Maximum EU Rates",null,null,null,null,null,null,null,null,"Calculation of Minimum & Maximum EU Rates"]
[null,null,""]
[null,null,"","Total","No Zone / Zone A","Zone B","Zone C","Zone D","Other Zone",null,null,null,"Total Jurisdiction","No Zone / Zone A","Zone B","Zone C","Zone D","Other Zone"]
[null,null,"Source","(a)","(b)","(c)","(d)","(e)","(f)",null,null,null,"(a)","(b)","(c)","(d)","(e)","(f)"]
[null,"Calculation of Maximum Recoverable Revenue","For all rows: if CAP1r1130=\"CAP3\", use sourcing; if Juris Pricing, enter Sum of CAP3-priced Juris where indicated; else CAP1r1130."]
[100,"Maximum CMT Revenue","CAP1r600",{"$f":"SUM(M206)","v":0},null,null,null,null,null,null,null,null,{"$f":"IF(M130=\"CAP3\",M86,M130)","v":""},"      N/A","      N/A","      N/A","      N/A","      N/A"]
[110,"Total USAC Receipts","CAP1r660",{"$f":"SUM(M207)","v":0},null,null,null,null,null,null,null,null,{"$f":"IF(M130=\"CAP3\",M93,M130)","v":""},"      N/A","      N/A","      N/A","      N/A","      N/A"]
["","",""]
[130,"Maximum Recoverable Revenue","r100 - r110",{"$f":"SUM(M209)","v":0},null,null,null,null,null,null,null,null,{"$f":"IF(M130=\"CAP3\",M206-M207,M130)","v":""},"      N/A","      N/A","      N/A","      N/A","      N/A"]
["",""]
["","Inputs for Calculation of Minimum and Maximum Allowable Deaveraged Rates"]
[200,"Total Local Exchange Lines","CAP1r130",{"$f":"SUM(M212)","v":0},0,0,0,0,0,null,null,null,{"$f":"IF(M130=\"CAP3\",SUM(N212:R212),M130)","v":""},{"$f":"IF(M130=\"CAP3\",N29,M130)","v":""},{"$f":"IF(M130=\"CAP3\",O29,M130)","v":""},{"$f":"IF(M130=\"CAP3\",P29,M130)","v":""},{"$f":"IF(M130=\"CAP3\",Q29,M130)","v":""},{"$f":"IF(M130=\"CAP3\",R29,M130)","v":""}]
[210,"Unbundled Loop & Line Port Rate (State Approved)","Input if CAP1r1130=CAP3; else, CAP1r1130",null,null,null,null,null,null,null,null,null,"      N/A",{"$f":"M130","v":""},{"$f":"M130","v":""},{"$f":"M130","v":""},{"$f":"M130","v":""},{"$f":"M130","v":""}]
[220,"Interstate UNE Rate","r210*.25 if CAP1r1130=CAP3",null,null,null,null,null,null,null,null,null,"      N/A",{"$f":"IF(M130=\"CAP3\",N213*0.25,M130)","v":""},{"$f":"IF(M130=\"CAP3\",O213*0.25,M130)","v":""},{"$f":"IF(M130=\"CAP3\",P213*0.25,M130)","v":""},{"$f":"IF(M130=\"CAP3\",Q213*0.25,M130)","v":""},{"$f":"IF(M130=\"CAP3\",R213*0.25,M130)","v":""}]
[230,"Interstate UNE Revenues","r200 * r220",{"$f":"SUM(M215)","v":0},0,0,0,0,0,null,null,null,{"$f":"IF(OR(M130=\"CAP3\",M130=\"Juris\"),SUM(N215:R215),M130)","v":""},{"$f":"IF(M130=\"CAP3\",N212*N214,M130)","v":""},{"$f":"IF(M130=\"CAP3\",O212*O214,M130)","v":""},{"$f":"IF(M130=\"CAP3\",P212*P214,M130)","v":""},{"$f":"IF(M130=\"CAP3\",Q212*Q214,M130)","v":""},{"$f":"IF(M130=\"CAP3\",R212*R214,M130)","v":""}]
[240,"Maximum CMT Revenue (using Max CMT Rev/Line)","CAP1r600",{"$f":"SUM(M216)","v":0},null,null,null,null,null,null,null,null,{"$f":"IF(M130=\"CAP3\",M86,M130)","v":""},"      N/A","      N/A","      N/A","      N/A","      N/A"]
[250,"Average Price Cap CMT Rev to be Recovered per Line","CAP1r460 ifCAP1r1130=CAP3",null,null,null,null,null,null,null,null,null,{"$f":"IF(M130=\"CAP3\",M58,M130)","v":""},"      N/A","      N/A","      N/A","      N/A","      N/A"]
[260,"Price Cap CMT Revenue by Zone","r200 * r250",{"$f":"SUM(M218)","v":0},0,0,0,0,0,null,null,null,{"$f":"IF(M130=\"CAP3\",SUM(N218:R218),M130)","v":""},{"$f":"IF(M130=\"CAP3\",N212*M217,M130)","v":""},{"$f":"IF(M130=\"CAP3\",O212*M217,M130)","v":""},{"$f":"IF(M130=\"CAP3\",P212*M217,M130)","v":""},{"$f":"IF(M130=\"CAP3\",Q212*M217,M130)","v":""},{"$f":"IF(M130=\"CAP3\",R212*M217,M130)","v":""}]
[270,"Uniform Rate Adjustment Factor","(r260 - r230 ) / r 200",null,null,null,null,null,null,null,null,null,{"$f":"IF(M130=\"CAP3\",IF(M212=0,0,(M218-M215)/M212),M130)","v":""},"      N/A","      N/A","      N/A","      N/A","      N/A"]
["","",""]
["","Minimum Deaveraged EU Charge Development",""]
[300,"Zone Average Revenue Per Line","r270a+r220 ifCAP1r1130=CAP3",null,null,null,null,null,null,null,null,null,"      N/A",{"$f":"IF(M130=\"CAP3\",IF(N214=0,\"None\",M219+N214),M130)","v":""},{"$f":"IF(M130=\"CAP3\",IF(O214=0,\"None\",M219+O214),M130)","v":""},{"$f":"IF(M130=\"CAP3\",IF(P214=0,\"None\",M219+P214),M130)","v":""},{"$f":"IF(M130=\"CAP3\",IF(Q214=0,\"None\",M219+Q214),M130)","v":""},{"$f":"IF(M130=\"CAP3\",IF(R214=0,\"None\",M219+R214),M130)","v":""}]
[310,"Preliminary Minimum Deaveraged EU Charge","Minimum value in r300",null,null,null,null,null,null,null,null,null,{"$f":"IF(M130=\"CAP3\",IF(N214=0,0,IF(O214=0,N214,IF(P214=0,MIN(N214:O214),IF(Q214=0,MIN(N214:P214),IF(R214=0,MIN(N214:Q214),MIN(N214:R214))))))+M219,M130)","v":""},"      N/A","      N/A","      N/A","      N/A","      N/A"]
[320,"Explicit Subsidy Support from USAC (at t)","CAP1r660",{"$f":"SUM(M224)","v":0},null,null,null,null,null,null,null,null,{"$f":"IF(M130=\"CAP3\",M93,M130)","v":""},"      N/A","      N/A","      N/A","      N/A","      N/A"]
[330,"Study Area above CAP Benchmark Revenues","If r300>9.2,(r300-7)*CAP1r(100+110)+(r300-9.2)*",{"$f":"SUM(M225)","v":0},{"$f":"SUM(N225)","v":0},{"$f":"SUM(O225)","v":0},{"$f":"SUM(P225)","v":0},{"$f":"SUM(Q225)","v":0},{"$f":"SUM(R225)","v":0},null,null,null,{"$f":"IF(M130=\"CAP3\",SUM(N225:R225),M130)","v":""},{"$f":"IF(M130=\"CAP3\",IF((N222>9.2),(N222-7)*(N26+N27)+(N222-9.2)*N28,IF(N222>7,(N222-7)*(N26+N27),0)),M130)","v":""},{"$f":"IF(M130=\"CAP3\",IF((O222>9.2),(O222-7)*(O26+O27)+(O222-9.2)*O28,IF(O222>7,(O222-7)*(O26+O27),0)),M130)","v":""},{"$f":"IF(M130=\"CAP3\",IF((P222>9.2),(P222-7)*(P26+P27)+(P222-9.2)*P28,IF(P222>7,(P222-7)*(P26+P27),0)),M130)","v":""},{"$f":"IF(M130=\"CAP3\",IF((Q222>9.2),(Q222-7)*(Q26+Q27)+(Q222-9.2)*Q28,IF(Q222>7,(Q222-7)*(Q26+Q27),0)),M130)","v":""},{"$f":"IF(M130=\"CAP3\",IF((R222>9.2),(R222-7)*(R26+R27)+(R222-9.2)*R28,IF(R222>7,(R222-7)*(R26+R27),0)),M130)","v":""}]
[null,"","   CAP1r120; if 9.2>=r300>7,(r300-7)*CAP1r(100+110);"]
[null,"","   else 0"]
[340,"Over Cap Revenues","Max(0, (r330 - r320))",{"$f":"SUM(M228)","v":0},null,null,null,null,null,null,null,null,{"$f":"IF(M130=\"CAP3\",MAX(0,M225-M224),M130)","v":""},"      N/A","      N/A","      N/A","      N/A","      N/A"]
[350,"Interim Calculations only (do not represent Zone results)","Interim calcs only (used in r360, r375, r385)",null,null,null,null,null,null,null,null,null,{"$f":"IF(M130=\"CAP3\",IF(OR(O222=\"None\",N(N229)<=N(O222)),N229,IF(OR(P222=\"None\",N(O229)<=N(P222)),O229,IF(OR(Q222=\"None\",N(P229)<=N(Q222)),P229,IF(OR(R222=\"None\",N(Q229)<=N(R222)),Q229,R229)))),M130)","v":""},{"$f":"IF(M130=\"CAP3\",IF(N222=\"None\",\"None\",IF(N212=0,0,M228/N212)+N222),M130)","v":""},{"$f":"IF(M130=\"CAP3\",IF(O222=\"None\",\"None\",IF(N212+O212=0,0,MAX(0,(M228-(O222-N222)*N212))/(N212+O212))+O222),M130)","v":""},{"$f":"IF(M130=\"CAP3\",IF(P222=\"None\",\"None\",IF(N212+O212+P212=0,0,MAX(0,(M228-(P222-N222)*N212-(P222-O222)*O212))/(N212+O212+P212))+P222),M130)","v":""},{"$f":"IF(M130=\"CAP3\",IF(Q222=\"None\",\"None\",IF(N212+O212+P212+Q212=0,0,MAX(0,(M228-(Q222-N222)*N212-(Q222-O222)*O212-(Q222-P222)*P212))/(N212+O212+P212+Q212))+Q222),M130)","v":""},{"$f":"IF(M130=\"CAP3\",IF(R222=\"None\",\"None\",IF(N212+O212+P212+Q212+R212=0,0,MAX(0,(M228-(R222-N222)*N212-(R222-O222)*O212-(R222-P222)*P212-(R222-Q222)*Q212))/(N212+O212+P212+Q212+R212))+R222),M130)","v":""}]
["","",""]
[360,"Minimum Deavgd PR, Lifeline, SLB EU Rate","Min(r350a,CAP1r400)if CAP1r1130=CAP3",null,null,null,null,null,null,null,null,null,{"$f":"IF(M130=\"CAP3\",MIN(M229,M46),M130)","v":""},"      N/A","      N/A","      N/A","      N/A","      N/A"]
[370,"Maximum Deavgd PR, Lifeline, SLB EU Rate","CAP1r400 if CAP1r1130=CAP3",null,null,null,null,null,null,null,null,null,{"$f":"M130","v":""},"      N/A","      N/A","      N/A","      N/A","      N/A"]
["","",""]
[375,"Minimum Deavgd NPR & BRI ISDN EU Rate","Min(r350a,CAP1r410)if CAP1r1130=CAP3",null,null,null,null,null,null,null,null,null,{"$f":"IF(M130=\"CAP3\",MIN(M229,M47),M130)","v":""},"      N/A","      N/A","      N/A","      N/A","      N/A"]
[380,"Maximum Deavgd NPR & BRI ISDN EU Rate","CAP1r410 if CAP1r1130=CAP3",null,null,null,null,null,null,null,null,null,{"$f":"M130","v":""},"      N/A","      N/A","      N/A","      N/A","      N/A"]
["","",""]
[385,"Minimum Deavgd MLB, PRI, Centrex EU Rate","Min(r350a,CAP1r420)if CAP1r1130=CAP3",null,null,null,null,null,null,null,null,null,{"$f":"IF(M130=\"CAP3\",MIN(M229,M48),M130)","v":""},"      N/A","      N/A","      N/A","      N/A","      N/A"]
[390,"Maximum Deavgd MLB, PRI, Centrex EU Rate","CAP1r420 if CAP1r1130=CAP3",null,null,null,null,null,null,null,null,null,{"$f":"M130","v":""},"      N/A","      N/A","      N/A","      N/A","      N/A"]
["","",""]
[null,null,""]
["","Final EU Rates (Manually Input)",""]
[400,"Final Primary Res, Lifeline, & SLB EU Rate","Input; but for col.c thru f: if r100=\"N/A\", 0",null,null,null,null,null,null,null,null,null,"      N/A",{"$f":"M130","v":""},{"$f":"M130","v":""},{"$f":"M130","v":""},{"$f":"M130","v":""},{"$f":"M130","v":""}]
[410,"Final NonPrim Res & BRI ISDN EU Rate","Input; but for col.c thru f: if r100=\"N/A\", 0",null,null,null,null,null,null,null,null,null,"      N/A",{"$f":"M130","v":""},{"$f":"M130","v":""},{"$f":"M130","v":""},{"$f":"M130","v":""},{"$f":"M130","v":""}]
[420,"Final MLB, PRI ISDN, & Centrex EU Rate","Input; but for col.c thru f: if r100=\"N/A\", 0",null,null,null,null,null,null,null,null,null,"      N/A",{"$f":"M130","v":""},{"$f":"M130","v":""},{"$f":"M130","v":""},{"$f":"M130","v":""},{"$f":"M130","v":""}]
["","",""]
["","Final EU Revenue",""]
[500,"Final Total Primary Res & SLB & LifeLine EU Revenue","r400 * CAP1r100",{"$f":"SUM(M247)","v":0},0,0,0,0,0,null,null,null,{"$f":"IF(M130=\"CAP3\",SUM(N247:R247),M130)","v":""},{"$f":"IF(M130=\"CAP3\",N242*N26,M130)","v":""},{"$f":"IF(M130=\"CAP3\",O242*O26,M130)","v":""},{"$f":"IF(M130=\"CAP3\",P242*P26,M130)","v":""},{"$f":"IF(M130=\"CAP3\",Q242*Q26,M130)","v":""},{"$f":"IF(M130=\"CAP3\",R242*R26,M130)","v":""}]
[510,"Final Total NonPrim Res & BRI ISDN EU Revenue","r410 * CAP1r110",0,0,0,0,0,0,null,null,null,{"$f":"IF(M130=\"CAP3\",SUM(N248:R248),M130)","v":""},{"$f":"IF(M130=\"CAP3\",N243*N27,M130)","v":""},{"$f":"IF(M130=\"CAP3\",O243*O27,M130)","v":""},{"$f":"IF(M130=\"CAP3\",P243*P27,M130)","v":""},{"$f":"IF(M130=\"CAP3\",Q243*Q27,M130)","v":""},{"$f":"IF(M130=\"CAP3\",R243*R27,M130)","v":""}]
[520,"Final Total MLB, PRI ISDN, & Centrex EU Revenue","r420 * CAP1r120",0,0,0,0,0,0,null,null,null,{"$f":"IF(M130=\"CAP3\",SUM(N249:R249),M130)","v":""},{"$f":"IF(M130=\"CAP3\",N244*N28,M130)","v":""},{"$f":"IF(M130=\"CAP3\",O244*O28,M130)","v":""},{"$f":"IF(M130=\"CAP3\",P244*P28,M130)","v":""},{"$f":"IF(M130=\"CAP3\",Q244*Q28,M130)","v":""},{"$f":"IF(M130=\"CAP3\",R244*R28,M130)","v":""}]
[530,"Final Total End User Revenue","r500 + r510 + r520",0,0,0,0,0,0,null,null,null,{"$f":"IF(M130=\"CAP3\",SUM(M247:M249),M130)","v":""},{"$f":"IF(M130=\"CAP3\",SUM(N247:N249),M130)","v":""},{"$f":"IF(M130=\"CAP3\",SUM(O247:O249),M130)","v":""},{"$f":"IF(M130=\"CAP3\",SUM(P247:P249),M130)","v":""},{"$f":"IF(M130=\"CAP3\",SUM(Q247:Q249),M130)","v":""},{"$f":"IF(M130=\"CAP3\",SUM(R247:R249),M130)","v":""}]
[null,"",""]
[600,"Actual vs. Allowable Revenue:  Over-recovery","r530 - r130",{"$f":"SUM(M252)","v":0},null,null,null,null,null,null,null,null,{"$f":"IF(M130=\"CAP3\",M250-M209,M130)","v":""},"      N/A","      N/A","      N/A","      N/A","      N/A"]
[null,"          or (Under-recovery)"]
[]
["CAP-4J",null,null,"Total ",null,null,null,null,null,null,null,null,{"$f":"M15","v":0}]
[{"$f":"\"Filing Date:                \"&DATE","v":"Filing Date:                06/16/2020"}]
[{"$f":"\"Filing Entity:               \"&COSA","v":"Filing Entity:               "}]
[{"$f":"\"Transmittal Number:   \"&TRANSMITTAL","v":"Transmittal Number:   "},null,null,"",null,null,null,null,null,null,null,null,""]
[{"$f":"NAME","v":0}]
["Page 1 of 1",null,null,"Price Cap Tariff Review Plan",null,null,null,null,null,null,null,null,"Price Cap Tariff Review Plan"]
[null,null,null,"Allocation of Pool Revenues to MLB PICC & MLB EUCL",null,null,null,null,null,null,null,null,"Allocation of Pool Revenues to MLB PICC & MLB EUCL"]
[]
[]
[null,null,null,"Total","No Zone / Zone A","Zone B","Zone C","Zone D","Other Zone",null,null,null,"Total Jurisdiction","No Zone / Zone A","Zone B","Zone C","Zone D","Other Zone"]
[null,null,"Source","(a)","(b)","(c)","(d)","(e)","(f)",null,null,null,"(a)","(b)","(c)","(d)","(e)","(f)"]
[]
[null,null,"For rows 100&105: If CAP1r1110=\"Yes\", use sourcing; else enter \"No Pooling\"."]
[100,"Pooling Amount?","Input",{"$f":"SUM(M268)","v":0},null,null,null,null,null,null,null,null,null,"      N/A","      N/A","      N/A","      N/A","      N/A"]
[105,"CAP Form containing final EUCL Rates?","CAP1r1130",null,null,null,null,null,null,null,null,null,{"$f":"IF(M130=\"\",\"\",IF(M128<>\"Yes\",\"No Pooling\",IF(M130=\"Agg.Rate\",\"CAP1\",M130)))","v":""},"      N/A","      N/A","      N/A","      N/A","      N/A"]
["","",""]
["","",""]
["","MLB Pooled Rates for CAP1 & CAP2 Forms","For rows 110 to 220: If CAP4r105=\"CAP1\"or\"CAP2\" or if Jurisdictional pricing, use sourcing; else, r105 value."]
[110,"MLB, PRI ISDN & Centrex EUCL Cap","CAP1r420",null,null,null,null,null,null,null,null,null,{"$f":"IF(M130=\"\",\"\",IF(M269<>\"CAP3\",IF(M128<>\"Yes\",\"No Pooling\",M48),M130))","v":""},"      N/A","      N/A","      N/A","      N/A","      N/A"]
[120,"MLB, PRI & Centrex EUCL Rate","if r105=\"CAP1\", r110;  =\"CAP2\",CAP2r420;",null,null,null,null,null,null,null,null,null,null,"      N/A","      N/A","      N/A","      N/A","      N/A"]
["","",""]
[130,"MLB, PRI ISDN Revenue below EUCL CAP","(r110-r120)*(CAP1r120)",{"$f":"SUM(M276)","v":0},null,null,null,null,null,null,null,null,{"$f":"IF(M130=\"\",\"\",IF(M269<>\"CAP3\",IF(M128<>\"Yes\",\"No Pooling\",(M273-M274)*M28),M130))","v":""},"      N/A","      N/A","      N/A","      N/A","      N/A"]
[140,"Pooling revenue to be recovered from MLB EUCL Rate","Min(r130,r100)",{"$f":"SUM(M277)","v":0},null,null,null,null,null,null,null,null,{"$f":"IF(M130=\"\",\"\",IF(M269<>\"CAP3\",IF(M128<>\"Yes\",\"No Pooling\",MIN(M276,M268)),M130))","v":""},"      N/A","      N/A","      N/A","      N/A","      N/A"]
[150,"MLB EUCL rate","r120+(r140/CAP1r120) ",null,null,null,null,null,null,null,null,null,{"$f":"IF(M130=\"\",\"\",IF(M269<>\"CAP3\",IF(M128<>\"Yes\",\"No Pooling\",IF(M28=0,0,M274+(M277/M28))),M130))","v":""},"      N/A","      N/A","      N/A","      N/A","      N/A"]
[155,"MLB EUCL Revenue","r150 * (CAP1r120)",{"$f":"SUM(M279)","v":0},null,null,null,null,null,null,null,null,{"$f":"IF(M130=\"\",\"\",IF(M269<>\"CAP3\",IF(M128<>\"Yes\",\"No Pooling\",M278*(M28)),M130))","v":""},"      N/A","      N/A","      N/A","      N/A","      N/A"]
["","",""]
["","",""]
[160,"Remaining Pooling Revenues","r100 - r140",{"$f":"SUM(M282)","v":0},null,null,null,null,null,null,null,null,{"$f":"IF(M130=\"\",\"\",IF(M269<>\"CAP3\",IF(M128<>\"Yes\",\"No Pooling\",N(M268)-N(M277)),M130))","v":""},"      N/A","      N/A","      N/A","      N/A","      N/A"]
["","",""]
[170,"MLB PICC Cap","CAP1r430",null,null,null,null,null,null,null,null,null,{"$f":"IF(M130=\"\",\"\",IF(M128<>\"Yes\",\"No Pooling\",IF(M130=\"\",\"\",IF(M269=\"CAP3\",M130,M49))))","v":""},"      N/A","      N/A","      N/A","      N/A","      N/A"]
[180,"Maximum Average MLB, PRI & Centrex PICC Rate","CAP1r830",null,null,null,null,null,null,null,null,null,{"$f":"IF(M130=\"\",\"\",IF(M128<>\"Yes\",\"No Pooling\",IF(M130=\"\",\"\",IF(M269=\"CAP3\",M130,IF(A!$G$7=\"y\",M106,A!$BL106)))))","v":""},"      N/A","      N/A","      N/A","      N/A","      N/A"]
[190,"MLB PICC Revenue below CAP","(r170-r180)*(CAP1(r200+r210/9+r220))",{"$f":"SUM(M286)","v":0},null,null,null,null,null,null,null,null,{"$f":"IF(M130=\"\",\"\",IF(M128<>\"Yes\",\"No Pooling\",IF(OR(M269=\"CAP1\",M269=\"CAP2\"),IF(A!$G$7=\"y\",(M284-M285)*(M32+M33/9+M34),(A!$BL284-A!$BL285)*(M32+M33/9+M34)),M130)))","v":""},"      N/A","      N/A","      N/A","      N/A","      N/A"]
[200,"Pooling revenue to be recovered from MLB PICC Rate","Min(r190,r160)",{"$f":"SUM(M287)","v":0},null,null,null,null,null,null,null,null,{"$f":"IF(M130=\"\",\"\",IF(M128<>\"Yes\",\"No Pooling\",IF(OR(M269=\"CAP1\",M269=\"CAP2\"),MIN(M286,M282),M130)))","v":""},"      N/A","      N/A","      N/A","      N/A","      N/A"]
[210,"MLB PICC rate","r180+(r200/CAP1(r200+r210/9+r220)) ",null,null,null,null,null,null,null,null,null,{"$f":"IF(M130=\"\",\"\",IF(M128<>\"Yes\",\"No Pooling\",IF(OR(M269=\"CAP1\",M269=\"CAP2\"),IF(A!$G$7=\"y\",IF(M32+M33/9+M34=0,0,M285+(M287/(M32+M33/9+M34))),A!$BL288),M130)))","v":""},"      N/A","      N/A","      N/A","      N/A","      N/A"]
[220,"MLB PICC Revenue","r 210 * (CAP1(r200+r210/9+r220))",{"$f":"SUM(M289)","v":0},null,null,null,null,null,null,null,null,{"$f":"IF(M130=\"\",\"\",IF(M128<>\"Yes\",\"No Pooling\",IF(OR(M269=\"CAP1\",M269=\"CAP2\"),M288*(M32+M33/9+M34),M130)))","v":""},"      N/A","      N/A","      N/A","      N/A","      N/A"]
["","",""]
["","",""]
["","MLB Pooled EU Rates for CAP3","For rows 300 to 400: If CAP4r105=\"CAP3\" or if Jurisdictional pricing, use sourcing; else value from CAP1r1130."]
[300,"Total MLB&PRI ISDN lines (include both PRI * 5 & Centrex)","CAP1r120",{"$f":"SUM(M293)","v":0},0,0,0,0,0,null,null,null,{"$f":"IF(M130=\"\",\"\",IF(M128<>\"Yes\",\"No Pooling\",IF(OR(M269=\"CAP3\",M269=\"Agg.Rate\"),M28,M130)))","v":""},{"$f":"IF(M130=\"\",\"\",IF(M128<>\"Yes\",\"No Pooling\",IF(OR(M269=\"CAP3\",M269=\"Agg.Rate\"),N28,M130)))","v":""},{"$f":"IF(M130=\"\",\"\",IF(M128<>\"Yes\",\"No Pooling\",IF(OR(M269=\"CAP3\",M269=\"Agg.Rate\"),O28,M130)))","v":""},{"$f":"IF(M130=\"\",\"\",IF(M128<>\"Yes\",\"No Pooling\",IF(OR(M269=\"CAP3\",M269=\"Agg.Rate\"),P28,M130)))","v":""},{"$f":"IF(M130=\"\",\"\",IF(M128<>\"Yes\",\"No Pooling\",IF(OR(M269=\"CAP3\",M269=\"Agg.Rate\"),Q28,M130)))","v":""},{"$f":"IF(M130=\"\",\"\",IF(M128<>\"Yes\",\"No Pooling\",IF(OR(M269=\"CAP3\",M269=\"Agg.Rate\"),R28,M130)))","v":""}]
[310,"CAP3 Final MLB, PRI ISDN, & Centrex EU Rate","if r105=\"CAP3\",CAP3r420; else r105",null,null,null,null,null,null,null,null,null,"      N/A",{"$f":"IF(M130=\"\",\"\",IF(M128<>\"Yes\",\"No Pooling\",IF(OR(M269=\"CAP3\",M269=\"Agg.Rate\"),N244,M130)))","v":""},{"$f":"IF(M130=\"\",\"\",IF(M128<>\"Yes\",\"No Pooling\",IF(OR(M269=\"CAP3\",M269=\"Agg.Rate\"),O244,M130)))","v":""},{"$f":"IF(M130=\"\",\"\",IF(M128<>\"Yes\",\"No Pooling\",IF(OR(M269=\"CAP3\",M269=\"Agg.Rate\"),P244,M130)))","v":""},{"$f":"IF(M130=\"\",\"\",IF(M128<>\"Yes\",\"No Pooling\",IF(OR(M269=\"CAP3\",M269=\"Agg.Rate\"),Q244,M130)))","v":""},{"$f":"IF(M130=\"\",\"\",IF(M128<>\"Yes\",\"No Pooling\",IF(OR(M269=\"CAP3\",M269=\"Agg.Rate\"),R244,M130)))","v":""}]
[320,"CAP3 Final Total MLB, PRI ISDN, & Centrex EU Revenue","CAP3r520",{"$f":"SUM(M295)","v":0},0,0,0,0,0,null,null,null,{"$f":"IF(M130=\"\",\"\",IF(M128<>\"Yes\",\"No Pooling\",IF(M269=\"CAP3\",SUM(N295:R295),M130)))","v":""},{"$f":"IF(M130=\"\",\"\",IF(M128<>\"Yes\",\"No Pooling\",IF(OR(M269=\"CAP3\",M269=\"Agg.Rate\"),N293*N294,M130)))","v":""},{"$f":"IF(M130=\"\",\"\",IF(M128<>\"Yes\",\"No Pooling\",IF(OR(M269=\"CAP3\",M269=\"Agg.Rate\"),O293*O294,M130)))","v":""},{"$f":"IF(M130=\"\",\"\",IF(M128<>\"Yes\",\"No Pooling\",IF(OR(M269=\"CAP3\",M269=\"Agg.Rate\"),P293*P294,M130)))","v":""},{"$f":"IF(M130=\"\",\"\",IF(M128<>\"Yes\",\"No Pooling\",IF(OR(M269=\"CAP3\",M269=\"Agg.Rate\"),Q293*Q294,M130)))","v":""},{"$f":"IF(M130=\"\",\"\",IF(M128<>\"Yes\",\"No Pooling\",IF(OR(M269=\"CAP3\",M269=\"Agg.Rate\"),R293*R294,M130)))","v":""}]
[330,"CAP3 Final MLB Rate adjusted for Pooling amount","a: min(330b.f) b-f:(sum(r310b.f)+r100a)/sum(r300b.f)",null,null,null,null,null,null,null,null,null,{"$f":"IF(M130=\"\",\"\",IF(M128<>\"Yes\",\"No Pooling\",IF(M269=\"CAP3\",MIN(N296:R296),M130)))","v":""},{"$f":"IF(M130=\"\",\"\",IF(M128<>\"Yes\",\"No Pooling\",IF(M269<>\"CAP3\",M130,IF(SUM(N293:N293)=0,0,(SUM(N295:N295)+M268)/(SUM(N293:N293))))))","v":""},{"$f":"IF(M130=\"\",\"\",IF(M128<>\"Yes\",\"No Pooling\",IF(M269<>\"CAP3\",M130,IF(SUM(N293:O293)=0,0,(SUM(N295:O295)+M268)/(SUM(N293:O293))))))","v":""},{"$f":"IF(M130=\"\",\"\",IF(M128<>\"Yes\",\"No Pooling\",IF(M269<>\"CAP3\",M130,IF(SUM(N293:P293)=0,0,(SUM(N295:P295)+M268)/(SUM(N293:P293))))))","v":""},{"$f":"IF(M130=\"\",\"\",IF(M128<>\"Yes\",\"No Pooling\",IF(M269<>\"CAP3\",M130,IF(SUM(N293:Q293)=0,0,(SUM(N295:Q295)+M268)/(SUM(N293:Q293))))))","v":""},{"$f":"IF(M130=\"\",\"\",IF(M128<>\"Yes\",\"No Pooling\",IF(M269<>\"CAP3\",M130,IF(SUM(N293:R293)=0,0,(SUM(N295:R295)+M268)/(SUM(N293:R293))))))","v":""}]
[340,"Final MLB, PRI ISDN & Centrex EU Rate with Pooling","max(r310,r330a)",null,null,null,null,null,null,null,null,null,"      N/A",{"$f":"IF(M130=\"\",\"\",IF(M128<>\"Yes\",\"No Pooling\",IF(M269<>\"CAP3\",M130,IF(N294=0,0,MAX(N294,M296)))))","v":""},{"$f":"IF(M130=\"\",\"\",IF(M128<>\"Yes\",\"No Pooling\",IF(M269<>\"CAP3\",M130,IF(O294=0,0,MAX(O294,M296)))))","v":""},{"$f":"IF(M130=\"\",\"\",IF(M128<>\"Yes\",\"No Pooling\",IF(M269<>\"CAP3\",M130,IF(P294=0,0,MAX(P294,M296)))))","v":""},{"$f":"IF(M130=\"\",\"\",IF(M128<>\"Yes\",\"No Pooling\",IF(M269<>\"CAP3\",M130,IF(Q294=0,0,MAX(Q294,M296)))))","v":""},{"$f":"IF(M130=\"\",\"\",IF(M128<>\"Yes\",\"No Pooling\",IF(M269<>\"CAP3\",M130,IF(R294=0,0,MAX(R294,M296)))))","v":""}]
[350,"MLB EUCL Revenue","r300*r340",{"$f":"SUM(M298)","v":0},0,0,0,0,0,null,null,null,{"$f":"IF(M130=\"\",\"\",IF(M128<>\"Yes\",\"No Pooling\",IF(M269=\"CAP3\",SUM(N298:R298),M130)))","v":""},{"$f":"IF(M130=\"\",\"\",IF(M128<>\"Yes\",\"No Pooling\",IF(OR(M269=\"CAP3\",M269=\"Agg.Rate\"),N293*N297,M130)))","v":""},{"$f":"IF(M130=\"\",\"\",IF(M128<>\"Yes\",\"No Pooling\",IF(OR(M269=\"CAP3\",M269=\"Agg.Rate\"),O293*O297,M130)))","v":""},{"$f":"IF(M130=\"\",\"\",IF(M128<>\"Yes\",\"No Pooling\",IF(OR(M269=\"CAP3\",M269=\"Agg.Rate\"),P293*P297,M130)))","v":""},{"$f":"IF(M130=\"\",\"\",IF(M128<>\"Yes\",\"No Pooling\",IF(OR(M269=\"CAP3\",M269=\"Agg.Rate\"),Q293*Q297,M130)))","v":""},{"$f":"IF(M130=\"\",\"\",IF(M128<>\"Yes\",\"No Pooling\",IF(OR(M269=\"CAP3\",M269=\"Agg.Rate\"),R293*R297,M130)))","v":""}]
["","",""]
[400,"Un-recovered Pool Revenues","if CAP1r1110=\"No\", then \"No Pooling\"; else ",{"$f":"SUM(M300)","v":0},null,null,null,null,null,null,null,null,{"$f":"IF(M130=\"\",\"\",IF(M128<>\"Yes\",\"No Pooling\",IF(M269=\"CAP3\",M268+M295-M298,M282-M287)))","v":""},"      N/A","      N/A","      N/A","      N/A","      N/A"]
["","","       if r105=\"CAP3\", then r100+r320-r350; "]
["","","       if r105=\"Juris\", then r100+r320-r350-r140; "]
[null,null,"       else r160-r200"]
["",""]
[]
[]
[]
[]
[]
[]
[]
[]
[]
[]
["CAP-5J",null,null,"Total ",null,null,null,null,null,null,null,null,{"$f":"M15","v":0}]
[{"$f":"\"Filing Date:                \"&DATE","v":"Filing Date:                06/16/2020"},null,""]
[{"$f":"\"Filing Entity:               \"&COSA","v":"Filing Entity:               "},null,""]
[{"$f":"\"Transmittal Number:   \"&TRANSMITTAL","v":"Transmittal Number:   "},null,"","",null,null,null,null,null,null,null,null,""]
[{"$f":"NAME","v":0},null,null,"Price Cap Tariff Review Plan",null,null,null,null,null,null,null,null,"Price Cap Tariff Review Plan"]
["Page 1 of 1",null,null,"Verification of Recovered CMT Revenue",null,null,null,null,null,null,null,null,"Verification of Recovered CMT Revenue"]
[null,null,""]
[null,null,""]
[null,null,"","Total",null,null,null,null,null,null,null,null,"Total Jurisdiction"]
[null,null,"Source","(a)",null,null,null,null,null,null,null,null,"(a)"]
[]
[100,"Maximum CMT Revenue","CAP1r600",{"$f":"SUM(M326)","v":0},null,null,null,null,null,null,null,null,{"$f":"M86","v":0}]
[110,"Total USAC Receipts","CAP1r660",{"$f":"SUM(M327)","v":0},null,null,null,null,null,null,null,null,{"$f":"M93","v":0}]
["","",""]
[125,"Pooling Revenues","if CAP1r1110 = \"Yes\", CAP4r100",{"$f":"SUM(M329)","v":0},null,null,null,null,null,null,null,null,{"$f":"IF(OR(M268=\"\",M268=\"No Pooling\"),0,M268)","v":0}]
[130,"Maximum Recoverable Revenue","r100 - r110 + r125",{"$f":"SUM(M330)","v":0},null,null,null,null,null,null,null,null,{"$f":"M326-M327+M329","v":0}]
["","",""]
[200,"Final Total Primary Res & SLB & LifeLine EU Revenue","if CAP1r1130 = \"CAP1\", CAP1r610",{"$f":"SUM(M332)","v":0},null,null,null,null,null,null,null,null,{"$f":"IF(M130=\"\",0,IF(OR(M130=\"CAP1\",M130=\"Agg.Rate\"),M87,IF(M130=\"CAP2\",M162,IF(M130=\"CAP3\",M247,\"          ERROR\"))))","v":0}]
["","","if CAP1r1130 = \"CAP2\", CAP2r500"]
["","","if CAP1r1130 = \"CAP3\", CAP3r500"]
["","","if CAP1r1130=\"Juris\",CAP1r1140+CAP2r500+CAP3r500"]
[210,"Final Total NonPrim Res & BRI ISDN EU Revenue","if CAP1r1130 = \"CAP1\", CAP1r620",{"$f":"SUM(M336)","v":0},null,null,null,null,null,null,null,null,{"$f":"IF(M130=\"\",0,IF(OR(M130=\"CAP1\",M130=\"Agg.Rate\"),M88,IF(M130=\"CAP2\",M163,IF(M130=\"CAP3\",M248,\"          ERROR\"))))","v":0}]
["","","if CAP1r1130 = \"CAP2\", CAP2r510"]
["","","if CAP1r1130 = \"CAP3\", CAP3r510"]
["","","if CAP1r1130=\"Juris\",CAP1r1150+CAP2r510+CAP3r510"]
[220,"Final Total MLB, PRI ISDN, & Centrex EU Revenue","if CAP1r1110=\"Yes\"&:",{"$f":"SUM(M340)","v":0},null,null,null,null,null,null,null,null,{"$f":"IF(M130=\"\",0,IF(M128=\"Yes\",IF(OR(M130=\"CAP1\",M130=\"Agg.Rate\"),M279,IF(M130=\"CAP2\",M279,IF(M130=\"CAP3\",M298,\"          ERROR\"))),IF(OR(M130=\"CAP1\",M130=\"Agg.Rate\"),M89,IF(M130=\"CAP2\",M164,IF(M130=\"CAP3\",M249,\"          ERROR\")))))","v":0}]
["","","      if CAP1r1130=\"CAP1\" or \"CAP2\", CAP4r155"]
["","","      if CAP1r1130=\"CAP3\", CAP4r350a"]
["","","      if CAP1r1130=\"Juris\", CAP4(r155+r350a)"]
[null,null,"if CAP1r1110=\"No\"&:"]
[null,null,"      if CAP1r1130=\"CAP1\", CAP1r630"]
[null,null,"      if CAP1r1130=\"CAP2\", CAP2r520"]
[null,null,"      if CAP1r1130=\"CAP3\", CAP3r520"]
[null,null,"      if CAP1r1130=\"Juris\", CAP1r1160+CAP2r520+CAP3r520"]
[]
[]
[300,"Final Total EUCL Revenue","r200 + r210 + r220",{"$f":"SUM(M351)","v":0},null,null,"EUCL rev recovered by juris. EUCL rates only",null,null,null,null,null,{"$f":"SUM(M332,M336,M340)","v":0}]
[310,"Final Total PICC Revenue","if CAP1r1110=\"Yes\"&CAP1r1130<>\"CAP3\", ",{"$f":"SUM(M352)","v":0},null,null,"PICC rev recovered by juris PICC rates only",null,null,null,null,null,{"$f":"IF(AND(M128=\"Yes\",M130<>\"CAP3\"),M289,M109)","v":0}]
[null,null,"     CAP4 r220; else CAP1r860"]
[320,"Final Total CCL Revenue","CAP1r995",{"$f":"SUM(M354)","v":0},null,null,"CCL rev recovered by juris CCL rates only",null,null,null,null,null,{"$f":"M124","v":0}]
["","",""]
[400,"Final Total Recovered Revenue","r300 + r310 + r320",{"$f":"SUM(M356)","v":0},null,null,"EUCL, PICC, CCL rev recovered by juris rates only ",null,null,null,null,null,{"$f":"SUM(M351:M354)","v":0}]
["","",""]
[500,"Allowable Revenue Over-recovery/(Under-recovery)"," r400-r130",{"$f":"SUM(M358)","v":0},null,null,"over/under-recovery, as it relates to juris rates only",null,null,null,null,null,{"$f":"ROUND(M356-M330,0)","v":0},{"$f":"IF(M358>0,\"     Error:  Over-recovery. You must change some rates.\",IF(M358<0,\"     You have under-recovered by this amount.\",\"     ok\"))","v":"     ok"}]
[]
["","",""]
[600,"Nonrecoverable from PICC and CCL","CAP1r950-CAP1r995",{"$f":"N(D118)-N(D124)","v":0},null,null,null,null,null,null,null,null,{"$f":"N(M118)-N(M124)","v":0}]
[605,"Annual Filing Non Recoverable Dollars ","if Annual filing = 0 else r600 - r610 from the Annual Filing",{"$f":"SUM(M362)","v":0}]
[610,"Recoverable from ARC (up to max exog costs for","Allocate total Recoverable from ARC to each Juris. based on r600.",{"$f":"SUM(M363)","v":0},null,null,null,null,null,null,null,null,{"$f":"IF(A!$BL$363<A!$BL$361,A!$BL$363*M361/A!$BL$361,M361)","v":0}]
[null,"Reg Fees, TRS, and NANPA)"]
[]
[]
[]
[]
[]
[]
[]
[]
[]
[]
["ANALYZER - Juris",null,null,null,null,null,null,null,null,null,null,null,{"$f":"M15","v":0}]
[{"$f":"\"Filing Date:                \"&DATE","v":"Filing Date:                06/16/2020"}]
[{"$f":"\"Filing Entity:               \"&COSA","v":"Filing Entity:               "}]
[{"$f":"\"Transmittal Number:   \"&TRANSMITTAL","v":"Transmittal Number:   "}]
[{"$f":"NAME","v":0}]
[]
[null,null,null,null,null,null,null,null,null,null,null,null,null,null,null,"Flag"]
["COMMON LINE-----------------------------------------",null,null,null,null,null,null,null,null,null,null,null,null,null,null,"-"]
[]
["Deaveraging Checks (from CAP3):"]
["   Zone Progression Checks:"]
["     Primary Res, SLB, & LifeLine",null,null,null,null,null,null,null,null,null,null,null,{"$f":"IF(N(M206)<=0,M206,IF(AND(O29<>0,N(O242)<N(N242)),\"FAIL\",IF(AND(P29<>0,N(P242)<N(O242)),\"FAIL\",IF(AND(Q29<>0,N(Q242)<N(P242)),\"FAIL\",IF(AND(R29<>0,N(R242)<N(Q242)),\"FAIL\",\"PASS\")))))","v":""},{"$f":"IF(M386=\"\",\"\",IF(M129=\"no\",\"No Deaveraging Allowed\",IF(AND(O29<>0,O242<N242),\"Prim Res Zone B < Zone A\",IF(AND(P29<>0,P242<O242),\"Prim Res Zone C < Zone B\",IF(AND(Q29<>0,Q242<P242),\"Prim Res Zone D < Zone C\",IF(AND(R29<>0,R242<Q242),\"Prim Res Zone Other < Zone D\",\"Prim Rates OK\"))))))","v":""}]
["     NonPrimary Res & BRI ISDN",null,null,null,null,null,null,null,null,null,null,null,{"$f":"IF(N(M206)<=0,M206,IF(AND(O29<>0,N(O243)<N(N243)),\"FAIL\",IF(AND(P29<>0,N(P243)<N(O243)),\"FAIL\",IF(AND(Q29<>0,N(Q243)<N(P243)),\"FAIL\",IF(AND(R29<>0,N(R243)<N(Q243)),\"FAIL\",\"PASS\")))))","v":""},{"$f":"IF(M387=\"\",\"\",IF(M129=\"no\",\"No Deaveraging Allowed\",IF(AND(O29<>0,O243<N243),\"Non Prim Zone B < Zone A\",IF(AND(P29<>0,P243<O243),\"Non Prim Zone C < Zone B\",IF(AND(Q29<>0,Q243<P243),\"Non Prim Zone D < Zone C\",IF(AND(R29<>0,R243<Q243),\"Non Prim Zone Other < Zone D\",\"Non Prim Rates OK\"))))))","v":""}]
["     MLB, PRI ISDN, & Centrex",null,null,null,null,null,null,null,null,null,null,null,{"$f":"IF(N(M206)<=0,M206,IF(AND(O29<>0,N(O244)<N(N244)),\"FAIL\",IF(AND(P29<>0,N(P244)<N(O244)),\"FAIL\",IF(AND(Q29<>0,N(Q244)<N(P244)),\"FAIL\",IF(AND(R29<>0,N(R244)<N(Q244)),\"FAIL\",\"PASS\")))))","v":""},{"$f":"IF(M388=\"\",\"\",IF(M129=\"no\",\"No Deaveraging Allowed\",IF(AND(O29<>0,O244<N244),\"MLB Zone B < Zone A\",IF(AND(P29<>0,P244<O244),\"MLB Zone C < Zone B\",IF(AND(Q29<>0,Q244<P244),\"MLB Zone D < Zone C\",IF(AND(R29<>0,R244<Q244),\"MLB Zone Other < Zone D\",\"MLB Rates OK\"))))))","v":""}]
[]
["   Zone Minimum Pricing Checks:"]
["     Primary Res, SLB, & LifeLine",null,null,null,null,null,null,null,null,null,null,null,{"$f":"IF(M130=\"\",\"\",IF(M129=\"no\",\"N/A\",IF(OR(AND(OR(M130=\"CAP1\",M130=\"CAP2\"),N(#REF!)<>0),AND(N29<>0,N(N242)<N(M231)),AND(O29<>0,N(O242)<N(M231)),AND(P29<>0,N(P242)<N(M231)),AND(Q29<>0,N(Q242)<N(M231)),AND(R29<>0,N(R242)<N(M231))),\"FAIL\",\"PASS\")))","v":""},{"$f":"IF(M391=\"\",\"\",IF(M129=\"no\",\"No Deaveraging Allowed\",IF(AND(N29<>0,N242<M231),\"Prim Res Zone A < Min\",IF(AND(O29<>0,O242<M231),\"Prim Res Zone B < Min\",IF(AND(P29<>0,P242<M231),\"Prim Res Zone C < Min\",IF(AND(Q29<>0,Q242<M231),\"Prim Res Zone D < Min\",IF(AND(R29<>0,R242<M231),\"Prim Res Zone Other < Min\",\"Prim Rates above Min\")))))))","v":""}]
["     NonPrimary Res & BRI ISDN",null,null,null,null,null,null,null,null,null,null,null,{"$f":"IF(M130=\"\",\"\",IF(M129=\"no\",\"N/A\",IF(OR(AND(OR(M130=\"CAP1\",M130=\"CAP2\"),N(#REF!)<>0),AND(N29<>0,N(N243)<N(M234)),AND(O29<>0,N(O243)<N(M234)),AND(P29<>0,N(P243)<N(M234)),AND(Q29<>0,N(Q243)<N(M234)),AND(R29<>0,N(R243)<N(M234))),\"FAIL\",\"PASS\")))","v":""},{"$f":"IF(M392=\"\",\"\",IF(M129=\"no\",\"No Deaveraging Allowed\",IF(AND(N29<>0,N243<M234),\"Non Prim Zone A < Min\",IF(AND(O29<>0,O243<M234),\"Non Prim Zone B < Min\",IF(AND(P29<>0,P243<M234),\"Non Prim Zone C < Min\",IF(AND(Q29<>0,Q243<M234),\"Non Prim Zone D < Min\",IF(AND(R29<>0,R243<M234),\"Non Prim Zone Other < Min\",\"Non Prim Rates above Min\")))))))","v":""}]
["     MLB, PRI ISDN, & Centrex",null,null,null,null,null,null,null,null,null,null,null,{"$f":"IF(M130=\"\",\"\",IF(M129=\"no\",\"N/A\",IF(OR(AND(OR(M130=\"CAP1\",M130=\"CAP2\"),N(#REF!)<>0),AND(N29<>0,N(N244)<N(M237)),AND(O29<>0,N(O244)<N(M237)),AND(P29<>0,N(P244)<N(M237)),AND(Q29<>0,N(Q244)<N(M237)),AND(R29<>0,N(R244)<N(M237))),\"FAIL\",\"PASS\")))","v":""},{"$f":"IF(M393=\"\",\"\",IF(M129=\"no\",\"No Deaveraging Allowed\",IF(AND(N29<>0,N244<M237),\"MLB Zone A < Min\",IF(AND(O29<>0,O244<M237),\"MLB Zone B < Min\",IF(AND(P29<>0,P244<M237),\"MLB Zone C < Min\",IF(AND(Q29<>0,Q244<M237),\"MLB Zone D < Min\",IF(AND(R29<>0,R244<M237),\"MLB Zone Other < Min\",\"MLB Rates above Min\")))))))","v":""}]
[]
["   Zone Maximum Pricing Checks:"]
["     Primary Res, SLB, & LifeLine",null,null,null,null,null,null,null,null,null,null,null,{"$f":"IF(M130=\"\",\"\",IF(OR(M130=\"CAP1\",M130=\"CAP2\"),\"N/A\",IF(OR(N(#REF!)<>0,AND(N29<>0,N(N242)<N(M232)),AND(O29<>0,N(O242)<N(M232)),AND(P29<>0,N(P242)<N(M232)),AND(Q29<>0,N(Q242)<N(M232)),AND(R29<>0,N(R242)<N(M232))),\"FAIL\",\"PASS\")))","v":""},{"$f":"IF(M396=\"\",\"\",IF(M129=\"no\",\"No Deaveraging Allowed\",IF(AND(N29<>0,N242>M232),\"Prim Res Zone A > Max\",IF(AND(O29<>0,O242>M232),\"Prim Res Zone B > Max\",IF(AND(P29<>0,P242>M232),\"Prim Res Zone C > Max\",IF(AND(Q29<>0,Q242>M232),\"Prim Res Zone D > Max\",IF(AND(R29<>0,R242>M232),\"Prim Res Zone Other > Max\",\"Prim Rates below Max\")))))))","v":""}]
["     NonPrimary Res & BRI ISDN",null,null,null,null,null,null,null,null,null,null,null,{"$f":"IF(M130=\"\",\"\",IF(OR(M130=\"CAP1\",M130=\"CAP2\"),\"N/A\",IF(OR(N(#REF!)<>0,AND(N29<>0,N(N243)<N(M235)),AND(O29<>0,N(O243)<N(M235)),AND(P29<>0,N(P243)<N(M235)),AND(Q29<>0,N(Q243)<N(M235)),AND(R29<>0,N(R243)<N(M235))),\"FAIL\",\"PASS\")))","v":""},{"$f":"IF(M397=\"\",\"\",IF(M129=\"no\",\"No Deaveraging Allowed\",IF(AND(N29<>0,N243>M235),\"Non Prim Zone A > Max\",IF(AND(O29<>0,O243>M235),\"Non Prim Zone B > Max\",IF(AND(P29<>0,P243>M235),\"Non Prim Zone C > Max\",IF(AND(Q29<>0,Q243>M235),\"Non Prim Zone D > Max\",IF(AND(R29<>0,R243>M235),\"Non Prim Zone Other > Max\",\"Non Prim Rates below Max\")))))))","v":""}]
["     MLB, PRI ISDN, & Centrex",null,null,null,null,null,null,null,null,null,null,null,{"$f":"IF(M130=\"\",\"\",IF(OR(M130=\"CAP1\",M130=\"CAP2\"),\"N/A\",IF(OR(N(#REF!)<>0,AND(N29<>0,N(N244)<N(M238)),AND(O29<>0,N(O244)<N(M238)),AND(P29<>0,N(P244)<N(M238)),AND(Q29<>0,N(Q244)<N(M238)),AND(R29<>0,N(R244)<N(M238))),\"FAIL\",\"PASS\")))","v":""},{"$f":"IF(M398=\"\",\"\",IF(M129=\"no\",\"No Deaveraging Allowed\",IF(AND(N29<>0,N244>M238),\"MLB Zone A > Max\",IF(AND(O29<>0,O244>M238),\"MLB Zone B > Max\",IF(AND(P29<>0,P244>M238),\"MLB Zone C > Max\",IF(AND(Q29<>0,Q244>M238),\"MLB Zone D > Max\",IF(AND(R29<>0,R244>M238),\"MLB Zone Other > Max\",\"MLB Rates below Max\")))))))","v":""}]
[]
["   Class of Service Checks:"]
["     Zone A",null,null,null,null,null,null,null,null,null,null,null,{"$f":"IF(M130=\"\",\"\",IF(M129=\"no\",\"N/A\",IF(N(N243)<N(N242),\"FAIL\",IF(N(N244)<N(N243),\"FAIL\",\"PASS\"))))","v":""},{"$f":"IF(M401=\"\",\"\",IF(M129=\"no\",\"No Deaveraging Allowed\",IF(N(N$243)<N(N$242),\"Zone A Non Prim < Prim\",IF(N(N$244)<N(N$243),\"Zone A MLB < Non Prim\",\"Zone A OK\"))))","v":""}]
["     Zone B",null,null,null,null,null,null,null,null,null,null,null,{"$f":"IF(M130=\"\",\"\",IF(M129=\"no\",\"N/A\",IF(N(O243)<N(O242),\"FAIL\",IF(N(O244)<N(O243),\"FAIL\",\"PASS\"))))","v":""},{"$f":"IF(M402=\"\",\"\",IF(M129=\"no\",\"No Deaveraging Allowed\",IF(N(O$243)<N(O$242),\"Zone B Non Prim < Prim\",IF(N(O$244)<N(O$243),\"Zone B MLB < Non Prim\",\"Zone B OK\"))))","v":""}]
["     Zone C",null,null,null,null,null,null,null,null,null,null,null,{"$f":"IF(M130=\"\",\"\",IF(M129=\"no\",\"N/A\",IF(N(P243)<N(P242),\"FAIL\",IF(N(P244)<N(P243),\"FAIL\",\"PASS\"))))","v":""},{"$f":"IF(M403=\"\",\"\",IF(M129=\"no\",\"No Deaveraging Allowed\",IF(N(P$243)<N(P$242),\"Zone C Non Prim < Prim\",IF(N(P$244)<N(P$243),\"Zone C MLB < Non Prim\",\"Zone C OK\"))))","v":""}]
["     Zone D",null,null,null,null,null,null,null,null,null,null,null,{"$f":"IF(M130=\"\",\"\",IF(M129=\"no\",\"N/A\",IF(N(Q243)<N(Q242),\"FAIL\",IF(N(Q244)<N(Q243),\"FAIL\",\"PASS\"))))","v":""},{"$f":"IF(M404=\"\",\"\",IF(M129=\"no\",\"No Deaveraging Allowed\",IF(N(Q$243)<N(Q$242),\"Zone D Non Prim < Prim\",IF(N(Q$244)<N(Q$243),\"Zone D MLB < Non Prim\",\"Zone D OK\"))))","v":""}]
["     Other Zone",null,null,null,null,null,null,null,null,null,null,null,{"$f":"IF(M130=\"\",\"\",IF(M129=\"no\",\"N/A\",IF(N(R243)<N(R242),\"FAIL\",IF(N(R244)<N(R243),\"FAIL\",\"PASS\"))))","v":""},{"$f":"IF(M405=\"\",\"\",IF(M129=\"no\",\"No Deaveraging Allowed\",IF(N(R$243)<N(R$242),\"Other Zone Non Prim < Prim\",IF(N(R$244)<N(R$243),\"Other Zone MLB < Non Prim\",\"Other Zone OK\"))))","v":""}]
[]
["      CMT Revenue Too High?",null,null,null,null,null,null,null,null,null,null,null,null,null,null,{"$f":"IF(TRUNC(M356,0)>TRUNC(M330,0),\"     HIGH\",\"       *\")","v":"       *"}]